{"text_format":"1","workbook":"xlsx","n_sheets":13,"sheets":["Hoofdmenu","Toelichting","NAW_gegevens","Mededelingen","Voorblad","Kostenverzamelstaat","Zorg via CAK - AK en ZMV","Zorg via CAK - ZZV","Volledig pakket thuis","Dagbesteding en vervoer","PGB","Beheerskosten","Blad1"],"not_rendered":{"charts":0,"images":1,"macros":1,"external_links":5,"defined_names":78,"comments":0,"pivot_tables":0},"unopened":[],"bounds":{"document_bytes":16777216,"sheet_cells":100000,"rows_first":2000,"rows_last":500,"rows_between":2000,"halvings":0,"cell_chars":16384,"cell_head_chars":4096},"cells_cut":0,"cells_raw":0,"read":"whole","date_system":"1900"}

{"sheet":"Hoofdmenu","index":0,"n_rows":15,"n_cols":2,"rows_kept":15,"cut":false,"hidden":false,"merged":[[0,0,0,1],[1,0,1,1]]}
["HOOFDMENU"]
["KWARTAALSTAAT Wlz 2019 4e KWARTAAL - Wlz-REGIO"]
["Navigatie","Afdrukken"]
[]
[" 01. Toelichting"]
[" 02. NAW gegevens"]
[" 03. Mededelingen"]
[" 04. Voorblad"]
[" 05. Kostenverzamelstaat"]
[" 06. Zorg via CAK: Aanvaardbare kosten en Zorg met verblijf"]
[" 07. Zorg via CAK: Zorg zonder verblijf"]
[" 08. Zorg via CAK: Volledig pakket thuis"]
[" 09. Zorg via CAK: Dagbesteding en vervoer"]
[" 10. PGB"]
[" 11. Beheerskosten"]

{"sheet":"Toelichting","index":1,"n_rows":0,"n_cols":0,"rows_kept":0,"cut":false,"hidden":false,"merged":[]}

{"sheet":"NAW_gegevens","index":2,"n_rows":45,"n_cols":3,"rows_kept":45,"cut":false,"hidden":false,"merged":[[1,0,1,1],[2,0,2,1]]}
[]
["NAW-MENU"]
["KWARTAALSTAAT Wlz 2019 4e KWARTAAL - Wlz-REGIO"]
[" Uzovi-nummer:","5501"]
[" Naam Wlz-regio:",{"$f":"IF(naw_uzovi_zorgkantoor=\"\",\"\",VLOOKUP(naw_uzovi_zorgkantoor,A13:B45,2))","v":"GRONINGEN"}]
[" Wlz-uitvoerder:",{"$f":"IF(naw_uzovi_zorgkantoor=\"\",\"\",VLOOKUP(naw_uzovi_zorgkantoor,A13:C45,3))","v":"Stichting Zorgkantoor Menzis"}]
[" Contactpersoon:"]
[" Telefoonnummer:"]
[" E-mail:"]
[]
["Let op dat u het goede UZOVI-nummer invult, zie onderstaand overzicht:"]
["UZOVI","NAAM Wlz-REGIO","Wlz-UITVOERDER"]
["000A","N.V.T","ASR Wlz-uitvoerder BV"]
["000B","N.V.T","ONVZ Langdurige Zorg BV"]
["5501","GRONINGEN","Stichting Zorgkantoor Menzis"]
["5502","FRIESLAND","Zorgkantoor Friesland BV"]
["5503","DRENTHE","Zilveren Kruis Zorgkantoor NV"]
["5504","ZWOLLE","Zilveren Kruis Zorgkantoor NV"]
["5505","TWENTE","Stichting Zorgkantoor Menzis"]
["5506","APELDOORN, ZUTPHEN EN OMSTREKEN","Zilveren Kruis Zorgkantoor NV"]
["5507","ARNHEM","Stichting Zorgkantoor Menzis"]
["5508","NIJMEGEN","VGZ Zorgkantoor BV"]
["5509","UTRECHT","Zilveren Kruis Zorgkantoor NV"]
["5510","FLEVOLAND","Zilveren Kruis Zorgkantoor NV"]
["5511","'T GOOI","Zilveren Kruis Zorgkantoor NV"]
["5512","NOORD-HOLLAND NOORD","VGZ Zorgkantoor BV"]
["5513","KENNEMERLAND","Zilveren Kruis Zorgkantoor NV"]
["5514","ZAANSTREEK/WATERLAND","Zilveren Kruis Zorgkantoor NV"]
["5515","AMSTERDAM","Zilveren Kruis Zorgkantoor NV"]
["5516","AMSTELLAND EN DE MEERLANDEN","Stichting Wlz-uitvoerder Zorg en Zekerheid"]
["5517","ZUID-HOLLAND NOORD","Stichting Wlz-uitvoerder Zorg en Zekerheid"]
["5518","HAAGLANDEN","CZ Zorgkantoor BV"]
["5519","WESTLAND SCHIELAND DELFLAND","Zorgkantoor DSW BV"]
["5520","MIDDEN-HOLLAND","VGZ Zorgkantoor BV"]
["5521","ROTTERDAM","Zilveren Kruis Zorgkantoor NV"]
["5523","ZUID-HOLLANDSE EILANDEN","CZ Zorgkantoor BV"]
["5524","WAARDENLAND","VGZ Zorgkantoor BV"]
["5525","ZEELAND","CZ Zorgkantoor BV"]
["5526","WEST-BRABANT","CZ Zorgkantoor BV"]
["5527","MIDDEN-BRABANT","VGZ Zorgkantoor BV"]
["5528","NOORDOOST BRABANT","VGZ Zorgkantoor BV"]
["5529","ZUIDOOST BRABANT","CZ Zorgkantoor BV"]
["5530","NOORD- EN MIDDEN-LIMBURG","VGZ Zorgkantoor BV"]
["5531","ZUID-LIMBURG","CZ Zorgkantoor BV"]
["5532","MIDDEN-IJSSEL","Salland Zorgkantoor BV"]

{"sheet":"Mededelingen","index":3,"n_rows":4,"n_cols":2,"rows_kept":4,"cut":false,"hidden":false,"merged":[]}
[" KWARTAALSTAAT Wlz 2019 4e KWARTAAL - Wlz-REGIO"]
[{"$f":"CONCATENATE(\" UZOVI: \",NAW_gegevens!naw_uzovi_zorgkantoor,\"   Wlz-regio: \",NAW_gegevens!naw_naam_zorgkantoor,\"   Wlz-uitvoerder: \",NAW_gegevens!B6,)","v":" UZOVI: 5501   Wlz-regio: GRONINGEN   Wlz-uitvoerder: Stichting Zorgkantoor Menzis"}]
[]
[null,"Mededelingen: "]

{"sheet":"Voorblad","index":4,"n_rows":26,"n_cols":3,"rows_kept":26,"cut":false,"hidden":false,"merged":[[10,1,11,9],[14,1,15,9],[16,1,16,9],[17,1,17,9],[12,1,13,9]]}
[]
[]
[]
[]
[]
[]
[]
[]
[]
[]
[null,"KWARTAALSTAAT Wlz 2019"]
[]
[null,"4e KWARTAAL"]
[]
[null,"Wlz-REGIO"]
[]
[]
[]
[]
[null,"● KOSTENVERZAMELSTAAT OPGENOMEN IN KWARTAALSTAAT"]
[null,"● SPECIFICATIES ZORGKOSTEN EN PRODUCTIE, VIA CAK"]
[null,null,"Zorg via CAK: Zorgzwaartepakketten"]
[null,null,"Zorg via CAK: Zorg zonder verblijf"]
[null,null,"Zorg via CAK: Volledig pakket thuis"]
[null,null,"Zorg via CAK: Dagbesteding en vervoer"]
[null,"● SPECIFICATIE BEHEERSKOSTEN en PGB"]

{"sheet":"Kostenverzamelstaat","index":5,"n_rows":40,"n_cols":3,"rows_kept":40,"cut":false,"hidden":false,"merged":[[5,0,5,1],[39,0,39,1],[4,0,4,1]]}
[" KWARTAALSTAAT Wlz 2019 4e KWARTAAL - Wlz-REGIO"]
[{"$f":"CONCATENATE(\" UZOVI: \",NAW_gegevens!naw_uzovi_zorgkantoor,\"   Wlz-regio: \",NAW_gegevens!naw_naam_zorgkantoor,\"   Wlz-uitvoerder: \",NAW_gegevens!B6,)","v":" UZOVI: 5501   Wlz-regio: GRONINGEN   Wlz-uitvoerder: Stichting Zorgkantoor Menzis"}]
[]
[]
[" KOSTENVERZAMELSTAAT"]
[" KOSTEN OPGENOMEN IN KWARTAALSTAAT",null,"BEDRAG"]
[" VIA CAK","REALISATIE ZORG MET VERBLIJF:"]
[null,"   Zorgzwaartepakket verpleging en verzorging inclusief dagbesteding",{"$f":"'Zorg via CAK - AK en ZMV'!E18","v":0}]
[null,"   Zorgzwaartepakket verstandelijk gehandicaptenzorg inclusief dagbesteding",{"$f":"'Zorg via CAK - AK en ZMV'!E31","v":0}]
[null,"   Zorgzwaartepakket verstandelijk gehandicaptenzorg exclusief dagbesteding",{"$f":"'Zorg via CAK - AK en ZMV'!E43","v":0}]
[null,"   Zorgzwaartepakket licht verstandelijk gehandicaptenzorg inclusief dagbesteding",{"$f":"'Zorg via CAK - AK en ZMV'!E52","v":0}]
[null,"   Zorgzwaartepakket sterk gedragsgestoorde licht verstandelijk gehandicaptenzorg inclusief dagbesteding",{"$f":"'Zorg via CAK - AK en ZMV'!E62","v":0}]
[null,"   Zorgzwaartepakket lichamelijk gehandicaptenzorg inclusief dagbesteding",{"$f":"'Zorg via CAK - AK en ZMV'!E73","v":0}]
[null,"   Zorgzwaartepakket lichamelijk gehandicaptenzorg exclusief dagbesteding",{"$f":"'Zorg via CAK - AK en ZMV'!E84","v":0}]
[null,"   Zorgzwaartepakket auditief en communicatief gehandicaptenzorg inclusief dagbesteding",{"$f":"'Zorg via CAK - AK en ZMV'!E92","v":0}]
[null,"   Zorgzwaartepakket auditief en communicatief gehandicaptenzorg exclusief dagbesteding",{"$f":"'Zorg via CAK - AK en ZMV'!E100","v":0}]
[null,"   Zorgzwaartepakket visueel gehandicaptenzorg inclusief dagbesteding",{"$f":"'Zorg via CAK - AK en ZMV'!E109","v":0}]
[null,"   Zorgzwaartepakket visueel gehandicaptenzorg exclusief dagbesteding",{"$f":"'Zorg via CAK - AK en ZMV'!E123","v":0}]
[null,"   Zorgzwaartepakket geestelijke gezondheidszorg, groep B inclusief dagbesteding",{"$f":"'Zorg via CAK - AK en ZMV'!E135","v":0}]
[null,"   Zorgzwaartepakket geestelijke gezondheidszorg, groep B exclusief dagbesteding",{"$f":"'Zorg via CAK - AK en ZMV'!E146","v":0}]
[null,"REALISATIE ZORG ZONDER VERBLIJF"]
[null,"   Realisatie zorg zonder verblijf (TOTAAL)",{"$f":"'Zorg via CAK - ZZV'!E42","v":0}]
[null,"REALISATIE VOLLEDIG PAKKET THUIS"]
[null,"   ZZP VPT verpleging en verzorging inclusief dagbesteding",{"$f":"'Volledig pakket thuis'!D18","v":0}]
[null,"   ZZP VPT verstandelijk gehandicaptenzorg inclusief dagbesteding",{"$f":"'Volledig pakket thuis'!D31","v":0}]
[null,"   ZZP VPT verstandelijk gehandicaptenzorg exclusief dagbesteding",{"$f":"'Volledig pakket thuis'!D43","v":0}]
[null,"   ZZP VPT licht verstandelijk gehandicaptenzorg inclusief dagbesteding",{"$f":"'Volledig pakket thuis'!D52","v":0}]
[null,"   ZZP VPT sterk gedragsgestoorde licht verstandelijk gehandicaptenzorg inclusief dagbesteding",{"$f":"'Volledig pakket thuis'!D57","v":0}]
[null,"   ZZP VPT lichamelijk gehandicaptenzorg inclusief dagbesteding",{"$f":"'Volledig pakket thuis'!D68","v":0}]
[null,"   ZZP VPT lichamelijk gehandicaptenzorg exclusief dagbesteding",{"$f":"'Volledig pakket thuis'!D79","v":0}]
[null,"   ZZP VPT auditief en communicatief gehandicaptenzorg inclusief dagbesteding",{"$f":"'Volledig pakket thuis'!D87","v":0}]
[null,"   ZZP VPT auditief en communicatief gehandicaptenzorg exclusief dagbesteding",{"$f":"'Volledig pakket thuis'!D95","v":0}]
[null,"   ZZP VPT visueel gehandicaptenzorg inclusief dagbesteding",{"$f":"'Volledig pakket thuis'!D104","v":0}]
[null,"   ZZP VPT visueel gehandicaptenzorg exclusief dagbesteding",{"$f":"'Volledig pakket thuis'!D113","v":0}]
[null,"REALISATIE DAGBESTEDING EN VERVOER"]
[null,"   Dagbesteding, zorg zonder verblijf",{"$f":"'Dagbesteding en vervoer'!C13","v":0}]
[null,"   Vervoer, zorg zonder verblijf",{"$f":"'Dagbesteding en vervoer'!C14","v":0}]
[null,"   Dagbesteding, zorg met verblijf, gehandicaptenzorg",{"$f":"'Dagbesteding en vervoer'!C23","v":0}]
[null,"   Vervoer dagbesteding, intramuraal",{"$f":"'Dagbesteding en vervoer'!C28","v":0}]
[" TOTAAL BEHEERSKOSTEN",null,{"$f":"Beheerskosten!E10","v":0}]

{"sheet":"Zorg via CAK - AK en ZMV","index":6,"n_rows":146,"n_cols":10,"rows_kept":146,"cut":false,"hidden":false,"merged":[[139,0,139,1],[140,0,140,1],[141,0,141,1],[142,0,142,1],[145,0,145,2],[130,0,130,1],[131,0,131,1],[134,0,134,2],[136,0,137,1],[138,0,138,1],[144,0,144,1],[132,0,132,1],[133,0,133,1],[136,2,137,2],[106,0,106,1],[107,0,107,1],[108,0,108,2],[99,0,99,2],[115,0,116,1],[98,0,98,1],[101,0,102,1],[103,0,103,1],[104,0,104,1],[105,0,105,1],[115,2,116,2],[96,0,96,1],[97,0,97,1],[82,0,82,1],[83,0,83,2],[87,0,87,1],[88,0,88,1],[89,0,89,1],[85,0,86,1],[85,2,86,2],[81,0,81,1],[70,0,70,1],[71,0,71,1],[72,0,72,2],[74,0,75,1],[76,0,76,1],[90,0,90,1],[91,0,91,2],[95,0,95,1],[12,0,12,1],[38,0,38,1],[39,0,39,1],[41,0,41,1],[40,0,40,1],[42,0,42,2],[77,0,77,1],[79,0,79,1],[80,0,80,1],[7,0,7,1],[8,0,8,1],[5,3,5,4],[5,2,6,2],[5,0,6,1],[32,2,33,2],[32,3,32,4],[15,0,15,1],[16,0,16,1],[20,0,21,1],[22,0,22,1],[23,0,23,1],[24,0,24,1],[25,0,25,1],[17,0,17,2],[30,0,30,2],[13,0,13,1],[14,0,14,1],[20,2,21,2],[20,3,20,4],[28,0,28,1],[9,0,9,1],[10,0,10,1],[11,0,11,1],[85,3,85,4],[44,2,45,2],[44,3,44,4],[63,2,64,2],[63,3,63,4],[58,0,59,1],[58,2,59,2],[58,3,58,4],[47,0,47,1],[48,0,48,1],[49,0,49,1],[50,0,50,1],[51,0,51,2],[63,0,64,1],[60,0,60,1],[61,0,61,2],[44,0,45,1],[46,0,46,1],[65,0,65,1],[66,0,66,1],[67,0,67,1],[68,0,68,1],[69,0,69,1],[78,0,78,1],[125,2,126,2],[117,0,117,1],[118,0,118,1],[119,0,119,1],[120,0,120,1],[121,0,121,1],[122,0,122,2],[125,0,126,1],[127,0,127,1],[4,8,5,8],[4,9,5,9],[2,8,3,9],[128,0,128,1],[129,0,129,1],[136,3,136,4],[143,0,143,1],[115,3,115,4],[125,3,125,4],[93,3,93,4],[101,2,102,2],[101,3,101,4],[93,0,94,1],[93,2,94,2],[74,2,75,2],[74,3,74,4],[26,0,26,1],[27,0,27,1],[29,0,29,1],[32,0,33,1],[34,0,34,1],[35,0,35,1],[36,0,36,1],[37,0,37,1]]}
[" KWARTAALSTAAT Wlz 2019 4e KWARTAAL - Wlz-REGIO"]
[{"$f":"CONCATENATE(\" UZOVI: \",NAW_gegevens!naw_uzovi_zorgkantoor,\"   Wlz-regio: \",NAW_gegevens!naw_naam_zorgkantoor,\"   Wlz-uitvoerder: \",NAW_gegevens!B6,)","v":" UZOVI: 5501   Wlz-regio: GRONINGEN   Wlz-uitvoerder: Stichting Zorgkantoor Menzis"}]
[null,null,null,null,null,null,null,null,"BR/REG-19121c (actief)"]
[" SPECIFICATIES ZORGKOSTEN EN PRODUCTIE, VIA CAK"]
[" ZORGZWAARTEPAKKET VERPLEGING EN VERZORGING (TOEGELATEN VOOR VERBLIJF OF MET EN ZONDER BEHANDELING)",null,null,null,null,null,null,null,"Niet-toegelaten","Toegelaten "]
[" VERPLEGING EN VERZORGING, INCLUSIEF DAGBESTEDING",null,"NZa-\ncode","REALISATIE"]
[null,null,null,"AANTAL","BEDRAG"]
[" Beschut wonen met enige begeleiding",null,"1VV",null,null,null,{"$f":"IF(OR(NOT(ISNUMBER(E8)),NOT(ISNUMBER(D8)),E8=0,D8=0),\"\",IF(E8/D8<I8,\"REALISATIE: De gemiddelde kosten zijn lager dan het laagste tarief\",IF(E8/D8>J8,\"REALISATIE: De gemiddelde kosten zijn hoger dan het hoogste tarief\",\"\")))","v":""},null,99.87,99.87]
[" Beschut wonen met begeleiding en verzorging",null,"2VV",null,null,null,{"$f":"IF(OR(NOT(ISNUMBER(E9)),NOT(ISNUMBER(D9)),E9=0,D9=0),\"\",IF(E9/D9<I9,\"REALISATIE: De gemiddelde kosten zijn lager dan het laagste tarief\",IF(E9/D9>J9,\"REALISATIE: De gemiddelde kosten zijn hoger dan het hoogste tarief\",\"\")))","v":""},null,128.08000000000001,128.08000000000001]
[" Beschut wonen met begeleiding en intensieve verzorging",null,"3VV",null,null,null,"",null,159.63,183.28]
[" Beschut wonen met intensieve begeleiding en uitgebreide verzorging",null,"4VV",null,null,null,"",null,166.47,197.33]
[" Beschermd wonen met intensieve dementiezorg",null,"5VV",null,null,null,"",null,216.46,250.05]
[" Beschermd wonen met intensieve verzorging en verpleging",null,"6VV",null,null,null,"",null,216.72,251.14]
[" Beschermd wonen met zeer intensieve zorg, vanwege specifieke\n aandoeningen, met nadruk op begeleiding",null,"7VV",null,null,null,"",null,249.87,293.16000000000003]
[" Beschermd wonen met zeer intensieve zorg, vanwege specifieke\n aandoeningen, met nadruk op verzorging/verpleging",null,"8VV",null,null,null,"",null,287.44,331.34]
[" Herstelgerichte verpleging en verzorging",null,"9VVB",null,null,null,"",null,211.55,300.63]
[" Beschermd verblijf met intensieve palliatief-terminale zorg",null,"10VV",null,null,null,"",null,310.69,354.15]
[" TOTAAL VERPLEGING EN VERZORGING, INCLUSIEF DAGBESTEDING",null,null,null,{"$f":"SUM(E8:E17)","v":0}]
[]
[" ZORGZWAARTEPAKKET GEHANDICAPTENZORG (TOEGELATEN VOOR VERBLIJF OF MET EN ZONDER BEHANDELING)"]
[" VERSTANDELIJK GEHANDICAPTEN, INCLUSIEF DAGBESTEDING",null,"NZa-\ncode","REALISATIE"]
[null,null,null,"AANTAL","BEDRAG"]
[" Wonen met enige begeleiding",null,"1VG",null,null,null,{"$f":"IF(OR(NOT(ISNUMBER('Zorg via CAK - AK en ZMV'!E23)),NOT(ISNUMBER('Zorg via CAK - AK en ZMV'!D23)),'Zorg via CAK - AK en ZMV'!E23=0,'Zorg via CAK - AK en ZMV'!D23=0),\"\",IF('Zorg via CAK - AK en ZMV'!E23/'Zorg via CAK - AK en ZMV'!D23<I23,\"REALISATIE: De gemiddelde kosten zijn lager dan het laagste tarief\",IF('Zorg via CAK - AK en ZMV'!E23/'Zorg via CAK - AK en ZMV'!D23>J23,\"REALISATIE: De gemiddelde kosten zijn hoger dan het hoogste tarief\",\"\")))","v":""},null,128.72,128.72]
[" Wonen met begeleiding",null,"2VG",null,null,null,{"$f":"IF(OR(NOT(ISNUMBER('Zorg via CAK - AK en ZMV'!E24)),NOT(ISNUMBER('Zorg via CAK - AK en ZMV'!D24)),'Zorg via CAK - AK en ZMV'!E24=0,'Zorg via CAK - AK en ZMV'!D24=0),\"\",IF('Zorg via CAK - AK en ZMV'!E24/'Zorg via CAK - AK en ZMV'!D24<I24,\"REALISATIE: De gemiddelde kosten zijn lager dan het laagste tarief\",IF('Zorg via CAK - AK en ZMV'!E24/'Zorg via CAK - AK en ZMV'!D24>J24,\"REALISATIE: De gemiddelde kosten zijn hoger dan het hoogste tarief\",\"\")))","v":""},null,143.11000000000001,143.11000000000001]
[" Wonen met begeleiding en verzorging",null,"3VG",null,null,null,{"$f":"IF(OR(NOT(ISNUMBER('Zorg via CAK - AK en ZMV'!E25)),NOT(ISNUMBER('Zorg via CAK - AK en ZMV'!D25)),'Zorg via CAK - AK en ZMV'!E25=0,'Zorg via CAK - AK en ZMV'!D25=0),\"\",IF('Zorg via CAK - AK en ZMV'!E25/'Zorg via CAK - AK en ZMV'!D25<I25,\"REALISATIE: De gemiddelde kosten zijn lager dan het laagste tarief\",IF('Zorg via CAK - AK en ZMV'!E25/'Zorg via CAK - AK en ZMV'!D25>J25,\"REALISATIE: De gemiddelde kosten zijn hoger dan het hoogste tarief\",\"\")))","v":""},null,170.34,186.1]
[" Wonen met begeleiding en intensieve verzorging",null,"4VG",null,null,null,{"$f":"IF(OR(NOT(ISNUMBER('Zorg via CAK - AK en ZMV'!E26)),NOT(ISNUMBER('Zorg via CAK - AK en ZMV'!D26)),'Zorg via CAK - AK en ZMV'!E26=0,'Zorg via CAK - AK en ZMV'!D26=0),\"\",IF('Zorg via CAK - AK en ZMV'!E26/'Zorg via CAK - AK en ZMV'!D26<I26,\"REALISATIE: De gemiddelde kosten zijn lager dan het laagste tarief\",IF('Zorg via CAK - AK en ZMV'!E26/'Zorg via CAK - AK en ZMV'!D26>J26,\"REALISATIE: De gemiddelde kosten zijn hoger dan het hoogste tarief\",\"\")))","v":""},null,197.6,218.97]
[" Wonen met intensieve begeleiding en intensieve verzorging",null,"5VG",null,null,null,{"$f":"IF(OR(NOT(ISNUMBER('Zorg via CAK - AK en ZMV'!E28)),NOT(ISNUMBER('Zorg via CAK - AK en ZMV'!D28)),'Zorg via CAK - AK en ZMV'!E28=0,'Zorg via CAK - AK en ZMV'!D28=0),\"\",IF('Zorg via CAK - AK en ZMV'!E28/'Zorg via CAK - AK en ZMV'!D28<I27,\"REALISATIE: De gemiddelde kosten zijn lager dan het laagste tarief\",IF('Zorg via CAK - AK en ZMV'!E28/'Zorg via CAK - AK en ZMV'!D28>J27,\"REALISATIE: De gemiddelde kosten zijn hoger dan het hoogste tarief\",\"\")))","v":""},null,240.02,280.76]
[" Wonen met intensieve begeleiding, verzorging en gedragsregulering",null,"6VG",null,null,null,{"$f":"IF(OR(NOT(ISNUMBER('Zorg via CAK - AK en ZMV'!E29)),NOT(ISNUMBER('Zorg via CAK - AK en ZMV'!D29)),'Zorg via CAK - AK en ZMV'!E29=0,'Zorg via CAK - AK en ZMV'!D29=0),\"\",IF('Zorg via CAK - AK en ZMV'!E29/'Zorg via CAK - AK en ZMV'!D29<I28,\"REALISATIE: De gemiddelde kosten zijn lager dan het laagste tarief\",IF('Zorg via CAK - AK en ZMV'!E29/'Zorg via CAK - AK en ZMV'!D29>J28,\"REALISATIE: De gemiddelde kosten zijn hoger dan het hoogste tarief\",\"\")))","v":""},null,215.88,251.38]
[" (Besloten) wonen met zeer intensieve begeleiding, verzorging en \n gedragsregulering",null,"7VG",null,null,null,{"$f":"IF(OR(NOT(ISNUMBER('Zorg via CAK - AK en ZMV'!E30)),NOT(ISNUMBER('Zorg via CAK - AK en ZMV'!D30)),'Zorg via CAK - AK en ZMV'!E30=0,'Zorg via CAK - AK en ZMV'!D30=0),\"\",IF('Zorg via CAK - AK en ZMV'!E30/'Zorg via CAK - AK en ZMV'!D30<I29,\"REALISATIE: De gemiddelde kosten zijn lager dan het laagste tarief\",IF('Zorg via CAK - AK en ZMV'!E30/'Zorg via CAK - AK en ZMV'!D30>J29,\"REALISATIE: De gemiddelde kosten zijn hoger dan het hoogste tarief\",\"\")))","v":""},null,259.94,350.87]
[" Wonen met begeleiding en volledige verzorging en verpleging",null,"8VG",null,null,null,{"$f":"IF(OR(NOT(ISNUMBER('Zorg via CAK - AK en ZMV'!E27)),NOT(ISNUMBER('Zorg via CAK - AK en ZMV'!D27)),'Zorg via CAK - AK en ZMV'!E27=0,'Zorg via CAK - AK en ZMV'!D27=0),\"\",IF('Zorg via CAK - AK en ZMV'!E27/'Zorg via CAK - AK en ZMV'!D27<I30,\"REALISATIE: De gemiddelde kosten zijn lager dan het laagste tarief\",IF('Zorg via CAK - AK en ZMV'!E27/'Zorg via CAK - AK en ZMV'!D27>J30,\"REALISATIE: De gemiddelde kosten zijn hoger dan het hoogste tarief\",\"\")))","v":""},null,296.66000000000003,345.41]
[" TOTAAL VERSTANDELIJK GEHANDICAPTEN, INCLUSIEF DAGBESTEDING",null,null,null,{"$f":"SUM('Zorg via CAK - AK en ZMV'!E23:E30)","v":0}]
[]
[" VERSTANDELIJK GEHANDICAPTEN, EXCLUSIEF DAGBESTEDING",null,"NZa-\ncode","REALISATIE"]
[null,null,null,"AANTAL","BEDRAG"]
[" Wonen met enige begeleiding",null,"1VG",null,null,null,{"$f":"IF(OR(NOT(ISNUMBER('Zorg via CAK - AK en ZMV'!E35)),NOT(ISNUMBER('Zorg via CAK - AK en ZMV'!D35)),'Zorg via CAK - AK en ZMV'!E35=0,'Zorg via CAK - AK en ZMV'!D35=0),\"\",IF('Zorg via CAK - AK en ZMV'!E35/'Zorg via CAK - AK en ZMV'!D35<I35,\"REALISATIE: De gemiddelde kosten zijn lager dan het laagste tarief\",IF('Zorg via CAK - AK en ZMV'!E35/'Zorg via CAK - AK en ZMV'!D35>J35,\"REALISATIE: De gemiddelde kosten zijn hoger dan het hoogste tarief\",\"\")))","v":""},null,82.47,82.47]
[" Wonen met begeleiding",null,"2VG",null,null,null,{"$f":"IF(OR(NOT(ISNUMBER('Zorg via CAK - AK en ZMV'!E36)),NOT(ISNUMBER('Zorg via CAK - AK en ZMV'!D36)),'Zorg via CAK - AK en ZMV'!E36=0,'Zorg via CAK - AK en ZMV'!D36=0),\"\",IF('Zorg via CAK - AK en ZMV'!E36/'Zorg via CAK - AK en ZMV'!D36<I36,\"REALISATIE: De gemiddelde kosten zijn lager dan het laagste tarief\",IF('Zorg via CAK - AK en ZMV'!E36/'Zorg via CAK - AK en ZMV'!D36>J36,\"REALISATIE: De gemiddelde kosten zijn hoger dan het hoogste tarief\",\"\")))","v":""},null,95.95,95.95]
[" Wonen met begeleiding en verzorging",null,"3VG",null,null,null,{"$f":"IF(OR(NOT(ISNUMBER('Zorg via CAK - AK en ZMV'!E37)),NOT(ISNUMBER('Zorg via CAK - AK en ZMV'!D37)),'Zorg via CAK - AK en ZMV'!E37=0,'Zorg via CAK - AK en ZMV'!D37=0),\"\",IF('Zorg via CAK - AK en ZMV'!E37/'Zorg via CAK - AK en ZMV'!D37<I37,\"REALISATIE: De gemiddelde kosten zijn lager dan het laagste tarief\",IF('Zorg via CAK - AK en ZMV'!E37/'Zorg via CAK - AK en ZMV'!D37>J37,\"REALISATIE: De gemiddelde kosten zijn hoger dan het hoogste tarief\",\"\")))","v":""},null,126.39,143.54]
[" Wonen met begeleiding en intensieve verzorging",null,"4VG",null,null,null,{"$f":"IF(OR(NOT(ISNUMBER('Zorg via CAK - AK en ZMV'!E38)),NOT(ISNUMBER('Zorg via CAK - AK en ZMV'!D38)),'Zorg via CAK - AK en ZMV'!E38=0,'Zorg via CAK - AK en ZMV'!D38=0),\"\",IF('Zorg via CAK - AK en ZMV'!E38/'Zorg via CAK - AK en ZMV'!D38<I38,\"REALISATIE: De gemiddelde kosten zijn lager dan het laagste tarief\",IF('Zorg via CAK - AK en ZMV'!E38/'Zorg via CAK - AK en ZMV'!D38>J38,\"REALISATIE: De gemiddelde kosten zijn hoger dan het hoogste tarief\",\"\")))","v":""},null,153.28,179.05]
[" Wonen met intensieve begeleiding en intensieve verzorging",null,"5VG",null,null,null,{"$f":"IF(OR(NOT(ISNUMBER('Zorg via CAK - AK en ZMV'!E40)),NOT(ISNUMBER('Zorg via CAK - AK en ZMV'!D40)),'Zorg via CAK - AK en ZMV'!E40=0,'Zorg via CAK - AK en ZMV'!D40=0),\"\",IF('Zorg via CAK - AK en ZMV'!E40/'Zorg via CAK - AK en ZMV'!D40<I39,\"REALISATIE: De gemiddelde kosten zijn lager dan het laagste tarief\",IF('Zorg via CAK - AK en ZMV'!E40/'Zorg via CAK - AK en ZMV'!D40>J39,\"REALISATIE: De gemiddelde kosten zijn hoger dan het hoogste tarief\",\"\")))","v":""},null,181.82,225.18]
[" Wonen met intensieve begeleiding, verzorging en gedragsregulering",null,"6VG",null,null,null,{"$f":"IF(OR(NOT(ISNUMBER('Zorg via CAK - AK en ZMV'!E41)),NOT(ISNUMBER('Zorg via CAK - AK en ZMV'!D41)),'Zorg via CAK - AK en ZMV'!E41=0,'Zorg via CAK - AK en ZMV'!D41=0),\"\",IF('Zorg via CAK - AK en ZMV'!E41/'Zorg via CAK - AK en ZMV'!D41<I40,\"REALISATIE: De gemiddelde kosten zijn lager dan het laagste tarief\",IF('Zorg via CAK - AK en ZMV'!E41/'Zorg via CAK - AK en ZMV'!D41>J40,\"REALISATIE: De gemiddelde kosten zijn hoger dan het hoogste tarief\",\"\")))","v":""},null,158.85,194.73]
[" (Besloten) wonen met zeer intensieve begeleiding, verzorging en\n gedragsregulering",null,"7VG",null,null,null,{"$f":"IF(OR(NOT(ISNUMBER('Zorg via CAK - AK en ZMV'!E42)),NOT(ISNUMBER('Zorg via CAK - AK en ZMV'!D42)),'Zorg via CAK - AK en ZMV'!E42=0,'Zorg via CAK - AK en ZMV'!D42=0),\"\",IF('Zorg via CAK - AK en ZMV'!E42/'Zorg via CAK - AK en ZMV'!D42<I41,\"REALISATIE: De gemiddelde kosten zijn lager dan het laagste tarief\",IF('Zorg via CAK - AK en ZMV'!E42/'Zorg via CAK - AK en ZMV'!D42>J41,\"REALISATIE: De gemiddelde kosten zijn hoger dan het hoogste tarief\",\"\")))","v":""},null,194.96,273.98]
["Wonen met begeleiding en volledige verzorging en verpleging",null,"8VG",null,null,null,{"$f":"IF(OR(NOT(ISNUMBER('Zorg via CAK - AK en ZMV'!E39)),NOT(ISNUMBER('Zorg via CAK - AK en ZMV'!D39)),'Zorg via CAK - AK en ZMV'!E39=0,'Zorg via CAK - AK en ZMV'!D39=0),\"\",IF('Zorg via CAK - AK en ZMV'!E39/'Zorg via CAK - AK en ZMV'!D39<I42,\"REALISATIE: De gemiddelde kosten zijn lager dan het laagste tarief\",IF('Zorg via CAK - AK en ZMV'!E39/'Zorg via CAK - AK en ZMV'!D39>J42,\"REALISATIE: De gemiddelde kosten zijn hoger dan het hoogste tarief\",\"\")))","v":""},null,216.85,267.10000000000002]
[" TOTAAL VERSTANDELIJK GEHANDICAPTEN, EXCLUSIEF DAGBESTEDING",null,null,null,{"$f":"SUM('Zorg via CAK - AK en ZMV'!E35:E42)","v":0}]
[null,null,null,null,null,null,{"$f":"IF(OR(NOT(ISNUMBER(E44)),NOT(ISNUMBER(D44)),E44=0,D44=0),\"\",IF(E44/D44<I44,\"REALISATIE: De gemiddelde kosten zijn lager dan het laagste tarief\",IF(E44/D44>J44,\"REALISATIE: De gemiddelde kosten zijn hoger dan het hoogste tarief\",\"\")))","v":""}]
[" LICHT VERSTANDELIJK GEHANDICAPTEN, INCL. DAGBESTEDING",null,"NZa-\ncode","REALISATIE"]
[null,null,null,"AANTAL","BEDRAG"]
[" Wonen met enige behandeling en begeleiding",null,"1LVG",null,null,null,{"$f":"IF(OR(NOT(ISNUMBER(E47)),NOT(ISNUMBER(D47)),E47=0,D47=0),\"\",IF(E47/D47<I47,\"REALISATIE: De gemiddelde kosten zijn lager dan het laagste tarief\",IF(E47/D47>J47,\"REALISATIE: De gemiddelde kosten zijn hoger dan het hoogste tarief\",\"\")))","v":""},null,218.26,218.26]
[" Wonen met behandeling en begeleiding",null,"2LVG",null,null,null,{"$f":"IF(OR(NOT(ISNUMBER(E48)),NOT(ISNUMBER(D48)),E48=0,D48=0),\"\",IF(E48/D48<I48,\"REALISATIE: De gemiddelde kosten zijn lager dan het laagste tarief\",IF(E48/D48>J48,\"REALISATIE: De gemiddelde kosten zijn hoger dan het hoogste tarief\",\"\")))","v":""},null,259.58,259.58999999999997]
[" Wonen met intensieve behandeling en begeleiding, kleine groep",null,"3LVG",null,null,null,"",null,337.38,337.38]
[" Wonen met zeer intensieve behandeling en begeleiding",null,"4LVG",null,null,null,"",null,385.52,385.52]
[" Besloten wonen met zeer intensieve behandeling en begeleiding",null,"5LVG",null,null,null,"",null,367.8,367.8]
[" TOTAAL LICHT VERSTANDELIJK GEHANDICAPTEN, INCLUSIEF DAGBESTEDING",null,null,null,{"$f":"SUM(E47:E51)","v":0}]
[]
[" KWARTAALSTAAT Wlz 2019 4e KWARTAAL - Wlz-REGIO"]
[{"$f":"CONCATENATE(\" UZOVI: \",NAW_gegevens!naw_uzovi_zorgkantoor,\"   Wlz-regio: \",NAW_gegevens!naw_naam_zorgkantoor,\"   Wlz-uitvoerder: \",NAW_gegevens!B6,)","v":" UZOVI: 5501   Wlz-regio: GRONINGEN   Wlz-uitvoerder: Stichting Zorgkantoor Menzis"}]
[]
[" SPECIFICATIES ZORGKOSTEN EN PRODUCTIE, VIA CAK"]
[" ZORGZWAARTEPAKKET GEHANDICAPTENZORG (TOEGELATEN VOOR VERBLIJF OF MET EN ZONDER BEHANDELING), (vervolg)"]
[" STERK GEDRAGSGESTOORDE LICHT VERSTANDELIJK GEHANDICAPTEN, \n INCLUSIEF DAGBESTEDING",null,"NZa-\ncode","REALISATIE"]
[null,null,null,"AANTAL","BEDRAG"]
[" Behandeling in een SGLVG behandelcentrum",null,"1SGLVG",null,null,null,{"$f":"IF(OR(NOT(ISNUMBER(E61)),NOT(ISNUMBER(D61)),E61=0,D61=0),\"\",IF(E61/D61<I61,\"REALISATIE: De gemiddelde kosten zijn lager dan het laagste tarief\",IF(E61/D61>J61,\"REALISATIE: De gemiddelde kosten zijn hoger dan het hoogste tarief\",\"\")))","v":""},null,421.16,421.16]
[" TOTAAL STERK GEDRAGSGESTOORDE LICHT VERSTANDELIJK \n GEHANDICAPTEN, INCLUSIEF DAGBESTEDING",null,null,null,{"$f":"SUM(E61)","v":0}]
[]
[" LICHAMELIJK GEHANDICAPTEN, INCLUSIEF DAGBESTEDING",null,"NZa-\ncode","REALISATIE"]
[null,null,null,"AANTAL","BEDRAG"]
[" Wonen met enige begeleiding en enige verzorging",null,"1LG",null,null,null,{"$f":"IF(OR(NOT(ISNUMBER(E66)),NOT(ISNUMBER(D66)),E66=0,D66=0),\"\",IF(E66/D66<I66,\"REALISATIE: De gemiddelde kosten zijn lager dan het laagste tarief\",IF(E66/D66>J66,\"REALISATIE: De gemiddelde kosten zijn hoger dan het hoogste tarief\",\"\")))","v":""},null,171.81,171.81]
[" Wonen met begeleiding en enige verzorging",null,"2LG",null,null,null,{"$f":"IF(OR(NOT(ISNUMBER(E67)),NOT(ISNUMBER(D67)),E67=0,D67=0),\"\",IF(E67/D67<I67,\"REALISATIE: De gemiddelde kosten zijn lager dan het laagste tarief\",IF(E67/D67>J67,\"REALISATIE: De gemiddelde kosten zijn hoger dan het hoogste tarief\",\"\")))","v":""},null,199.01,199.01]
[" Wonen met enige begeleiding en verzorging",null,"3LG",null,null,null,"",null,178.74,198.93]
[" Wonen met begeleiding en verzorging",null,"4LG",null,null,null,"",null,225.85,255]
[" Wonen met begeleiding en intensieve verzorging",null,"5LG",null,null,null,"",null,231.72,274.66000000000003]
[" Wonen met intensieve begeleiding en intensieve verzorging",null,"6LG",null,null,null,"",null,295.26,340.27]
[" Wonen met zeer intensieve begeleiding en zeer intensieve verzorging",null,"7LG",null,null,null,"",null,314.52999999999997,351.58]
[" TOTAAL LICHAMELIJK GEHANDICAPTEN, INCLUSIEF DAGBESTEDING",null,null,null,{"$f":"SUM(E66:E72)","v":0}]
[]
[" LICHAMELIJK GEHANDICAPTEN, EXCLUSIEF DAGBESTEDING",null,"NZa-\ncode","REALISATIE"]
[null,null,null,"AANTAL","BEDRAG"]
[" Wonen met enige begeleiding en enige verzorging",null,"1LG",null,null,null,{"$f":"IF(OR(NOT(ISNUMBER(E77)),NOT(ISNUMBER(D77)),E77=0,D77=0),\"\",IF(E77/D77<I77,\"REALISATIE: De gemiddelde kosten zijn lager dan het laagste tarief\",IF(E77/D77>J77,\"REALISATIE: De gemiddelde kosten zijn hoger dan het hoogste tarief\",\"\")))","v":""},null,116.9,116.9]
[" Wonen met begeleiding en enige verzorging",null,"2LG",null,null,null,{"$f":"IF(OR(NOT(ISNUMBER(E78)),NOT(ISNUMBER(D78)),E78=0,D78=0),\"\",IF(E78/D78<I78,\"REALISATIE: De gemiddelde kosten zijn lager dan het laagste tarief\",IF(E78/D78>J78,\"REALISATIE: De gemiddelde kosten zijn hoger dan het hoogste tarief\",\"\")))","v":""},null,148.94999999999999,148.94999999999999]
[" Wonen met enige begeleiding en verzorging",null,"3LG",null,null,null,"",null,122.92,142.91]
[" Wonen met begeleiding en verzorging",null,"4LG",null,null,null,"",null,177.37,207.52]
[" Wonen met begeleiding en intensieve verzorging",null,"5LG",null,null,null,"",null,174.69,218.63]
[" Wonen met intensieve begeleiding en intensieve verzorging",null,"6LG",null,null,null,"",null,248.29,293.11]
[" Wonen met zeer intensieve begeleiding en zeer intensieve verzorging",null,"7LG",null,null,null,"",null,268.36,323.14]
[" TOTAAL LICHAMELIJK GEHANDICAPTEN, EXCLUSIEF DAGBESTEDING",null,null,null,{"$f":"SUM(E77:E83)","v":0}]
[]
[" AUDITIEF EN COMMUNICATIEF GEHANDICAPTEN, INCLUSIEF \n DAGBESTEDING",null,"NZa-\ncode","REALISATIE"]
[null,null,null,"AANTAL","BEDRAG"]
[" Wonen met begeleiding en enige verzorging",null,"1ZGAUD",null,null,null,{"$f":"IF(OR(NOT(ISNUMBER(E88)),NOT(ISNUMBER(D88)),E88=0,D88=0),\"\",IF(E88/D88<I88,\"REALISATIE: De gemiddelde kosten zijn lager dan het laagste tarief\",IF(E88/D88>J88,\"REALISATIE: De gemiddelde kosten zijn hoger dan het hoogste tarief\",\"\")))","v":""},null,204.63,214.44]
[" Wonen met intensieve begeleiding en verzorging",null,"2ZGAUD",null,null,null,{"$f":"IF(OR(NOT(ISNUMBER(E89)),NOT(ISNUMBER(D89)),E89=0,D89=0),\"\",IF(E89/D89<I89,\"REALISATIE: De gemiddelde kosten zijn lager dan het laagste tarief\",IF(E89/D89>J89,\"REALISATIE: De gemiddelde kosten zijn hoger dan het hoogste tarief\",\"\")))","v":""},null,356.43,390.88]
[" Wonen met intensieve begeleiding en intensieve verzorging",null,"3ZGAUD",null,null,null,"",null,388.11,457394]
[" Wonen met intensieve begeleiding en enige verzorging",null,"4ZGAUD",null,null,null,"",null,261.43,295.83]
[" TOTAAL AUDITIEF EN COMMUNICATIEF GEHANDICAPTEN, INCLUSIEF \n DAGBESTEDING",null,null,null,{"$f":"SUM(E88:E91)","v":0}]
[]
[" AUDITIEF EN COMMUNICATIEF GEHANDICAPTEN, EXCLUSIEF \n DAGBESTEDING",null,"NZa-\ncode","REALISATIE"]
[null,null,null,"AANTAL","BEDRAG"]
[" Wonen met begeleiding en enige verzorging",null,"1ZGAUD",null,null,null,{"$f":"IF(OR(NOT(ISNUMBER(E96)),NOT(ISNUMBER(D96)),E96=0,D96=0),\"\",IF(E96/D96<I96,\"REALISATIE: De gemiddelde kosten zijn lager dan het laagste tarief\",IF(E96/D96>J96,\"REALISATIE: De gemiddelde kosten zijn hoger dan het hoogste tarief\",\"\")))","v":""},null,165.8,160.63999999999999]
[" Wonen met intensieve begeleiding en verzorging",null,"2ZGAUD",null,null,null,{"$f":"IF(OR(NOT(ISNUMBER(E97)),NOT(ISNUMBER(D97)),E97=0,D97=0),\"\",IF(E97/D97<I97,\"REALISATIE: De gemiddelde kosten zijn lager dan het laagste tarief\",IF(E97/D97>J97,\"REALISATIE: De gemiddelde kosten zijn hoger dan het hoogste tarief\",\"\")))","v":""},null,306.66000000000003,313.37]
[" Wonen met intensieve begeleiding en intensieve verzorging",null,"3ZGAUD",null,null,null,"",null,345.09,357.86]
[" Wonen met intensieve begeleiding en enige verzorging",null,"4ZGAUD",null,null,null,"",null,199.03,233.42]
[" TOTAAL AUDITIEF EN COMMUNICATIEF GEHANDICAPTEN, EXCLUSIEF \n DAGBESTEDING",null,null,null,{"$f":"SUM(E96:E99)","v":0}]
[]
[" VISUEEL GEHANDICAPTEN, INCLUSIEF DAGBESTEDING",null,"NZa-\ncode","REALISATIE"]
[null,null,null,"AANTAL","BEDRAG"]
[" Wonen met enige begeleiding en enige verzorging",null,"1ZGVIS",null,null,null,{"$f":"IF(OR(NOT(ISNUMBER(E104)),NOT(ISNUMBER(D104)),E104=0,D104=0),\"\",IF(E104/D104<I104,\"REALISATIE: De gemiddelde kosten zijn lager dan het laagste tarief\",IF(E104/D104>J104,\"REALISATIE: De gemiddelde kosten zijn hoger dan het hoogste tarief\",\"\")))","v":""},null,159.99,15.99]
[" Wonen met begeleiding en enige verzorging",null,"2ZGVIS",null,null,null,{"$f":"IF(OR(NOT(ISNUMBER(E105)),NOT(ISNUMBER(D105)),E105=0,D105=0),\"\",IF(E105/D105<I105,\"REALISATIE: De gemiddelde kosten zijn lager dan het laagste tarief\",IF(E105/D105>J105,\"REALISATIE: De gemiddelde kosten zijn hoger dan het hoogste tarief\",\"\")))","v":""},null,190.36,190.36]
[" Wonen met intensieve begeleiding en verzorging",null,"3ZGVIS",null,null,null,"",null,216.29,240.9]
[" Wonen met intensieve begeleiding en intensieve verzorging",null,"4ZGVIS",null,null,null,"",null,269.36,302.12]
[" Wonen met zeer intensieve begeleiding en zeer intensieve verzorging",null,"5ZGVIS",null,null,null,"",null,294.36,331.67]
[" TOTAAL VISUEEL GEHANDICAPTEN, INCLUSIEF DAGBESTEDING",null,null,null,{"$f":"SUM(E104:E108)","v":0}]
[]
[" KWARTAALSTAAT Wlz 2019 4e KWARTAAL - Wlz-REGIO"]
[{"$f":"CONCATENATE(\" UZOVI: \",NAW_gegevens!naw_uzovi_zorgkantoor,\"   Wlz-regio: \",NAW_gegevens!naw_naam_zorgkantoor,\"   Wlz-uitvoerder: \",NAW_gegevens!B6,)","v":" UZOVI: 5501   Wlz-regio: GRONINGEN   Wlz-uitvoerder: Stichting Zorgkantoor Menzis"}]
[]
[" SPECIFICATIES ZORGKOSTEN EN PRODUCTIE, VIA CAK"]
[" ZORGZWAARTEPAKKET GEHANDICAPTENZORG (TOEGELATEN VOOR VERBLIJF OF MET EN ZONDER BEHANDELING), (vervolg)"]
[" VISUEEL GEHANDICAPTEN, EXCLUSIEF DAGBESTEDING",null,"NZa-\ncode","REALISATIE"]
[null,null,null,"AANTAL","BEDRAG"]
[" Wonen met enige begeleiding en enige verzorging",null,"1ZGVIS",null,null,null,{"$f":"IF(OR(NOT(ISNUMBER(E118)),NOT(ISNUMBER(D118)),E118=0,D118=0),\"\",IF(E118/D118<I118,\"REALISATIE: De gemiddelde kosten zijn lager dan het laagste tarief\",IF(E118/D118>J118,\"REALISATIE: De gemiddelde kosten zijn hoger dan het hoogste tarief\",\"\")))","v":""},null,106.52,106.52]
[" Wonen met begeleiding en enige verzorging",null,"2ZGVIS",null,null,null,{"$f":"IF(OR(NOT(ISNUMBER(E119)),NOT(ISNUMBER(D119)),E119=0,D119=0),\"\",IF(E119/D119<I119,\"REALISATIE: De gemiddelde kosten zijn lager dan het laagste tarief\",IF(E119/D119>J119,\"REALISATIE: De gemiddelde kosten zijn hoger dan het hoogste tarief\",\"\")))","v":""},null,144.35,144.35]
[" Wonen met intensieve begeleiding en verzorging",null,"3ZGVIS",null,null,null,"",null,170.26,194.87]
[" Wonen met intensieve begeleiding en intensieve verzorging",null,"4ZGVIS",null,null,null,"",null,208.86,241.64]
[" Wonen met zeer intensieve begeleiding en zeer intensieve verzorging",null,"5ZGVIS",null,null,null,"",null,231.99,269.32]
[" TOTAAL VISUEEL GEHANDICAPTEN, EXCLUSIEF DAGBESTEDING",null,null,null,{"$f":"SUM(E118:E122)","v":0}]
[]
[" ZORGZWAARTEPAKKET GEESTELIJKE GEZONDHEIDSZORG (VOOR CLIËNTEN DIE VERBLIJVEN VANWEGE BEHANDELING OF BEGELEIDING)"]
[" GGZ B-GROEP, INCLUSIEF DAGBESTEDING",null,"NZa-\ncode","REALISATIE"]
[null,null,null,"AANTAL","BEDRAG"]
[" Voortgezet verblijf met begeleiding",null,"1BGGZ",null,null,null,{"$f":"IF(OR(NOT(ISNUMBER(E128)),NOT(ISNUMBER(D128)),E128=0,D128=0),\"\",IF(E128/D128<I128,\"REALISATIE: De gemiddelde kosten zijn lager dan het laagste tarief\",IF(E128/D128>J128,\"REALISATIE: De gemiddelde kosten zijn hoger dan het hoogste tarief\",\"\")))","v":""},null,126.98,126.98]
[" Voortgezet verblijf met structuur en uitgebreide begeleiding",null,"2BGGZ",null,null,null,"",null,198.14,198.14]
[" Voortgezet verblijf met intensieve begeleiding",null,"3BGGZ",null,null,null,"",null,210.34,210.34]
[" Voortgezet verblijf met intensieve begeleiding en verzorging",null,"4BGGZ",null,null,null,"",null,222.55,222.55]
[" Voortgezet verblijf met intensieve begeleiding en gedragsregulering",null,"5BGGZ",null,null,null,"",null,233.41,233.41]
[" Voortgezet verblijf met intensieve begeleiding en intensieve \n verpleging en verzorging",null,"6BGGZ",null,null,null,"",null,366.18,366.18]
[" Beveiligd voortgezet verblijf vanwege extreme gedragsproblematiek \n met zeer intensieve begeleiding",null,"7BGGZ",null,null,null,"",null,429.68,429.68]
[" TOTAAL GGZ B-groep, INCLUSIEF DAGBESTEDING",null,null,null,{"$f":"SUM(E128:E134)","v":0}]
[]
[" GGZ B-GROEP, EXCLUSIEF DAGBESTEDING",null,"NZa-\ncode","REALISATIE"]
[null,null,null,"AANTAL","BEDRAG"]
[" Voortgezet verblijf met begeleiding",null,"1BGGZ",null,null,null,{"$f":"IF(OR(NOT(ISNUMBER(E139)),NOT(ISNUMBER(D139)),E139=0,D139=0),\"\",IF(E139/D139<I139,\"REALISATIE: De gemiddelde kosten zijn lager dan het laagste tarief\",IF(E139/D139>J139,\"REALISATIE: De gemiddelde kosten zijn hoger dan het hoogste tarief\",\"\")))","v":""},null,97.62,97.62]
[" Voortgezet verblijf met structuur en uitgebreide begeleiding",null,"2BGGZ",null,null,null,"",null,159.52000000000001,159.52000000000001]
[" Voortgezet verblijf met intensieve begeleiding",null,"3BGGZ",null,null,null,"",null,169.55,169.55]
[" Voortgezet verblijf met intensieve begeleiding en verzorging",null,"4BGGZ",null,null,null,"",null,175.06,175.06]
[" Voortgezet verblijf met intensieve begeleiding en gedragsregulering",null,"5BGGZ",null,null,null,"",null,192.39,192.39]
[" Voortgezet verblijf met intensieve begeleiding en intensieve \n verpleging en verzorging",null,"6BGGZ",null,null,null,"",null,333.35,333.35]
[" Beveiligd voortgezet verblijf vanwege extreme gedragsproblematiek \n met zeer intensieve begeleiding",null,"7BGGZ",null,null,null,"",null,371.42,371.42]
[" TOTAAL GGZ B-groep, EXCLUSIEF DAGBESTEDING",null,null,null,{"$f":"SUM(E139:E145)","v":0}]

{"sheet":"Zorg via CAK - ZZV","index":7,"n_rows":42,"n_cols":10,"rows_kept":42,"cut":false,"hidden":false,"merged":[[41,0,41,2],[5,3,5,4],[8,0,12,0],[39,0,40,0],[5,8,6,9],[13,0,16,0],[17,0,27,0],[28,0,38,0],[5,2,6,2],[5,0,6,0],[5,1,6,1]]}
[" KWARTAALSTAAT Wlz 2019 4e KWARTAAL - Wlz-REGIO"]
[{"$f":"CONCATENATE(\" UZOVI: \",NAW_gegevens!naw_uzovi_zorgkantoor,\"   Wlz-regio: \",NAW_gegevens!naw_naam_zorgkantoor,\"   Wlz-uitvoerder: \",NAW_gegevens!$B$6,)","v":" UZOVI: 5501   Wlz-regio: GRONINGEN   Wlz-uitvoerder: Stichting Zorgkantoor Menzis"}]
[]
[" SPECIFICATIES ZORGKOSTEN EN PRODUCTIE, VIA CAK"]
[" ZORG ZONDER VERBLIJF, VERPLEGING EN VERZORGING, GEHANDICAPTENZORG, GEESTELIJKE GEZONDHEIDSZORG"]
[" CATEGORIE"," SUB-CATEGORIE","NZa-\ncode","REALISATIE",null,null,null,null,"BR/REG-19120a (actief)"]
[null,null,null,"AANTAL","BEDRAG"]
[" Huishoudelijke hulp"," Huishoudelijke hulp","H117",null,null,null,{"$f":"IF(OR((D8=\"\"),(E8=\"\")),\"\",IF(OR(E8=0,(E8*D8)<10),\"\",IF(ABS((E8/D8)/J8*100-100)>10,CONCATENATE(\"REALISATIE: Kosten (bedrag per uur) wijken \",ROUND(((E8/D8)/J8)*100-100,2),\"% af van het NZa-tarief.\"),\"\")))","v":""},null,"H117",32.39]
[" PV"," Persoonlijke verzorging","H126",null,null,null,"",null,"H126",54.96]
["PV"," Persoonlijke verzorging extra","H127",null,null,null,"",null,"H127",58.87]
["PV"," Persoonlijke verzorging speciaal","H120",null,null,null,"",null,"H120",71.48]
[null," Persoonlijke verzorging farmaceutische telezorg","H137",null,null,null,"",null,"H137",54.96]
[null," Persoonlijke verzorging zorg op afstand aanvullend","H136",null,null,null,"",null,"H136",54.96]
[" VP"," Verpleging","H104",null,null,null,"",null,"H104",71.48]
["VP"," Verpleging extra","H128",null,null,null,"",null,"H128",76.569999999999993]
["VP"," Verpleging speciaal","H106",null,null,null,"",null,"H106",89.66]
[null," Verpleging zorg op afstand aanvullend","H107",null,null,null,"",null,"H107",71.48]
[" Begeleiding"," Begeleiding","H300",null,null,null,"",null,"H300",61.56]
["Begeleiding"," Begeleiding extra","H150",null,null,null,"",null,"H150",65.930000000000007]
["Begeleiding"," Begeleiding speciaal 1 (nah)","H152",null,null,null,"",null,"H152",98.2]
["Begeleiding"," Begeleiding speciaal 2 (psy)","H153",null,null,null,"",null,"H153",105.29]
["Begeleiding"," Begeleiding zg visueel","H301",null,null,null,"",null,"H301",109.32]
["Begeleiding"," Begeleiding zg auditief","H303",null,null,null,"",null,"H303",91.29]
["Begeleiding"," Begeleiding speciaal 2 (zg) visueel","H302",null,null,null,"",null,"H302",134.36000000000001]
["Begeleiding"," Begeleiding speciaal 2 (zg) auditief","H304",null,null,null,"",null,"H304",116.36]
["Begeleiding"," Nachtverzorging","H132",null,null,null,"",null,"H132",51.68]
["Begeleiding"," Nachtverpleging","H180",null,null,null,"",null,"H180",97.16]
[null," Begeleiding zorg op afstand aanvullend","H305",null,null,null,"",null,"H305",61.56]
[" Behandeling"," Behandeling som, pg, vg, lg, zg (SO)","H335",null,null,null,"",null,"H335",157.27000000000001]
[null," Behandeling som, pg, vg, lg, zg (AVG)","H336",null,null,null,"",null,"H336",157.27000000000001]
["BH"," Behandeling gedragswetenschapper","H329",null,null,null,"",null,"H329",126.07]
["BH"," Behandeling paramedisch","H330",null,null,null,"",null,"H330",89.55]
[null," Behandeling IOG lvg","H334",null,null,null,"",null,"H334",115.32]
["BH"," Behandeling lvg","H325",null,null,null,"",null,"H325",127.83]
["BH"," Behandeling basis sglvg-traject","H326",null,null,null,"",null,"H326",127.83]
["BH"," Behandeling basis sglvg deeltijd","H327",null,null,null,"",null,"H327",127.83]
["BH"," Behandeling Families First (j)lvg","H331",null,null,null,"",null,"H331",132.69999999999999]
["BH"," Behandeling visueel","H332",null,null,null,"",null,"H332",144.87]
["BH"," Behandeling auditief","H333",null,null,null,"",null,"H333",128.44]
[" Reiskosten"," Reiskosten prestaties behandeling (H325 t/m H331 \n en H334 t/m H336)","H321",null,null,null,"",null,"H321",29.57]
[null," Reiskosten prestaties behandeling (H332 en H333)","H337",null,null,null,"",null,"H337",23.99]
[" TOTAAL ZORG ZONDER VERBLIJF",null,null,null,{"$f":"SUM(E8:E41)","v":0}]

{"sheet":"Volledig pakket thuis","index":8,"n_rows":113,"n_cols":9,"rows_kept":113,"cut":false,"hidden":false,"merged":[[32,0,33,0],[32,1,33,1],[32,2,32,3],[32,7,32,8],[42,0,42,1],[20,0,21,0],[20,1,21,1],[20,2,20,3],[20,7,20,8],[30,0,30,1],[5,1,6,1],[5,2,5,3],[5,7,5,8],[5,0,6,0],[17,0,17,1],[44,0,45,0],[44,1,45,1],[44,2,44,3],[44,7,44,8],[51,0,51,1],[58,0,59,0],[58,1,59,1],[58,2,58,3],[58,7,58,8],[53,0,54,0],[53,1,54,1],[53,2,53,3],[53,7,53,8],[56,0,56,1],[67,0,67,1],[80,0,81,0],[80,1,81,1],[80,2,80,3],[80,7,80,8],[69,0,70,0],[69,1,70,1],[69,2,69,3],[69,7,69,8],[78,0,78,1],[86,0,86,1],[88,0,89,0],[88,1,89,1],[88,2,88,3],[88,7,88,8],[94,0,94,1],[96,0,97,0],[96,1,97,1],[96,2,96,3],[96,7,96,8],[112,0,112,1],[105,7,105,8],[103,0,103,1],[105,0,106,0],[105,1,106,1],[105,2,105,3]]}
[" KWARTAALSTAAT Wlz 2019 4e KWARTAAL - Wlz-REGIO"]
[{"$f":"CONCATENATE(\" UZOVI: \",NAW_gegevens!naw_uzovi_zorgkantoor,\"   Wlz-regio: \",NAW_gegevens!naw_naam_zorgkantoor,\"   Wlz-uitvoerder: \",NAW_gegevens!$B$6,)","v":" UZOVI: 5501   Wlz-regio: GRONINGEN   Wlz-uitvoerder: Stichting Zorgkantoor Menzis"}]
[]
[" SPECIFICATIES ZORGKOSTEN EN PRODUCTIE, VIA CAK"]
[" ZORGZWAARTEPAKKET VOLLEDIG PAKKET THUIS VERPLEGING EN VERZORGING"]
[" ZZP VPT VERPLEGING EN VERZORGING, INCLUSIEF DAGBESTEDING","NZA- code","REALISATIE",null,null,null,null,"BR/REG-19121c (actief)"]
[null,null,"AANTAL","BEDRAG",null,null,null,"Niet toegelaten","Toegelaten"]
[" Beschut wonen met enige begeleiding","1VV",null,null,null,{"$f":"IF(OR(NOT(ISNUMBER(C8)),NOT(ISNUMBER(D8)),C8=0,D8=0),\"\",IF(D8/C8<H8,\"REALISATIE: De gemiddelde kosten zijn lager dan het laagste tarief\",IF(D8/C8>I8,\"REALISATIE: De gemiddelde kosten zijn hoger dan het hoogste tarief\",\"\")))","v":""},null,70.87,70.87]
[" Beschut wonen met begeleiding en verzorging","2VV",null,null,null,{"$f":"IF(OR(NOT(ISNUMBER(C9)),NOT(ISNUMBER(D9)),C9=0,D9=0),\"\",IF(D9/C9<H9,\"REALISATIE: De gemiddelde kosten zijn lager dan het laagste tarief\",IF(D9/C9>I9,\"REALISATIE: De gemiddelde kosten zijn hoger dan het hoogste tarief\",\"\")))","v":""},null,93.85,93.85]
[" Beschut wonen met begeleiding en intensieve verzorging","3VV",null,null,null,"",null,124.29,146.31]
[" Beschut wonen met intensieve begeleiding en uitgebreide verzorging","4VV",null,null,null,"",null,133.83000000000001,156.44999999999999]
[" Beschermd wonen met intensieve dementiezorg","5VV",null,null,null,"",null,184.08,208.48]
[" Beschermd wonen met intensieve verzorging en verpleging","6VV",null,null,null,"",null,184.44,208.83]
[" Beschermd wonen met zeer intensieve zorg, vanwege specifieke aandoeningen, met nadruk op begeleiding","7VV",null,null,null,"",null,215.67,248.6]
[" Beschermd wonen met zeer intensieve zorg, vanwege specifieke aandoeningen, met nadruk op verzorging/verpleging","8VV",null,null,null,"",null,249.59,282.45]
[" Herstelgerichte verpleging en verzorging","9BVV",null,null,null,"",null,178.75,245.85]
[" Beschermd verblijf met intensieve palliatief-terminale zorg","10VV",null,null,null,"",null,272.35000000000002,305.32]
[" TOTAAL ZZP VPT VERPLEGING EN VERZORGING, INCLUSIEF DAGBESTEDING",null,null,{"$f":"SUM(D8:D17)","v":0}]
[]
[" ZORGZWAARTEPAKKET VOLLEDIG PAKKET THUIS GEHANDICAPTENZORG"]
[" ZZP VPT VERSTANDELIJK GEHANDICAPTEN, INCLUSIEF DAGBESTEDING","NZA- code","REALISATIE",null,null,null,null,"BR/REG-19121c (actief)"]
[null,null,"AANTAL","BEDRAG",null,null,null,"Niet toegelaten","Toegelaten"]
[" Wonen met enige begeleiding","1VG",null,null,null,{"$f":"IF(OR(NOT(ISNUMBER(C23)),NOT(ISNUMBER(D23)),C23=0,D23=0),\"\",IF(D23/C23<H23,\"REALISATIE: De gemiddelde kosten zijn lager dan het laagste tarief\",IF(D23/C23>I23,\"REALISATIE: De gemiddelde kosten zijn hoger dan het hoogste tarief\",\"\")))","v":""},null,96.42,96.42]
[" Wonen met begeleiding","2VG",null,null,null,{"$f":"IF(OR(NOT(ISNUMBER(C24)),NOT(ISNUMBER(D24)),C24=0,D24=0),\"\",IF(D24/C24<H24,\"REALISATIE: De gemiddelde kosten zijn lager dan het laagste tarief\",IF(D24/C24>I24,\"REALISATIE: De gemiddelde kosten zijn hoger dan het hoogste tarief\",\"\")))","v":""},null,107.76,107.76]
[" Wonen met begeleiding en verzorging","3VG",null,null,null,"",null,131.49,154.71]
[" Wonen met begeleiding en intensieve verzorging","4VG",null,null,null,"",null,151.54,179.37]
[" Wonen met intensieve begeleiding en intensieve verzorging","5VG",null,null,null,"",null,210.93,245.15]
[" Wonen met intensieve begeleiding, verzorging en gedragsregulering","6VG",null,null,null,"",null,175.6,208.76]
[" (Besloten) wonen met zeer intensieve begeleiding, verzorging en gedragsregulering","7VG",null,null,null,"",null,230.85,238.36]
[" Wonen met begeleiding en volledige verzorging en verpleging","8VG",null,null,null,"",null,259.8,302.04000000000002]
[" TOTAAL ZZP VPT VERSTANDELIJK GEHANDICAPTEN, INCLUSIEF DAGBESTEDING",null,null,{"$f":"SUM(D23:D30)","v":0}]
[]
[" ZZP VPT VERSTANDELIJK GEHANDICAPTEN, EXCLUSIEF DAGBESTEDING","NZA- code","REALISATIE",null,null,null,null,"BR/REG-19121c (actief)"]
[null,null,"AANTAL","BEDRAG",null,null,null,"Niet toegelaten","Toegelaten"]
[" Wonen met enige begeleiding","1VG",null,null,null,{"$f":"IF(OR(NOT(ISNUMBER(C35)),NOT(ISNUMBER(D35)),C35=0,D35=0),\"\",IF(D35/C35<H35,\"REALISATIE: De gemiddelde kosten zijn lager dan het laagste tarief\",IF(D35/C35>I35,\"REALISATIE: De gemiddelde kosten zijn hoger dan het hoogste tarief\",\"\")))","v":""},null,55.07,55.07]
[" Wonen met begeleiding","2VG",null,null,null,{"$f":"IF(OR(NOT(ISNUMBER(C36)),NOT(ISNUMBER(D36)),C36=0,D36=0),\"\",IF(D36/C36<H36,\"REALISATIE: De gemiddelde kosten zijn lager dan het laagste tarief\",IF(D36/C36>I36,\"REALISATIE: De gemiddelde kosten zijn hoger dan het hoogste tarief\",\"\")))","v":""},null,67.61,67.61]
[" Wonen met begeleiding en verzorging","3VG",null,null,null,"",null,93.29,115.47]
[" Wonen met begeleiding en intensieve verzorging","4VG",null,null,null,"",null,114.18,152.13]
[" Wonen met intensieve begeleiding en intensieve verzorging","5VG",null,null,null,"",null,152.72999999999999,184.48]
[" Wonen met intensieve begeleiding, verzorging en gedragsregulering","6VG",null,null,null,"",null,119.01,161.16]
[" (Besloten) wonen met zeer intensieve begeleiding, verzorging en gedragsregulering","7VG",null,null,null,"",null,165.87,239.28]
[" Wonen met begeleiding en volledige verzorging en verpleging","8VG",null,null,null,"",null,179.99,223.73]
[" TOTAAL ZZP VPT VERSTANDELIJK GEHANDICAPTEN, EXCLUSIEF DAGBESTEDING",null,null,{"$f":"SUM(D35:D42)","v":0}]
[]
[" ZZP VPT LICHT VERSTANDELIJK GEHANDICAPTEN, INCL. DAGBESTEDING","NZA- code","REALISATIE",null,null,null,null,"BR/REG-19121c (actief)"]
[null,null,"AANTAL","BEDRAG",null,null,null,"Niet toegelaten","Toegelaten"]
[" Wonen met enige behandeling en begeleiding","1LVG",null,null,null,{"$f":"IF(OR(NOT(ISNUMBER(C47)),NOT(ISNUMBER(D47)),C47=0,D47=0),\"\",IF(D47/C47<H47,\"REALISATIE: De gemiddelde kosten zijn lager dan het laagste tarief\",IF(D47/C47>I47,\"REALISATIE: De gemiddelde kosten zijn hoger dan het hoogste tarief\",\"\")))","v":""},null,181.71,181.71]
[" Wonen met behandeling en begeleiding","2LVG",null,null,null,"",null,223.03,223.03]
[" Wonen met intensieve behandeling en begeleiding, kleine groep","3LVG",null,null,null,"",null,288.07,288.07]
[" Wonen met zeer intensieve behandeling en begeleiding","4LVG",null,null,null,"",null,336.21,336.21]
[" Besloten wonen met zeer intensieve behandeling en begeleiding","5LVG",null,null,null,"",null,318.49,318.49]
[" TOTAAL ZZP VPT LICHT VERSTANDELIJK GEHANDICAPTEN, INCLUSIEF DAGBESTEDING",null,null,{"$f":"SUM(D47:D51)","v":0}]
[]
[" ZZP VPT STERK GEDRAGSGESTOORDE LICHT VERSTANDELIJK GEHANDICAPTEN, INCLUSIEF DAGBESTEDING","NZA- code","REALISATIE",null,null,null,null,"BR/REG-19121c (actief)"]
[null,null,"AANTAL","BEDRAG",null,null,null,"Niet toegelaten","Toegelaten"]
[" Behandeling in een SGLVG behandelcentrum","1SGLVG",null,null,null,{"$f":"IF(OR(NOT(ISNUMBER(C56)),NOT(ISNUMBER(D56)),C56=0,D56=0),\"\",IF(D56/C56<H56,\"REALISATIE: De gemiddelde kosten zijn lager dan het laagste tarief\",IF(D56/C56>I56,\"REALISATIE: De gemiddelde kosten zijn hoger dan het hoogste tarief\",\"\")))","v":""},null,348.95,348.95]
[" TOTAAL ZZP VPT STERK GEDRAGSGESTOORDE LICHT VERSTANDELIJK GEHANDICAPTEN, INCLUSIEF DAGBESTEDING",null,null,{"$f":"SUM(D56)","v":0}]
[]
[" ZZP VPT LICHAMELIJK GEHANDICAPTEN, INCLUSIEF DAGBESTEDING","NZA- code","REALISATIE",null,null,null,null,"BR/REG-19121c (actief)"]
[null,null,"AANTAL","BEDRAG",null,null,null,"Niet toegelaten","Toegelaten"]
[" Wonen met enige begeleiding en enige verzorging","1LG",null,null,null,{"$f":"IF(OR(NOT(ISNUMBER(C61)),NOT(ISNUMBER(D61)),C61=0,D61=0),\"\",IF(D61/C61<H61,\"REALISATIE: De gemiddelde kosten zijn lager dan het laagste tarief\",IF(D61/C61>I61,\"REALISATIE: De gemiddelde kosten zijn hoger dan het hoogste tarief\",\"\")))","v":""},null,137.49,137.49]
[" Wonen met begeleiding en enige verzorging","2LG",null,null,null,"",null,163.84,163.84]
[" Wonen met enige begeleiding en verzorging","3LG",null,null,null,"",null,150.46,170.02]
[" Wonen met begeleiding en verzorging","4LG",null,null,null,"",null,190.47,212.4]
[" Wonen met begeleiding en intensieve verzorging","5LG",null,null,null,"",null,200.74,237.1]
[" Wonen met intensieve begeleiding en intensieve verzorging","6LG",null,null,null,"",null,245.52,297.57]
[" Wonen met zeer intensieve begeleiding en zeer intensieve verzorging","7LG",null,null,null,"",null,273.77999999999997,308.93]
[" TOTAAL ZZP VPT LICHAMELIJK GEHANDICAPTEN, INCLUSIEF DAGBESTEDING",null,null,{"$f":"SUM(D61:D67)","v":0}]
[]
[" ZZP VPT LICHAMELIJK GEHANDICAPTEN, EXCLUSIEF DAGBESTEDING","NZA- code","REALISATIE",null,null,null,null,"BR/REG-19121c (actief)"]
[null,null,"AANTAL","BEDRAG",null,null,null,"Niet toegelaten","Toegelaten"]
[" Wonen met enige begeleiding en enige verzorging","1LG",null,null,null,{"$f":"IF(OR(NOT(ISNUMBER(C72)),NOT(ISNUMBER(D72)),C72=0,D72=0),\"\",IF(D72/C72<H72,\"REALISATIE: De gemiddelde kosten zijn lager dan het laagste tarief\",IF(D72/C72>I72,\"REALISATIE: De gemiddelde kosten zijn hoger dan het hoogste tarief\",\"\")))","v":""},null,80.180000000000007,80.180000000000007]
[" Wonen met begeleiding en enige verzorging","2LG",null,null,null,"",null,116.96,116.96]
[" Wonen met enige begeleiding en verzorging","3LG",null,null,null,"",null,90.66,133.97999999999999]
[" Wonen met begeleiding en verzorging","4LG",null,null,null,"",null,142.11000000000001,178.62]
[" Wonen met begeleiding en intensieve verzorging","5LG",null,null,null,"",null,143.71,181.07]
[" Wonen met intensieve begeleiding en intensieve verzorging","6LG",null,null,null,"",null,199.56,250.41]
[" Wonen met zeer intensieve begeleiding en zeer intensieve verzorging","7LG",null,null,null,"",null,226.16,280.49]
[" TOTAAL ZZP VPT LICHAMELIJK GEHANDICAPTEN, EXCLUSIEF DAGBESTEDING",null,null,{"$f":"SUM(D72:D78)","v":0}]
[]
[" ZZP VPT AUDITIEF EN COMMUNICATIEF GEHANDICAPTEN, INCLUSIEF DAGBESTEDING","NZA- code","REALISATIE",null,null,null,null,"BR/REG-19121c (actief)"]
[null,null,"AANTAL","BEDRAG",null,null,null,"Niet toegelaten","Toegelaten"]
[" Wonen met begeleiding en enige verzorging","1ZGAUD",null,null,null,{"$f":"IF(OR(NOT(ISNUMBER(C83)),NOT(ISNUMBER(D83)),C83=0,D83=0),\"\",IF(D83/C83<H83,\"REALISATIE: De gemiddelde kosten zijn lager dan het laagste tarief\",IF(D83/C83>I83,\"REALISATIE: De gemiddelde kosten zijn hoger dan het hoogste tarief\",\"\")))","v":""},null,173.86,181.28]
[" Wonen met intensieve begeleiding en verzorging","2ZGAUD",null,null,null,"",null,325.66000000000003,357.72]
[" Wonen met intensieve begeleiding en intensieve verzorging","3ZGAUD",null,null,null,"",null,358.84,422.19]
[" Wonen met intensieve begeleiding en enige verzorging","4ZGAUD",null,null,null,"",null,225.79,249.1]
[" TOTAAL ZZP VPT AUDITIEF EN COMMUNICATIEF GEHANDICAPTEN, INCLUSIEF DAGBESTEDING",null,null,{"$f":"SUM(D83:D86)","v":0}]
[]
[" ZZP VPT AUDITIEF EN COMMUNICATIEF GEHANDICAPTEN, EXCLUSIEF DAGBESTEDING","NZA- code","REALISATIE",null,null,null,null,"BR/REG-19121c (actief)"]
[null,null,"AANTAL","BEDRAG",null,null,null,"Niet toegelaten","Toegelaten"]
[" Wonen met begeleiding en enige verzorging","1ZGAUD",null,null,null,{"$f":"IF(OR(NOT(ISNUMBER(C91)),NOT(ISNUMBER(D91)),C91=0,D91=0),\"\",IF(D91/C91<H91,\"REALISATIE: De gemiddelde kosten zijn lager dan het laagste tarief\",IF(D91/C91>I91,\"REALISATIE: De gemiddelde kosten zijn hoger dan het hoogste tarief\",\"\")))","v":""},null,135.04,127.51]
[" Wonen met intensieve begeleiding en verzorging","2ZGAUD",null,null,null,"",null,275.89999999999998,280.23]
[" Wonen met intensieve begeleiding en intensieve verzorging","3ZGAUD",null,null,null,"",null,315.83999999999997,322.13]
[" Wonen met intensieve begeleiding en enige verzorging","4ZGAUD",null,null,null,"",null,162.69999999999999,186.02]
[" TOTAAL ZZP VPT AUDITIEF EN COMMUNICATIEF GEHANDICAPTEN, EXCLUSIEF DAGBESTEDING",null,null,{"$f":"SUM(D91:D94)","v":0}]
[]
[" ZZP VPT VISUEEL GEHANDICAPTEN, INCLUSIEF DAGBESTEDING","NZA- code","REALISATIE",null,null,null,null,"BR/REG-19121c (actief)"]
[null,null,"AANTAL","BEDRAG",null,null,null,"Niet toegelaten","Toegelaten"]
[" Wonen met enige begeleiding en enige verzorging","1ZGVIS",null,null,null,{"$f":"IF(OR(NOT(ISNUMBER(C99)),NOT(ISNUMBER(D99)),C99=0,D99=0),\"\",IF(D99/C99<H99,\"REALISATIE: De gemiddelde kosten zijn lager dan het laagste tarief\",IF(D99/C99>I99,\"REALISATIE: De gemiddelde kosten zijn hoger dan het hoogste tarief\",\"\")))","v":""},null,128.65,128.65]
[" Wonen met begeleiding en enige verzorging","2ZGVIS",null,null,null,"",null,157.12,157.12]
[" Wonen met intensieve begeleiding en verzorging","3ZGVIS",null,null,null,"",null,181.81,195.81]
[" Wonen met intensieve begeleiding en intensieve verzorging","4ZGVIS",null,null,null,"",null,232.75,250.64]
[" Wonen met zeer intensieve begeleiding en zeer intensieve verzorging","5ZGVIS",null,null,null,"",null,251.72,273.91000000000003]
[" TOTAAL ZZP VPT VISUEEL GEHANDICAPTEN, INCLUSIEF DAGBESTEDING",null,null,{"$f":"SUM(D99:D103)","v":0}]
[]
[" ZZP VPT VISUEEL GEHANDICAPTEN, EXCLUSIEF DAGBESTEDING","NZA- code","REALISATIE",null,null,null,null,"BR/REG-19121c (actief)"]
[null,null,"AANTAL","BEDRAG",null,null,null,"Niet toegelaten","Toegelaten"]
[" Wonen met enige begeleiding en enige verzorging","1ZGVIS",null,null,null,{"$f":"IF(OR(NOT(ISNUMBER(C108)),NOT(ISNUMBER(D108)),C108=0,D108=0),\"\",IF(D108/C108<H108,\"REALISATIE: De gemiddelde kosten zijn lager dan het laagste tarief\",IF(D108/C108>I108,\"REALISATIE: De gemiddelde kosten zijn hoger dan het hoogste tarief\",\"\")))","v":""},null,74.63,74.63]
[" Wonen met begeleiding en enige verzorging","2ZGVIS",null,null,null,"",null,110.64,110.64]
[" Wonen met intensieve begeleiding en verzorging","3ZGVIS",null,null,null,"",null,135.34,149.32]
[" Wonen met intensieve begeleiding en intensieve verzorging","4ZGVIS",null,null,null,"",null,171.65,189.53]
[" Wonen met zeer intensieve begeleiding en zeer intensieve verzorging","5ZGVIS",null,null,null,"",null,188.72,210.91]
[" TOTAAL ZZP VPT VISUEEL GEHANDICAPTEN, EXCLUSIEF DAGBESTEDING",null,null,{"$f":"SUM(D108:D112)","v":0}]

{"sheet":"Dagbesteding en vervoer","index":9,"n_rows":28,"n_cols":8,"rows_kept":28,"cut":false,"hidden":false,"merged":[[5,0,6,0],[16,0,17,0],[25,0,26,0],[5,6,5,7],[16,6,16,7],[25,1,25,2],[5,1,5,2],[16,1,16,2]]}
[" KWARTAALSTAAT Wlz 2019 4e KWARTAAL - Wlz-REGIO"]
[{"$f":"CONCATENATE(\" UZOVI: \",NAW_gegevens!naw_uzovi_zorgkantoor,\"   Wlz-regio: \",NAW_gegevens!naw_naam_zorgkantoor,\"   Wlz-uitvoerder: \",NAW_gegevens!$B$6,)","v":" UZOVI: 5501   Wlz-regio: GRONINGEN   Wlz-uitvoerder: Stichting Zorgkantoor Menzis"}]
[]
[" SPECIFICATIES ZORGKOSTEN EN PRODUCTIE, VIA CAK"]
[" ZORG ZONDER VERBLIJF, DAGBESTEDING"]
[" CATEGORIE","REALISATIE",null,null,null,null,"BR/REG-19120a (actief)"]
[null,"AANTAL","BEDRAG",null,null,null,"Laagste tarief","Hoogste tarief"]
[" Dagbesteding extramuraal Ouderen (TOTAAL)",null,null,null,{"$f":"IF(OR(NOT(ISNUMBER(C8)),NOT(ISNUMBER(B8)),C8=0,B8=0),\"\",IF(C8/B8<G8,\"REALISATIE: De gemiddelde kosten zijn lager dan het laagste tarief\",IF(C8/B8>H8,\"REALISATIE: De gemiddelde kosten zijn hoger dan het hoogste tarief\",\"\")))","v":""},null,39.4,73.069999999999993]
[" Dagbesteding extramuraal VG (TOTAAL)",null,null,null,{"$f":"IF(OR(NOT(ISNUMBER(C9)),NOT(ISNUMBER(B9)),C9=0,B9=0),\"\",IF(C9/B9<G9,\"REALISATIE: De gemiddelde kosten zijn lager dan het laagste tarief\",IF(C9/B9>H9,\"REALISATIE: De gemiddelde kosten zijn hoger dan het hoogste tarief\",\"\")))","v":""},null,37.32,177.37]
[" Dagbesteding extramuraal LG (TOTAAL)",null,null,null,"",null,53.36,106.72]
[" Dagbesteding extramuraal ZG auditief (TOTAAL)",null,null,null,"",null,53.52,120.68]
[" Dagbesteding extramuraal ZG visueel (TOTAAL)",null,null,null,"",null,41.87,98.13]
[" TOTAAL ZORG ZONDER VERBLIJF, DAGBESTEDING",null,{"$f":"SUM(C8:C12)","v":0}]
[" Vervoer dagbesteding zonder verblijf (TOTAAL)",null,null,null,"",null,7.35,66.069999999999993]
[]
[" ZORG MET VERBLIJF, GEHANDICAPTENZORG, DAGBESTEDING"]
[" CATEGORIE","REALISATIE",null,null,null,null,"BR/REG-19121c (actief)"]
[null,"AANTAL","BEDRAG",null,null,null,"Laagste tarief","Hoogste tarief"]
[" Dagbesteding VG (TOTAAL)",null,null,null,{"$f":"IF(OR(NOT(ISNUMBER(C19)),NOT(ISNUMBER(B19)),C19=0,B19=0),\"\",IF(C19/B19<G19,\"REALISATIE: De gemiddelde kosten zijn lager dan het laagste tarief\",IF(C19/B19>H19,\"REALISATIE: De gemiddelde kosten zijn hoger dan het hoogste tarief\",\"\")))","v":""},null,32.049999999999997,86.92]
[" Dagbesteding LG (TOTAAL)",null,null,null,{"$f":"IF(OR(NOT(ISNUMBER(C20)),NOT(ISNUMBER(B20)),C20=0,B20=0),\"\",IF(C20/B20<G20,\"REALISATIE: De gemiddelde kosten zijn lager dan het laagste tarief\",IF(C20/B20>H20,\"REALISATIE: De gemiddelde kosten zijn hoger dan het hoogste tarief\",\"\")))","v":""},null,48,59.58]
[" Dagbesteding ZG auditief (TOTAAL)",null,null,null,"",null,39.700000000000003,58.58]
[" Dagbesteding ZG visueel (TOTAAL)",null,null,null,"",null,35.799999999999997,58.58]
[" TOTAAL ZORG MET VERBLIJF, GEHANDICAPTENZORG, DAGBESTEDING",null,{"$f":"SUM(C19:C22)","v":0}]
[]
[" ZORG MET VERBLIJF, VERVOER"]
[" CATEGORIE","REALISATIE"]
[null,"AANTAL","BEDRAG"]
[" Vervoer dagbesteding met verblijf gehandicaptenzorg (TOTAAL)",null,null,null,{"$f":"IF(OR(NOT(ISNUMBER(C28)),NOT(ISNUMBER(B28)),C28=0,B28=0),\"\",IF(C28/B28<G28,\"REALISATIE: De gemiddelde kosten zijn lager dan het laagste tarief\",IF(C28/B28>H28,\"REALISATIE: De gemiddelde kosten zijn hoger dan het hoogste tarief\",\"\")))","v":""},null,7.35,66.069999999999993]

{"sheet":"PGB","index":10,"n_rows":120,"n_cols":4,"rows_kept":120,"cut":false,"hidden":false,"merged":[[4,0,4,2]]}
[" KWARTAALSTAAT Wlz 2019 4e KWARTAAL - Wlz-REGIO"]
[{"$f":"CONCATENATE(\" UZOVI: \",NAW_gegevens!naw_uzovi_zorgkantoor,\"   Wlz-regio: \",NAW_gegevens!naw_naam_zorgkantoor,\"   Wlz-uitvoerder: \",NAW_gegevens!$B$6,)","v":" UZOVI: 5501   Wlz-regio: GRONINGEN   Wlz-uitvoerder: Stichting Zorgkantoor Menzis"}]
[]
[]
[" SPECIFICATIE VAN HET TOTAAL AANTAL PGB-AANVRAGERS MET BEWUSTE-KEUZE \n GESPREK(KEN) 2019"]
[null,null,"AANTAL"]
["Totaal aantal nieuwe PGB-aanvragers met bewuste-keuze gesprek(ken)"]
[]
[]
[]
[]
[]
[]
[]
[]
[]
[]
[]
[]
[]
[]
[]
[]
[]
[]
[]
[]
[]
[]
[]
[]
[]
[]
[]
[]
[]
[]
[]
[]
[]
[]
[]
[]
[]
[]
[]
[]
[]
[]
[]
[]
[]
[]
[]
[]
[]
[]
[]
[]
[]
[]
[]
[]
[]
[]
[]
[]
[]
[null,null,null,"BR/REG-18143c (actief)"]
[]
[]
[]
[]
[]
[]
[]
[]
[]
[]
[]
[]
[]
[]
[]
[]
[null,null,null,"BR/REG-18143c (actief)"]
[]
[]
[]
[]
[]
[]
[]
[]
[]
[]
[]
[]
[]
[]
[]
[]
[null,null,null,"BR/REG-18143c (actief)"]
[]
[]
[]
[]
[]
[]
[]
[]
[]
[]
[]
[]
[]
[]
[]
[]
[null,null,null,"BR/REG-18143c (actief)"]

{"sheet":"Beheerskosten","index":11,"n_rows":128,"n_cols":6,"rows_kept":128,"cut":false,"hidden":false,"merged":[[5,0,5,3],[6,0,6,3],[7,0,7,3],[8,0,8,3],[9,0,9,3]]}
[" KWARTAALSTAAT Wlz 2019 4e KWARTAAL - Wlz-REGIO"]
[{"$f":"CONCATENATE(\" UZOVI: \",NAW_gegevens!naw_uzovi_zorgkantoor,\"   Wlz-regio: \",NAW_gegevens!naw_naam_zorgkantoor,\"   Wlz-uitvoerder: \",NAW_gegevens!$B$6,)","v":" UZOVI: 5501   Wlz-regio: GRONINGEN   Wlz-uitvoerder: Stichting Zorgkantoor Menzis"}]
[]
[]
[" SPECIFICATIE BEHEERSKOSTEN"]
[" TOTAAL BEHEERSKOSTEN (INCLUSIEF AZR)",null,null,null,"BEDRAG"]
[" Kosten intern personeel"]
[" Kosten extern personeel"]
[" Overige beheerskosten"]
[" TOTAAL BEHEERSKOSTEN",null,null,null,{"$f":"SUM(E7:E9)","v":0}]
[]
[]
[]
[]
[]
[]
[]
[]
[]
[]
[]
[]
[]
[]
[]
[]
[]
[]
[]
[]
[]
[]
[]
[]
[]
[]
[]
[]
[]
[]
[]
[]
[]
[]
[]
[]
[]
[]
[]
[]
[]
[]
[]
[]
[]
[]
[]
[]
[]
[]
[]
[]
[]
[]
[]
[]
[]
[]
[]
[]
[]
[]
[]
[]
[]
[]
[null,null,null,null,null,"BR/REG-18143c (actief)"]
[]
[]
[]
[]
[]
[]
[]
[]
[]
[]
[]
[]
[]
[]
[]
[]
[null,null,null,null,null,"BR/REG-18143c (actief)"]
[]
[]
[]
[]
[]
[]
[]
[]
[]
[]
[]
[]
[]
[]
[]
[]
[null,null,null,null,null,"BR/REG-18143c (actief)"]
[]
[]
[]
[]
[]
[]
[]
[]
[]
[]
[]
[]
[]
[]
[]
[]
[null,null,null,null,null,"BR/REG-18143c (actief)"]

{"sheet":"Blad1","index":12,"n_rows":395,"n_cols":19,"rows_kept":395,"cut":false,"hidden":true,"merged":[]}
["\"Admin_Include_ksa_autoexec\" is uitgevoerd om 20-11-2019 16:05:00."]
[]
[]
[]
[]
["\"Admin_Include_xls_autoexec\" is uitgevoerd om 16-12-2019 11:37:58."]
[]
[]
[null,"\"Kopiëren naar SAS-server\" is uitgevoerd om 16-12-2019 11:50:05."]
[]
[]
[null,null,null,null,"vcd_spec_idvar","vcd_waarde_flt","vcd_waarde_txt","vcd_toelichting_txt","vcd_spec1_idvar","vcd_spec2_idvar","vcd_spec3_idvar","vcd_attrib_idvar","vcd_eenheid_txt","vcd_dsnorder_flt","vcd_datatype_txt","vcd_format_txt","vcd_eenheid_flt","vcd_geldigvanaf_idjmd","vcd_geldigtot_idjmd"]
[null,null,null,null,"xstaat_kdrwet_id_","=0","ZLQ4","Excel numeriek om te zetten sleutel kdrwet via waarden","xstaat","kdrwet","id","","",null,"C","",null,"",""]
[null,null,null,null,"xstaat_kdrwet_idjmd_","=0","20191231","Excel numeriek om te zetten sleutel kdrwet periode","xstaat","kdrwet","idjmd","","",null,"C","",null,"",""]
[null,null,null,null,"xstaat_uzovi_filename_","=0","=CEL(\"bestandsnaam\")","Excel numeriek filenaam bevat ook sleutels","xstaat","uzovi","filename","","",null,"C","",null,"",""]
[null,null,null,null,"xstaat_uzovi_id_","=0","=NUMERIEKE.WAARDE(NAW_gegevens!$B$4)","Excel numeriek om te zetten sleutel uzovi","xstaat","uzovi","id","","",null,"C","",null,"",""]
[null,null,null,null,"xstaat_uzovi_idvrs_","=0","01","Excel numeriek om te zetten sleutel uzovi versie levering","xstaat","uzovi","idvrs","","",null,"C","",null,"",""]
[null,null,null,null,"zlsxbh_abhrcap_hmextrn_TY0V01","=Beheerskosten!$E$8","","Beheerskosten- Vervoer (TOTAAL)- bedrag","zlsxbh","ahmcap","extrn","TY0V01","Euro's",null,"N","",null,"",""]
[null,null,null,null,"zlsxbh_abhrcap_hmintrn_TY0V01","=Beheerskosten!$E$7","","Beheerskosten- Vervoer (TOTAAL)- bedrag","zlsxbh","ahmcap","intrn","TY0V01","Euro's",null,"N","",null,"",""]
[null,null,null,null,"zlsxbh_abhrcap_aovrg_TY0V01","=Beheerskosten!$E$9","","Beheerskosten- Vervoer (TOTAAL)- bedrag","zlsxbh","aovrg","","TY0V01","Euro's",null,"N","",null,"",""]
[null,null,null,null,"zlsxvt_afgedb_wb1lg_TY0V01","='Volledig pakket thuis'!$D$72","","Volledig pakket thuis, Lichamelijk gehandicapten, excl. dagbesteding- Wonen met enige begeleiding en enige verzorging- bedrag","zlsxvt","afgedb","wb1lg","TY0V01","Dagen",null,"N","",null,"",""]
[null,null,null,null,"zlsxvt_afgedb_wb2lg_TY0V01","='Volledig pakket thuis'!$D$73","","Volledig pakket thuis, Lichamelijk gehandicapten, excl. dagbesteding- Wonen met begeleiding en enige verzorging- bedrag","zlsxvt","afgedb","wb2lg","TY0V01","Dagen",null,"N","",null,"",""]
[null,null,null,null,"zlsxvt_afgedb_wb3lg_TY0V01","='Volledig pakket thuis'!$D$74","","Volledig pakket thuis, Lichamelijk gehandicapten, excl. dagbesteding- Wonen met enige begeleiding en verzorging- bedrag","zlsxvt","afgedb","wb3lg","TY0V01","Dagen",null,"N","",null,"",""]
[null,null,null,null,"zlsxvt_afgedb_wb4lg_TY0V01","='Volledig pakket thuis'!$D$75","","Volledig pakket thuis, Lichamelijk gehandicapten, excl. dagbesteding- Wonen met begeleiding en verzorging- bedrag","zlsxvt","afgedb","wb4lg","TY0V01","Dagen",null,"N","",null,"",""]
[null,null,null,null,"zlsxvt_afgedb_wb5lg_TY0V01","='Volledig pakket thuis'!$D$76","","Volledig pakket thuis, Lichamelijk gehandicapten, excl. dagbesteding- Wonen met begeleiding en intensieve verzorging- bedrag","zlsxvt","afgedb","wb5lg","TY0V01","Dagen",null,"N","",null,"",""]
[null,null,null,null,"zlsxvt_afgedb_wb6lg_TY0V01","='Volledig pakket thuis'!$D$77","","Volledig pakket thuis, Lichamelijk gehandicapten, excl. dagbesteding- Wonen met intensieve begeleiding en intensieve verzorging- bedrag","zlsxvt","afgedb","wb6lg","TY0V01","Dagen",null,"N","",null,"",""]
[null,null,null,null,"zlsxvt_afgedb_wb7lg_TY0V01","='Volledig pakket thuis'!$D$78","","Volledig pakket thuis, Lichamelijk gehandicapten, excl. dagbesteding- Wonen met zeer intensieve begeleiding en zeer intensieve verzorging- bedrag","zlsxvt","afgedb","wb7lg","TY0V01","Dagen",null,"N","",null,"",""]
[null,null,null,null,"zlsxvt_afgidb_wb1lg_TY0V01","='Volledig pakket thuis'!$D$61","","Volledig pakket thuis, Lichamelijk gehandicapten, incl. dagbesteding- Wonen met enige begeleiding en enige verzorging- bedrag","zlsxvt","afgidb","wb1lg","TY0V01","Dagen",null,"N","",null,"",""]
[null,null,null,null,"zlsxvt_afgidb_wb2lg_TY0V01","='Volledig pakket thuis'!$D$62","","Volledig pakket thuis, Lichamelijk gehandicapten, incl. dagbesteding- Wonen met begeleiding en enige verzorging- bedrag","zlsxvt","afgidb","wb2lg","TY0V01","Dagen",null,"N","",null,"",""]
[null,null,null,null,"zlsxvt_afgidb_wb3lg_TY0V01","='Volledig pakket thuis'!$D$63","","Volledig pakket thuis, Lichamelijk gehandicapten, incl. dagbesteding- Wonen met enige begeleiding en verzorging- bedrag","zlsxvt","afgidb","wb3lg","TY0V01","Dagen",null,"N","",null,"",""]
[null,null,null,null,"zlsxvt_afgidb_wb4lg_TY0V01","='Volledig pakket thuis'!$D$64","","Volledig pakket thuis, Lichamelijk gehandicapten, incl. dagbesteding- Wonen met begeleiding en verzorging- bedrag","zlsxvt","afgidb","wb4lg","TY0V01","Dagen",null,"N","",null,"",""]
[null,null,null,null,"zlsxvt_afgidb_wb5lg_TY0V01","='Volledig pakket thuis'!$D$65","","Volledig pakket thuis, Lichamelijk gehandicapten, incl. dagbesteding- Wonen met begeleiding en intensieve verzorging- bedrag","zlsxvt","afgidb","wb5lg","TY0V01","Dagen",null,"N","",null,"",""]
[null,null,null,null,"zlsxvt_afgidb_wb6lg_TY0V01","='Volledig pakket thuis'!$D$66","","Volledig pakket thuis, Lichamelijk gehandicapten, incl. dagbesteding- Wonen met intensieve begeleiding en intensieve verzorging- bedrag","zlsxvt","afgidb","wb6lg","TY0V01","Dagen",null,"N","",null,"",""]
[null,null,null,null,"zlsxvt_afgidb_wb7lg_TY0V01","='Volledig pakket thuis'!$D$67","","Volledig pakket thuis, Lichamelijk gehandicapten, incl. dagbesteding- Wonen met zeer intensieve begeleiding en zeer intensieve verzorging- bedrag","zlsxvt","afgidb","wb7lg","TY0V01","Dagen",null,"N","",null,"",""]
[null,null,null,null,"zlsxvt_agaudedb_wb1zgaud_TY0V01","='Volledig pakket thuis'!$D$91","","Volledig pakket thuis, Auditief en communicatief gehandicapten, excl. dagbesteding- Wonen met enige begeleiding en enige verzorging- bedrag","zlsxvt","agaudedb","wb1zgaud","TY0V01","Dagen",null,"N","",null,"",""]
[null,null,null,null,"zlsxvt_agaudedb_wb2zgaud_TY0V01","='Volledig pakket thuis'!$D$92","","Volledig pakket thuis, Auditief en communicatief gehandicapten, excl. dagbesteding- Wonen met intensieve begeleiding en verzorging- bedrag","zlsxvt","agaudedb","wb2zgaud","TY0V01","Dagen",null,"N","",null,"",""]
[null,null,null,null,"zlsxvt_agaudedb_wb3zgaud_TY0V01","='Volledig pakket thuis'!$D$93","","Volledig pakket thuis, Auditief en communicatief gehandicapten, excl. dagbesteding- Wonen met intensieve begeleiding en intensieve verzorging- bedrag","zlsxvt","agaudedb","wb3zgaud","TY0V01","Dagen",null,"N","",null,"",""]
[null,null,null,null,"zlsxvt_agaudedb_wb4zgaud_TY0V01","='Volledig pakket thuis'!$D$94","","Volledig pakket thuis, Auditief en communicatief gehandicapten, excl. dagbesteding- Wonen met intensieve begeleiding en enige verzorging- bedrag","zlsxvt","agaudedb","wb4zgaud","TY0V01","Dagen",null,"N","",null,"",""]
[null,null,null,null,"zlsxvt_agaudidb_wb1zgaud_TY0V01","='Volledig pakket thuis'!$D$83","","Volledig pakket thuis, Auditief en communicatief gehandicapten, incl. dagbesteding- Wonen met enige begeleiding en enige verzorging- bedrag","zlsxvt","agaudidb","wb1zgaud","TY0V01","Dagen",null,"N","",null,"",""]
[null,null,null,null,"zlsxvt_agaudidb_wb2zgaud_TY0V01","='Volledig pakket thuis'!$D$84","","Volledig pakket thuis, Auditief en communicatief gehandicapten, incl. dagbesteding- Wonen met intensieve begeleiding en verzorging- bedrag","zlsxvt","agaudidb","wb2zgaud","TY0V01","Dagen",null,"N","",null,"",""]
[null,null,null,null,"zlsxvt_agaudidb_wb3zgaud_TY0V01","='Volledig pakket thuis'!$D$85","","Volledig pakket thuis, Auditief en communicatief gehandicapten, incl. dagbesteding- Wonen met intensieve begeleiding en intensieve verzorging- bedrag","zlsxvt","agaudidb","wb3zgaud","TY0V01","Dagen",null,"N","",null,"",""]
[null,null,null,null,"zlsxvt_agaudidb_wb4zgaud_TY0V01","='Volledig pakket thuis'!$D$86","","Volledig pakket thuis, Auditief en communicatief gehandicapten, incl. dagbesteding- Wonen met intensieve begeleiding en enige verzorging- bedrag","zlsxvt","agaudidb","wb4zgaud","TY0V01","Dagen",null,"N","",null,"",""]
[null,null,null,null,"zlsxvt_agvisidb_wb1zgvis_TY0V01","='Volledig pakket thuis'!$D$99","","Volledig pakket thuis, Visueel gehandicapten, incl. dagbesteding- Wonen met enige begeleiding en enige verzorging- bedrag","zlsxvt","agvisidb","wb1zgvis","TY0V01","Dagen",null,"N","",null,"",""]
[null,null,null,null,"zlsxvt_agvisidb_wb2zgvis_TY0V01","='Volledig pakket thuis'!$D$100","","Volledig pakket thuis, Visueel gehandicapten, incl. dagbesteding- Wonen met begeleiding en enige verzorging- bedrag","zlsxvt","agvisidb","wb2zgvis","TY0V01","Dagen",null,"N","",null,"",""]
[null,null,null,null,"zlsxvt_agvisidb_wb3zgvis_TY0V01","='Volledig pakket thuis'!$D$101","","Volledig pakket thuis, Visueel gehandicapten, incl. dagbesteding- Wonen met intensieve begeleiding en verzorging- bedrag","zlsxvt","agvisidb","wb3zgvis","TY0V01","Dagen",null,"N","",null,"",""]
[null,null,null,null,"zlsxvt_agvisidb_wb4gvis_TY0V01","='Volledig pakket thuis'!$D$102","","Volledig pakket thuis, Visueel gehandicapten, incl. dagbesteding- Wonen met intensieve begeleiding en intensieve verzorging- bedrag","zlsxvt","agvisidb","wb4gvis","TY0V01","Dagen",null,"N","",null,"",""]
[null,null,null,null,"zlsxvt_agvisidb_wb5zgvis_TY0V01","='Volledig pakket thuis'!$D$103","","Volledig pakket thuis, Visueel gehandicapten, incl. dagbesteding- Wonen met zeer intensieve begeleiding en zeer intensieve verzorging- bedrag","zlsxvt","agvisidb","wb5zgvis","TY0V01","Dagen",null,"N","",null,"",""]
[null,null,null,null,"zlsxvt_alvgidb_wb1lvg_TY0V01","='Volledig pakket thuis'!$D$47","","Volledig pakket thuis, Licht verstandelijk gehandicapten, incl. dagbesteding- Wonen met enige behandeling en begeleiding- bedrag","zlsxvt","alvgidb","wb1lvg","TY0V01","Dagen",null,"N","",null,"",""]
[null,null,null,null,"zlsxvt_alvgidb_wb2lvg_TY0V01","='Volledig pakket thuis'!$D$48","","Volledig pakket thuis, Licht verstandelijk gehandicapten, incl. dagbesteding- Wonen met behandeling en begeleiding- bedrag","zlsxvt","alvgidb","wb2lvg","TY0V01","Dagen",null,"N","",null,"",""]
[null,null,null,null,"zlsxvt_alvgidb_wb3lvg_TY0V01","='Volledig pakket thuis'!$D$49","","Volledig pakket thuis, Licht verstandelijk gehandicapten, incl. dagbesteding- Wonen met intensieve behandeling en begeleiding, kleine groep- bedrag","zlsxvt","alvgidb","wb3lvg","TY0V01","Dagen",null,"N","",null,"",""]
[null,null,null,null,"zlsxvt_alvgidb_wb4lvg_TY0V01","='Volledig pakket thuis'!$D$50","","Volledig pakket thuis, Licht verstandelijk gehandicapten, incl. dagbesteding- Wonen met zeer intensieve behandeling en begeleiding- bedrag","zlsxvt","alvgidb","wb4lvg","TY0V01","Dagen",null,"N","",null,"",""]
[null,null,null,null,"zlsxvt_alvgidb_wb5lvg_TY0V01","='Volledig pakket thuis'!$D$51","","Volledig pakket thuis, Licht verstandelijk gehandicapten, incl. dagbesteding- Besloten wonen met zeer intensieve behandeling en begeleiding- bedrag","zlsxvt","alvgidb","wb5lvg","TY0V01","Dagen",null,"N","",null,"",""]
[null,null,null,null,"zlsxvt_asglgidb_wb15glvg_TY0V01","='Volledig pakket thuis'!$D$56","","Volledig pakket thuis, Sterk gedragsgestoorde licht verstandelijk gehandicapten incl. dagbesteding- Behandeling in een SGLVG behandelcentrum- bedrag","zlsxvt","asglgidb","wb15glvg","TY0V01","Dagen",null,"N","",null,"",""]
[null,null,null,null,"zlsxvt_avgedb_wb1vg_TY0V01","='Volledig pakket thuis'!$D$35","","Volledig pakket thuis, Verstandelijk gehandicapten excl. dagbesteding- Wonen met enige begeleiding- bedrag","zlsxvt","avgedb","wb1vg","TY0V01","Dagen",null,"N","",null,"",""]
[null,null,null,null,"zlsxvt_avgedb_wb2vg_TY0V01","='Volledig pakket thuis'!$D$36","","Volledig pakket thuis, Verstandelijk gehandicapten excl. dagbesteding- Wonen met begeleiding- bedrag","zlsxvt","avgedb","wb2vg","TY0V01","Dagen",null,"N","",null,"",""]
[null,null,null,null,"zlsxvt_avgedb_wb3vg_TY0V01","='Volledig pakket thuis'!$D$37","","Volledig pakket thuis, Verstandelijk gehandicapten excl. dagbesteding- Wonen met begeleiding en verzorging- bedrag","zlsxvt","avgedb","wb3vg","TY0V01","Dagen",null,"N","",null,"",""]
[null,null,null,null,"zlsxvt_avgedb_wb4vg_TY0V01","='Volledig pakket thuis'!$D$38","","Volledig pakket thuis, Verstandelijk gehandicapten excl. dagbesteding- Wonen met begeleiding en intensieve verzorging- bedrag","zlsxvt","avgedb","wb4vg","TY0V01","Dagen",null,"N","",null,"",""]
[null,null,null,null,"zlsxvt_avgedb_wb5vg_TY0V01","='Volledig pakket thuis'!$D$39","","Volledig pakket thuis, Verstandelijk gehandicapten excl. dagbesteding- Wonen met intensieve begeleiding en intensieve verzorging- bedrag","zlsxvt","avgedb","wb5vg","TY0V01","Dagen",null,"N","",null,"",""]
[null,null,null,null,"zlsxvt_avgedb_wb6vg_TY0V01","='Volledig pakket thuis'!$D$40","","Volledig pakket thuis, Verstandelijk gehandicapten excl. dagbesteding- Wonen met intensieve begeleiding, verzorging en gedragsregulering- bedrag","zlsxvt","avgedb","wb6vg","TY0V01","Dagen",null,"N","",null,"",""]
[null,null,null,null,"zlsxvt_avgedb_wb7vg_TY0V01","='Volledig pakket thuis'!$D$41","","Volledig pakket thuis, Verstandelijk gehandicapten excl. dagbesteding- (Besloten) wonen met zeer intensieve begeleiding, verzorging en gedragsregulering- bedrag","zlsxvt","avgedb","wb7vg","TY0V01","Dagen",null,"N","",null,"",""]
[null,null,null,null,"zlsxvt_avgedb_wb8vg_TY0V01","='Volledig pakket thuis'!$D$42","","Volledig pakket thuis, Verstandelijk gehandicapten excl. dagbesteding- Wonen met begeleiding en volledige verzorging en verpleging- bedrag","zlsxvt","avgedb","wb8vg","TY0V01","Dagen",null,"N","",null,"",""]
[null,null,null,null,"zlsxvt_avgidb_wb1vg_TY0V01","='Volledig pakket thuis'!$D$23","","Volledig pakket thuis, Verstandelijk gehandicapten incl. dagbesteding- Wonen met enige begeleiding- bedrag","zlsxvt","avgidb","wb1vg","TY0V01","Dagen",null,"N","",null,"",""]
[null,null,null,null,"zlsxvt_avgidb_wb2vg_TY0V01","='Volledig pakket thuis'!$D$24","","Volledig pakket thuis, Verstandelijk gehandicapten incl. dagbesteding- Wonen met begeleiding- bedrag","zlsxvt","avgidb","wb2vg","TY0V01","Dagen",null,"N","",null,"",""]
[null,null,null,null,"zlsxvt_avgidb_wb3vg_TY0V01","='Volledig pakket thuis'!$D$25","","Volledig pakket thuis, Verstandelijk gehandicapten incl. dagbesteding- Wonen met begeleiding en verzorging- bedrag","zlsxvt","avgidb","wb3vg","TY0V01","Dagen",null,"N","",null,"",""]
[null,null,null,null,"zlsxvt_avgidb_wb4vg_TY0V01","='Volledig pakket thuis'!$D$26","","Volledig pakket thuis, Verstandelijk gehandicapten incl. dagbesteding- Wonen met begeleiding en intensieve verzorging- bedrag","zlsxvt","avgidb","wb4vg","TY0V01","Dagen",null,"N","",null,"",""]
[null,null,null,null,"zlsxvt_avgidb_wb5vg_TY0V01","='Volledig pakket thuis'!$D$27","","Volledig pakket thuis, Verstandelijk gehandicapten incl. dagbesteding- Wonen met intensieve begeleiding en intensieve verzorging- bedrag","zlsxvt","avgidb","wb5vg","TY0V01","Dagen",null,"N","",null,"",""]
[null,null,null,null,"zlsxvt_avgidb_wb6vg_TY0V01","='Volledig pakket thuis'!$D$28","","Volledig pakket thuis, Verstandelijk gehandicapten incl. dagbesteding- Wonen met intensieve begeleiding, verzorging en gedragsregulering- bedrag","zlsxvt","avgidb","wb6vg","TY0V01","Dagen",null,"N","",null,"",""]
[null,null,null,null,"zlsxvt_avgidb_wb7vg_TY0V01","='Volledig pakket thuis'!$D$29","","Volledig pakket thuis, Verstandelijk gehandicapten incl. dagbesteding- (Besloten) wonen met zeer intensieve begeleiding, verzorging en gedragsregulering- bedrag","zlsxvt","avgidb","wb7vg","TY0V01","Dagen",null,"N","",null,"",""]
[null,null,null,null,"zlsxvt_avgidb_wb8vg_TY0V01","='Volledig pakket thuis'!$D$30","","Volledig pakket thuis, Verstandelijk gehandicapten incl. dagbesteding- Wonen met begeleiding en volledige verzorging en verpleging- bedrag","zlsxvt","avgidb","wb8vg","TY0V01","Dagen",null,"N","",null,"",""]
[null,null,null,null,"zlsxvt_avvidb_bw1vv_TY0V01","='Volledig pakket thuis'!$D$8","","Volledig pakket thuis, Verpleging en verzorging incl. dagbesteding- Beschut wonen met enige begeleiding- bedrag","zlsxvt","avvidb","bw1vv","TY0V01","Dagen",null,"N","",null,"",""]
[null,null,null,null,"zlsxvt_avvidb_bw2vv_TY0V01","='Volledig pakket thuis'!$D$9","","Volledig pakket thuis, Verpleging en verzorging incl. dagbesteding- Beschut wonen met begeleiding en verzorging- bedrag","zlsxvt","avvidb","bw2vv","TY0V01","Dagen",null,"N","",null,"",""]
[null,null,null,null,"zlsxvt_avvidb_bw3vv_TY0V01","='Volledig pakket thuis'!$D$10","","Volledig pakket thuis, Verpleging en verzorging incl. dagbesteding- Beschut wonen met begeleiding en intensieve verzorging- bedrag","zlsxvt","avvidb","bw3vv","TY0V01","Dagen",null,"N","",null,"",""]
[null,null,null,null,"zlsxvt_avvidb_bw4vv_TY0V01","='Volledig pakket thuis'!$D$11","","Volledig pakket thuis, Verpleging en verzorging incl. dagbesteding- Beschut wonen met intensieve begeleiding en uitgebreide verzorging- bedrag","zlsxvt","avvidb","bw4vv","TY0V01","Dagen",null,"N","",null,"",""]
[null,null,null,null,"zlsxvt_avvidb_bw5vv_TY0V01","='Volledig pakket thuis'!$D$12","","Volledig pakket thuis, Verpleging en verzorging incl. dagbesteding- Beschermd wonen met intensieve dementiezorg- bedrag","zlsxvt","avvidb","bw5vv","TY0V01","Dagen",null,"N","",null,"",""]
[null,null,null,null,"zlsxvt_avvidb_bw6vv_TY0V01","='Volledig pakket thuis'!$D$13","","Volledig pakket thuis, Verpleging en verzorging incl. dagbesteding- Beschermd wonen met intensieve verzorging en verpleging- bedrag","zlsxvt","avvidb","bw6vv","TY0V01","Dagen",null,"N","",null,"",""]
[null,null,null,null,"zlsxvt_avvidb_bw7vv_TY0V01","='Volledig pakket thuis'!$D$14","","Volledig pakket thuis, Verpleging en verzorging incl. dagbesteding- Beschermd wonen met zeer intensieve zorg, vanwege specifieke aandoeningen, met nadruk op begeleidingg- bedrag","zlsxvt","avvidb","bw7vv","TY0V01","Dagen",null,"N","",null,"",""]
[null,null,null,null,"zlsxvt_avvidb_bw8vv_TY0V01","='Volledig pakket thuis'!$D$15","","Volledig pakket thuis, Verpleging en verzorging incl. dagbesteding- Beschermd wonen met zeer intensieve zorg, vanwege specifieke aandoeningen, met nadruk op verzorging/verpleging- bedrag","zlsxvt","avvidb","bw8vv","TY0V01","Dagen",null,"N","",null,"",""]
[null,null,null,null,"zlsxvt_avvidb_hg9vv_TY0V01","='Volledig pakket thuis'!$D$16","","Volledig pakket thuis, Verpleging en verzorging incl. dagbesteding- Herstelgerichte verpleging en verzorging- bedrag","zlsxvt","avvidb","hg9vv","TY0V01","Dagen",null,"N","",null,"",""]
[null,null,null,null,"zlsxvt_avvidb_ht10vv_TY0V01","='Volledig pakket thuis'!$D$17","","Volledig pakket thuis, Verpleging en verzorging incl. dagbesteding- Beschermd verblijf met intensieve palliatief-terminale zorg- bedrag","zlsxvt","avvidb","ht10vv","TY0V01","Dagen",null,"N","",null,"",""]
[null,null,null,null,"zlsxvt_agvisedb_wb1zgvis_TY0V01","='Volledig pakket thuis'!$D$108","","Volledig pakket thuis, Visueel gehandicapten, excl. dagbesteding- Wonen met enige begeleiding en enige verzorging- bedrag","zlsxvt","azvisedb","wb1zgvis","TY0V01","Dagen",null,"N","",null,"",""]
[null,null,null,null,"zlsxvt_agvisedb_wb2zgvis_TY0V01","='Volledig pakket thuis'!$D$109","","Volledig pakket thuis, Visueel gehandicapten, excl. dagbesteding- Wonen met begeleiding en enige verzorging- bedrag","zlsxvt","azvisedb","wb2zgvis","TY0V01","Dagen",null,"N","",null,"",""]
[null,null,null,null,"zlsxvt_agvisedb_wb3zgvis_TY0V01","='Volledig pakket thuis'!$D$110","","Volledig pakket thuis, Visueel gehandicapten, excl. dagbesteding- Wonen met intensieve begeleiding en verzorging- bedrag","zlsxvt","azvisedb","wb3zgvis","TY0V01","Dagen",null,"N","",null,"",""]
[null,null,null,null,"zlsxvt_agvisedb_wb4zgvis_TY0V01","='Volledig pakket thuis'!$D$111","","Volledig pakket thuis, Visueel gehandicapten, excl. dagbesteding- Wonen met intensieve begeleiding en intensieve verzorging- bedrag","zlsxvt","azvisedb","wb4zgvis","TY0V01","Dagen",null,"N","",null,"",""]
[null,null,null,null,"zlsxvt_agvisedb_wb5zgvis_TY0V01","='Volledig pakket thuis'!$D$112","","Volledig pakket thuis, Visueel gehandicapten, excl. dagbesteding- Wonen met zeer intensieve begeleiding en zeer intensieve verzorging- bedrag","zlsxvt","azvisedb","wb5zgvis","TY0V01","Dagen",null,"N","",null,"",""]
[null,null,null,null,"zlsxvt_nfgedb_wb1lg_TY0V01","='Volledig pakket thuis'!$C$72","","Volledig pakket thuis, Lichamelijk gehandicapten, excl. dagbesteding- Wonen met enige begeleiding en enige verzorging- aantal","zlsxvt","nfgedb","wb1lg","TY0V01","Dagen",null,"N","",null,"",""]
[null,null,null,null,"zlsxvt_nfgedb_wb2lg_TY0V01","='Volledig pakket thuis'!$C$73","","Volledig pakket thuis, Lichamelijk gehandicapten, excl. dagbesteding- Wonen met begeleiding en enige verzorging- aantal","zlsxvt","nfgedb","wb2lg","TY0V01","Dagen",null,"N","",null,"",""]
[null,null,null,null,"zlsxvt_nfgedb_wb3lg_TY0V01","='Volledig pakket thuis'!$C$74","","Volledig pakket thuis, Lichamelijk gehandicapten, excl. dagbesteding- Wonen met enige begeleiding en verzorging- aantal","zlsxvt","nfgedb","wb3lg","TY0V01","Dagen",null,"N","",null,"",""]
[null,null,null,null,"zlsxvt_nfgedb_wb4lg_TY0V01","='Volledig pakket thuis'!$C$75","","Volledig pakket thuis, Lichamelijk gehandicapten, excl. dagbesteding- Wonen met begeleiding en verzorging- aantal","zlsxvt","nfgedb","wb4lg","TY0V01","Dagen",null,"N","",null,"",""]
[null,null,null,null,"zlsxvt_nfgedb_wb5lg_TY0V01","='Volledig pakket thuis'!$C$76","","Volledig pakket thuis, Lichamelijk gehandicapten, excl. dagbesteding- Wonen met begeleiding en intensieve verzorging- aantal","zlsxvt","nfgedb","wb5lg","TY0V01","Dagen",null,"N","",null,"",""]
[null,null,null,null,"zlsxvt_nfgedb_wb6lg_TY0V01","='Volledig pakket thuis'!$C$77","","Volledig pakket thuis, Lichamelijk gehandicapten, excl. dagbesteding- Wonen met intensieve begeleiding en intensieve verzorging- aantal","zlsxvt","nfgedb","wb6lg","TY0V01","Dagen",null,"N","",null,"",""]
[null,null,null,null,"zlsxvt_nfgedb_wb7lg_TY0V01","='Volledig pakket thuis'!$C$78","","Volledig pakket thuis, Lichamelijk gehandicapten, excl. dagbesteding- Wonen met zeer intensieve begeleiding en zeer intensieve verzorging- aantal","zlsxvt","nfgedb","wb7lg","TY0V01","Dagen",null,"N","",null,"",""]
[null,null,null,null,"zlsxvt_nfgidb_wb1lg_TY0V01","='Volledig pakket thuis'!$C$61","","Volledig pakket thuis, Lichamelijk gehandicapten, incl. dagbesteding- Wonen met enige begeleiding en enige verzorging- aantal","zlsxvt","nfgidb","wb1lg","TY0V01","Dagen",null,"N","",null,"",""]
[null,null,null,null,"zlsxvt_nfgidb_wb2lg_TY0V01","='Volledig pakket thuis'!$C$62","","Volledig pakket thuis, Lichamelijk gehandicapten, incl. dagbesteding- Wonen met begeleiding en enige verzorging- aantal","zlsxvt","nfgidb","wb2lg","TY0V01","Dagen",null,"N","",null,"",""]
[null,null,null,null,"zlsxvt_nfgidb_wb3lg_TY0V01","='Volledig pakket thuis'!$C$63","","Volledig pakket thuis, Lichamelijk gehandicapten, incl. dagbesteding- Wonen met enige begeleiding en verzorging- aantal","zlsxvt","nfgidb","wb3lg","TY0V01","Dagen",null,"N","",null,"",""]
[null,null,null,null,"zlsxvt_nfgidb_wb4lg_TY0V01","='Volledig pakket thuis'!$C$64","","Volledig pakket thuis, Lichamelijk gehandicapten, incl. dagbesteding- Wonen met begeleiding en verzorging- aantal","zlsxvt","nfgidb","wb4lg","TY0V01","Dagen",null,"N","",null,"",""]
[null,null,null,null,"zlsxvt_nfgidb_wb5lg_TY0V01","='Volledig pakket thuis'!$C$65","","Volledig pakket thuis, Lichamelijk gehandicapten, incl. dagbesteding- Wonen met begeleiding en intensieve verzorging- aantal","zlsxvt","nfgidb","wb5lg","TY0V01","Dagen",null,"N","",null,"",""]
[null,null,null,null,"zlsxvt_nfgidb_wb6lg_TY0V01","='Volledig pakket thuis'!$C$66","","Volledig pakket thuis, Lichamelijk gehandicapten, incl. dagbesteding- Wonen met intensieve begeleiding en intensieve verzorging- aantal","zlsxvt","nfgidb","wb6lg","TY0V01","Dagen",null,"N","",null,"",""]
[null,null,null,null,"zlsxvt_nfgidb_wb7lg_TY0V01","='Volledig pakket thuis'!$C$67","","Volledig pakket thuis, Lichamelijk gehandicapten, incl. dagbesteding- Wonen met zeer intensieve begeleiding en zeer intensieve verzorging- aantal","zlsxvt","nfgidb","wb7lg","TY0V01","Dagen",null,"N","",null,"",""]
[null,null,null,null,"zlsxvt_ngaudedb_wb1zgaud_TY0V01","='Volledig pakket thuis'!$C$91","","Volledig pakket thuis, Auditief en communicatief gehandicapten, excl. dagbesteding- Wonen met enige begeleiding en enige verzorging- aantal","zlsxvt","ngaudedb","wb1zgaud","TY0V01","Dagen",null,"N","",null,"",""]
[null,null,null,null,"zlsxvt_ngaudedb_wb2zgaud_TY0V01","='Volledig pakket thuis'!$C$92","","Volledig pakket thuis, Auditief en communicatief gehandicapten, excl. dagbesteding- Wonen met intensieve begeleiding en verzorging- aantal","zlsxvt","ngaudedb","wb2zgaud","TY0V01","Dagen",null,"N","",null,"",""]
[null,null,null,null,"zlsxvt_ngaudedb_wb3zgaud_TY0V01","='Volledig pakket thuis'!$C$93","","Volledig pakket thuis, Auditief en communicatief gehandicapten, excl. dagbesteding- Wonen met intensieve begeleiding en intensieve verzorging- aantal","zlsxvt","ngaudedb","wb3zgaud","TY0V01","Dagen",null,"N","",null,"",""]
[null,null,null,null,"zlsxvt_ngaudedb_wb4zgaud_TY0V01","='Volledig pakket thuis'!$C$94","","Volledig pakket thuis, Auditief en communicatief gehandicapten, excl. dagbesteding- Wonen met intensieve begeleiding en enige verzorging- aantal","zlsxvt","ngaudedb","wb4zgaud","TY0V01","Dagen",null,"N","",null,"",""]
[null,null,null,null,"zlsxvt_ngaudidb_wb1zgaud_TY0V01","='Volledig pakket thuis'!$C$83","","Volledig pakket thuis, Auditief en communicatief gehandicapten, incl. dagbesteding- Wonen met enige begeleiding en enige verzorging- aantal","zlsxvt","ngaudidb","wb1zgaud","TY0V01","Dagen",null,"N","",null,"",""]
[null,null,null,null,"zlsxvt_ngaudidb_wb2zgaud_TY0V01","='Volledig pakket thuis'!$C$84","","Volledig pakket thuis, Auditief en communicatief gehandicapten, incl. dagbesteding- Wonen met intensieve begeleiding en verzorging- aantal","zlsxvt","ngaudidb","wb2zgaud","TY0V01","Dagen",null,"N","",null,"",""]
[null,null,null,null,"zlsxvt_ngaudidb_wb3zgaud_TY0V01","='Volledig pakket thuis'!$C$85","","Volledig pakket thuis, Auditief en communicatief gehandicapten, incl. dagbesteding- Wonen met intensieve begeleiding en intensieve verzorging- aantal","zlsxvt","ngaudidb","wb3zgaud","TY0V01","Dagen",null,"N","",null,"",""]
[null,null,null,null,"zlsxvt_ngaudidb_wb4zgaud_TY0V01","='Volledig pakket thuis'!$C$86","","Volledig pakket thuis, Auditief en communicatief gehandicapten, incl. dagbesteding- Wonen met intensieve begeleiding en enige verzorging- aantal","zlsxvt","ngaudidb","wb4zgaud","TY0V01","Dagen",null,"N","",null,"",""]
[null,null,null,null,"zlsxvt_ngvisidb_wb1zgvis_TY0V01","='Volledig pakket thuis'!$C$99","","Volledig pakket thuis, Visueel gehandicapten, incl. dagbesteding- Wonen met enige begeleiding en enige verzorging- aantal","zlsxvt","ngvisidb","wb1zgvis","TY0V01","Dagen",null,"N","",null,"",""]
[null,null,null,null,"zlsxvt_ngvisidb_wb2zgvis_TY0V01","='Volledig pakket thuis'!$C$100","","Volledig pakket thuis, Visueel gehandicapten, incl. dagbesteding- Wonen met begeleiding en enige verzorging- aantal","zlsxvt","ngvisidb","wb2zgvis","TY0V01","Dagen",null,"N","",null,"",""]
[null,null,null,null,"zlsxvt_ngvisidb_wb3zgvis_TY0V01","='Volledig pakket thuis'!$C$101","","Volledig pakket thuis, Visueel gehandicapten, incl. dagbesteding- Wonen met intensieve begeleiding en verzorging- aantal","zlsxvt","ngvisidb","wb3zgvis","TY0V01","Dagen",null,"N","",null,"",""]
[null,null,null,null,"zlsxvt_ngvisidb_wb4gvis_TY0V01","='Volledig pakket thuis'!$C$102","","Volledig pakket thuis, Visueel gehandicapten, incl. dagbesteding- Wonen met intensieve begeleiding en intensieve verzorging- aantal","zlsxvt","ngvisidb","wb4gvis","TY0V01","Dagen",null,"N","",null,"",""]
[null,null,null,null,"zlsxvt_ngvisidb_wb5zgvis_TY0V01","='Volledig pakket thuis'!$C$103","","Volledig pakket thuis, Visueel gehandicapten, incl. dagbesteding- Wonen met zeer intensieve begeleiding en zeer intensieve verzorging- aantal","zlsxvt","ngvisidb","wb5zgvis","TY0V01","Dagen",null,"N","",null,"",""]
[null,null,null,null,"zlsxvt_nlvgidb_wb1lvg_TY0V01","='Volledig pakket thuis'!$C$47","","Volledig pakket thuis, Licht verstandelijk gehandicapten, incl. dagbesteding- Wonen met enige behandeling en begeleiding- aantal","zlsxvt","nlvgidb","wb1lvg","TY0V01","Dagen",null,"N","",null,"",""]
[null,null,null,null,"zlsxvt_nlvgidb_wb2lvg_TY0V01","='Volledig pakket thuis'!$C$48","","Volledig pakket thuis, Licht verstandelijk gehandicapten, incl. dagbesteding- Wonen met behandeling en begeleiding- aantal","zlsxvt","nlvgidb","wb2lvg","TY0V01","Dagen",null,"N","",null,"",""]
[null,null,null,null,"zlsxvt_nlvgidb_wb3lvg_TY0V01","='Volledig pakket thuis'!$C$49","","Volledig pakket thuis, Licht verstandelijk gehandicapten, incl. dagbesteding- Wonen met intensieve behandeling en begeleiding, kleine groep- aantal","zlsxvt","nlvgidb","wb3lvg","TY0V01","Dagen",null,"N","",null,"",""]
[null,null,null,null,"zlsxvt_nlvgidb_wb4lvg_TY0V01","='Volledig pakket thuis'!$C$50","","Volledig pakket thuis, Licht verstandelijk gehandicapten, incl. dagbesteding- Wonen met zeer intensieve behandeling en begeleiding- aantal","zlsxvt","nlvgidb","wb4lvg","TY0V01","Dagen",null,"N","",null,"",""]
[null,null,null,null,"zlsxvt_nlvgidb_wb5lvg_TY0V01","='Volledig pakket thuis'!$C$51","","Volledig pakket thuis, Licht verstandelijk gehandicapten, incl. dagbesteding- Besloten wonen met zeer intensieve behandeling en begeleiding- aantal","zlsxvt","nlvgidb","wb5lvg","TY0V01","Dagen",null,"N","",null,"",""]
[null,null,null,null,"zlsxvt_nsglgidb_wb15glvg_TY0V01","='Volledig pakket thuis'!$C$56","","Volledig pakket thuis, Sterk gedragsgestoorde licht verstandelijk gehandicapten incl. dagbesteding- Behandeling in een SGLVG behandelcentrum- aantal","zlsxvt","nsglgidb","wb15glvg","TY0V01","Dagen",null,"N","",null,"",""]
[null,null,null,null,"zlsxvt_nvgedb_wb1vg_TY0V01","='Volledig pakket thuis'!$C$35","","Volledig pakket thuis, Verstandelijk gehandicapten excl. dagbesteding- Wonen met enige begeleiding- aantal","zlsxvt","nvgedb","wb1vg","TY0V01","Dagen",null,"N","",null,"",""]
[null,null,null,null,"zlsxvt_nvgedb_wb2vg_TY0V01","='Volledig pakket thuis'!$C$36","","Volledig pakket thuis, Verstandelijk gehandicapten excl. dagbesteding- Wonen met begeleiding- aantal","zlsxvt","nvgedb","wb2vg","TY0V01","Dagen",null,"N","",null,"",""]
[null,null,null,null,"zlsxvt_nvgedb_wb3vg_TY0V01","='Volledig pakket thuis'!$C$37","","Volledig pakket thuis, Verstandelijk gehandicapten excl. dagbesteding- Wonen met begeleiding en verzorging- aantal","zlsxvt","nvgedb","wb3vg","TY0V01","Dagen",null,"N","",null,"",""]
[null,null,null,null,"zlsxvt_nvgedb_wb4vg_TY0V01","='Volledig pakket thuis'!$C$38","","Volledig pakket thuis, Verstandelijk gehandicapten excl. dagbesteding- Wonen met begeleiding en intensieve verzorging- aantal","zlsxvt","nvgedb","wb4vg","TY0V01","Dagen",null,"N","",null,"",""]
[null,null,null,null,"zlsxvt_nvgedb_wb5vg_TY0V01","='Volledig pakket thuis'!$C$39","","Volledig pakket thuis, Verstandelijk gehandicapten excl. dagbesteding- Wonen met intensieve begeleiding en intensieve verzorging- aantal","zlsxvt","nvgedb","wb5vg","TY0V01","Dagen",null,"N","",null,"",""]
[null,null,null,null,"zlsxvt_nvgedb_wb6vg_TY0V01","='Volledig pakket thuis'!$C$40","","Volledig pakket thuis, Verstandelijk gehandicapten excl. dagbesteding- Wonen met intensieve begeleiding, verzorging en gedragsregulering- aantal","zlsxvt","nvgedb","wb6vg","TY0V01","Dagen",null,"N","",null,"",""]
[null,null,null,null,"zlsxvt_nvgedb_wb7vg_TY0V01","='Volledig pakket thuis'!$C$41","","Volledig pakket thuis, Verstandelijk gehandicapten excl. dagbesteding- (Besloten) wonen met zeer intensieve begeleiding, verzorging en gedragsregulering- aantal","zlsxvt","nvgedb","wb7vg","TY0V01","Dagen",null,"N","",null,"",""]
[null,null,null,null,"zlsxvt_nvgedb_wb8vg_TY0V01","='Volledig pakket thuis'!$C$42","","Volledig pakket thuis, Verstandelijk gehandicapten excl. dagbesteding- Wonen met begeleiding en volledige verzorging en verpleging- aantal","zlsxvt","nvgedb","wb8vg","TY0V01","Dagen",null,"N","",null,"",""]
[null,null,null,null,"zlsxvt_nvgidb_wb1vg_TY0V01","='Volledig pakket thuis'!$C$23","","Volledig pakket thuis, Verstandelijk gehandicapten incl. dagbesteding- Wonen met enige begeleiding- aantal","zlsxvt","nvgidb","wb1vg","TY0V01","Dagen",null,"N","",null,"",""]
[null,null,null,null,"zlsxvt_nvgidb_wb2vg_TY0V01","='Volledig pakket thuis'!$C$24","","Volledig pakket thuis, Verstandelijk gehandicapten incl. dagbesteding- Wonen met begeleiding- aantal","zlsxvt","nvgidb","wb2vg","TY0V01","Dagen",null,"N","",null,"",""]
[null,null,null,null,"zlsxvt_nvgidb_wb3vg_TY0V01","='Volledig pakket thuis'!$C$25","","Volledig pakket thuis, Verstandelijk gehandicapten incl. dagbesteding- Wonen met begeleiding en verzorging- aantal","zlsxvt","nvgidb","wb3vg","TY0V01","Dagen",null,"N","",null,"",""]
[null,null,null,null,"zlsxvt_nvgidb_wb4vg_TY0V01","='Volledig pakket thuis'!$C$26","","Volledig pakket thuis, Verstandelijk gehandicapten incl. dagbesteding- Wonen met begeleiding en intensieve verzorging- aantal","zlsxvt","nvgidb","wb4vg","TY0V01","Dagen",null,"N","",null,"",""]
[null,null,null,null,"zlsxvt_nvgidb_wb5vg_TY0V01","='Volledig pakket thuis'!$C$27","","Volledig pakket thuis, Verstandelijk gehandicapten incl. dagbesteding- Wonen met intensieve begeleiding en intensieve verzorging- aantal","zlsxvt","nvgidb","wb5vg","TY0V01","Dagen",null,"N","",null,"",""]
[null,null,null,null,"zlsxvt_nvgidb_wb6vg_TY0V01","='Volledig pakket thuis'!$C$28","","Volledig pakket thuis, Verstandelijk gehandicapten incl. dagbesteding- Wonen met intensieve begeleiding, verzorging en gedragsregulering- aantal","zlsxvt","nvgidb","wb6vg","TY0V01","Dagen",null,"N","",null,"",""]
[null,null,null,null,"zlsxvt_nvgidb_wb7vg_TY0V01","='Volledig pakket thuis'!$C$29","","Volledig pakket thuis, Verstandelijk gehandicapten incl. dagbesteding- (Besloten) wonen met zeer intensieve begeleiding, verzorging en gedragsregulering- aantal","zlsxvt","nvgidb","wb7vg","TY0V01","Dagen",null,"N","",null,"",""]
[null,null,null,null,"zlsxvt_nvgidb_wb8vg_TY0V01","='Volledig pakket thuis'!$C$30","","Volledig pakket thuis, Verstandelijk gehandicapten incl. dagbesteding- Wonen met begeleiding en volledige verzorging en verpleging- aantal","zlsxvt","nvgidb","wb8vg","TY0V01","Dagen",null,"N","",null,"",""]
[null,null,null,null,"zlsxvt_nvvidb_bw1vv_TY0V01","='Volledig pakket thuis'!$C$8","","Volledig pakket thuis, Verpleging en verzorging incl. dagbesteding- Beschut wonen met enige begeleiding- aantal","zlsxvt","nvvidb","bw1vv","TY0V01","Dagen",null,"N","",null,"",""]
[null,null,null,null,"zlsxvt_nvvidb_bw2vv_TY0V01","='Volledig pakket thuis'!$C$9","","Volledig pakket thuis, Verpleging en verzorging incl. dagbesteding- Beschut wonen met begeleiding en verzorging- aantal","zlsxvt","nvvidb","bw2vv","TY0V01","Dagen",null,"N","",null,"",""]
[null,null,null,null,"zlsxvt_nvvidb_bw3vv_TY0V01","='Volledig pakket thuis'!$C$10","","Volledig pakket thuis, Verpleging en verzorging incl. dagbesteding- Beschut wonen met begeleiding en intensieve verzorging- aantal","zlsxvt","nvvidb","bw3vv","TY0V01","Dagen",null,"N","",null,"",""]
[null,null,null,null,"zlsxvt_nvvidb_bw4vv_TY0V01","='Volledig pakket thuis'!$C$11","","Volledig pakket thuis, Verpleging en verzorging incl. dagbesteding- Beschut wonen met intensieve begeleiding en uitgebreide verzorging- aantal","zlsxvt","nvvidb","bw4vv","TY0V01","Dagen",null,"N","",null,"",""]
[null,null,null,null,"zlsxvt_nvvidb_bw5vv_TY0V01","='Volledig pakket thuis'!$C$12","","Volledig pakket thuis, Verpleging en verzorging incl. dagbesteding- Beschermd wonen met intensieve dementiezorg- aantal","zlsxvt","nvvidb","bw5vv","TY0V01","Dagen",null,"N","",null,"",""]
[null,null,null,null,"zlsxvt_nvvidb_bw6vv_TY0V01","='Volledig pakket thuis'!$C$13","","Volledig pakket thuis, Verpleging en verzorging incl. dagbesteding- Beschermd wonen met intensieve verzorging en verpleging- aantal","zlsxvt","nvvidb","bw6vv","TY0V01","Dagen",null,"N","",null,"",""]
[null,null,null,null,"zlsxvt_nvvidb_bw7vv_TY0V01","='Volledig pakket thuis'!$C$14","","Volledig pakket thuis, Verpleging en verzorging incl. dagbesteding- Beschermd wonen met zeer intensieve zorg, vanwege specifieke aandoeningen, met nadruk op begeleidingg- aantal","zlsxvt","nvvidb","bw7vv","TY0V01","Dagen",null,"N","",null,"",""]
[null,null,null,null,"zlsxvt_nvvidb_bw8vv_TY0V01","='Volledig pakket thuis'!$C$15","","Volledig pakket thuis, Verpleging en verzorging incl. dagbesteding- Beschermd wonen met zeer intensieve zorg, vanwege specifieke aandoeningen, met nadruk op verzorging/verpleging- aantal","zlsxvt","nvvidb","bw8vv","TY0V01","Dagen",null,"N","",null,"",""]
[null,null,null,null,"zlsxvt_nvvidb_hg9vv_TY0V01","='Volledig pakket thuis'!$C$16","","Volledig pakket thuis, Verpleging en verzorging incl. dagbesteding- Herstelgerichte verpleging en verzorging- aantal","zlsxvt","nvvidb","hg9vv","TY0V01","Dagen",null,"N","",null,"",""]
[null,null,null,null,"zlsxvt_nvvidb_ht10vv_TY0V01","='Volledig pakket thuis'!$C$17","","Volledig pakket thuis, Verpleging en verzorging incl. dagbesteding- Beschermd verblijf met intensieve palliatief-terminale zorg- aantal","zlsxvt","nvvidb","ht10vv","TY0V01","Dagen",null,"N","",null,"",""]
[null,null,null,null,"zlsxvt_ngvisedb_wb1zgvis_TY0V01","='Volledig pakket thuis'!$C$108","","Volledig pakket thuis, Visueel gehandicapten, excl. dagbesteding- Wonen met enige begeleiding en enige verzorging- aantal","zlsxvt","nzvisedb","wb1zgvis","TY0V01","Dagen",null,"N","",null,"",""]
[null,null,null,null,"zlsxvt_ngvisedb_wb2zgvis_TY0V01","='Volledig pakket thuis'!$C$109","","Volledig pakket thuis, Visueel gehandicapten, excl. dagbesteding- Wonen met begeleiding en enige verzorging- aantal","zlsxvt","nzvisedb","wb2zgvis","TY0V01","Dagen",null,"N","",null,"",""]
[null,null,null,null,"zlsxvt_ngvisedb_wb3zgvis_TY0V01","='Volledig pakket thuis'!$C$110","","Volledig pakket thuis, Visueel gehandicapten, excl. dagbesteding- Wonen met intensieve begeleiding en verzorging- aantal","zlsxvt","nzvisedb","wb3zgvis","TY0V01","Dagen",null,"N","",null,"",""]
[null,null,null,null,"zlsxvt_ngvisedb_wb4zgvis_TY0V01","='Volledig pakket thuis'!$C$111","","Volledig pakket thuis, Visueel gehandicapten, excl. dagbesteding- Wonen met intensieve begeleiding en intensieve verzorging- aantal","zlsxvt","nzvisedb","wb4zgvis","TY0V01","Dagen",null,"N","",null,"",""]
[null,null,null,null,"zlsxvt_ngvisedb_wb5zgvis_TY0V01","='Volledig pakket thuis'!$C$112","","Volledig pakket thuis, Visueel gehandicapten, excl. dagbesteding- Wonen met zeer intensieve begeleiding en zeer intensieve verzorging- aantal","zlsxvt","nzvisedb","wb5zgvis","TY0V01","Dagen",null,"N","",null,"",""]
[null,null,null,null,"zlsxvvdb_azmvdbgz_lg_TY0V01","='Dagbesteding en vervoer'!$C$20","","Zorg, met verblijf, dagbesteding, gehandicaptenzorg- LG (TOTAAL)- bedrag","zlsxvvdb","azmvdbgz","lg","TY0V01","Dagdelen",null,"N","",null,"",""]
[null,null,null,null,"zlsxvvdb_azmvdbgz_vg_TY0V01","='Dagbesteding en vervoer'!$C$19","","Zorg, met verblijf, dagbesteding, gehandicaptenzorg- VG (TOTAAL)- bedrag","zlsxvvdb","azmvdbgz","vg","TY0V01","Dagdelen",null,"N","",null,"",""]
[null,null,null,null,"zlsxvvdb_azmvdbgz_zgaud_TY0V01","='Dagbesteding en vervoer'!$C$21","","Zorg, met verblijf, dagbesteding, gehandicaptenzorg- ZG auditief (TOTAAL)- bedrag","zlsxvvdb","azmvdbgz","zgaud","TY0V01","Dagdelen",null,"N","",null,"",""]
[null,null,null,null,"zlsxvvdb_azmvdbgz_zgvis_TY0V01","='Dagbesteding en vervoer'!$C$22","","Zorg, met verblijf, dagbesteding, gehandicaptenzorg- ZG visueel (TOTAAL)- bedrag","zlsxvvdb","azmvdbgz","zgvis","TY0V01","Dagdelen",null,"N","",null,"",""]
[null,null,null,null,"zlsxvvdb_azmvvv_vv_TY0V01","='Dagbesteding en vervoer'!$C$28","","Zorg, met verblijf, dagbesteding, gehandicaptenzorg- Vervoer (TOTAAL)- bedrag","zlsxvvdb","azmvvv","vv","TY0V01","Dagen",null,"N","",null,"",""]
[null,null,null,null,"zlsxvvdb_azzvdb_lft14z_TY0V01","='Dagbesteding en vervoer'!$C$8","","Zorg, zonder verblijf, dagbesteding- ouderen (TOTAAL)- bedrag","zlsxvvdb","azzvdb","lft14z","TY0V01","Dagdelen",null,"N","",null,"",""]
[null,null,null,null,"zlsxvvdb_azzvdb_lg_TY0V01","='Dagbesteding en vervoer'!$C$10","","Zorg, zonder verblijf, dagbesteding- LG (TOTAAL)- bedrag","zlsxvvdb","azzvdb","lg","TY0V01","Dagdelen",null,"N","",null,"",""]
[null,null,null,null,"zlsxvvdb_azzvdb_vg_TY0V01","='Dagbesteding en vervoer'!$C$9","","Zorg, zonder verblijf, dagbesteding- VG (TOTAAL)- bedrag","zlsxvvdb","azzvdb","vg","TY0V01","Dagdelen",null,"N","",null,"",""]
[null,null,null,null,"zlsxvvdb_azzvdb_vv_TY0V01","='Dagbesteding en vervoer'!$C$14","","Zorg, zonder verblijf, dagbesteding- Vervoer dagbesteding (TOTAAL)- bedrag","zlsxvvdb","azzvdb","vv","TY0V01","Dagen",null,"N","",null,"",""]
[null,null,null,null,"zlsxvvdb_azzvdb_zgaud_TY0V01","='Dagbesteding en vervoer'!$C$11","","Zorg, zonder verblijf, dagbesteding- ZG auditief (TOTAAL)- bedrag","zlsxvvdb","azzvdb","zgaud","TY0V01","Dagdelen",null,"N","",null,"",""]
[null,null,null,null,"zlsxvvdb_azzvdb_zgvis_TY0V01","='Dagbesteding en vervoer'!$C$12","","Zorg, zonder verblijf, dagbesteding- ZG visueel (TOTAAL)- bedrag","zlsxvvdb","azzvdb","zgvis","TY0V01","Dagdelen",null,"N","",null,"",""]
[null,null,null,null,"zlsxvvdb_nzmvdbgz_lg_TY0V01","='Dagbesteding en vervoer'!$B$20","","Zorg, met verblijf, dagbesteding, gehandicaptenzorg- LG (TOTAAL)- aantal","zlsxvvdb","nzmvdbgz","lg","TY0V01","Dagdelen",null,"N","",null,"",""]
[null,null,null,null,"zlsxvvdb_nzmvdbgz_vg_TY0V01","='Dagbesteding en vervoer'!$B$19","","Zorg, met verblijf, dagbesteding, gehandicaptenzorg- VG (TOTAAL)- aantal","zlsxvvdb","nzmvdbgz","vg","TY0V01","Dagdelen",null,"N","",null,"",""]
[null,null,null,null,"zlsxvvdb_nzmvdbgz_zgaud_TY0V01","='Dagbesteding en vervoer'!$B$21","","Zorg, met verblijf, dagbesteding, gehandicaptenzorg- ZG auditief (TOTAAL)- aantal","zlsxvvdb","nzmvdbgz","zgaud","TY0V01","Dagdelen",null,"N","",null,"",""]
[null,null,null,null,"zlsxvvdb_nzmvdbgz_zgvis_TY0V01","='Dagbesteding en vervoer'!$B$22","","Zorg, met verblijf, dagbesteding, gehandicaptenzorg- ZG visueel (TOTAAL)- aantal","zlsxvvdb","nzmvdbgz","zgvis","TY0V01","Dagdelen",null,"N","",null,"",""]
[null,null,null,null,"zlsxvvdb_nzmvvv_vv_TY0V01","='Dagbesteding en vervoer'!$B$28","","Zorg, met verblijf, dagbesteding, gehandicaptenzorg- Vervoer (TOTAAL)- aantal","zlsxvvdb","nzmvvv","vv","TY0V01","Dagen",null,"N","",null,"",""]
[null,null,null,null,"zlsxvvdb_nzzvdb_lft14z_TY0V01","='Dagbesteding en vervoer'!$B$8","","Zorg, zonder verblijf, dagbesteding- ouderen (TOTAAL)- aantal","zlsxvvdb","nzzvdb","lft14z","TY0V01","Dagdelen",null,"N","",null,"",""]
[null,null,null,null,"zlsxvvdb_nzzvdb_lg_TY0V01","='Dagbesteding en vervoer'!$B$10","","Zorg, zonder verblijf, dagbesteding- LG (TOTAAL)- aantal","zlsxvvdb","nzzvdb","lg","TY0V01","Dagdelen",null,"N","",null,"",""]
[null,null,null,null,"zlsxvvdb_nzzvdb_vg_TY0V01","='Dagbesteding en vervoer'!$B$9","","Zorg, zonder verblijf, dagbesteding- VG (TOTAAL)- aantal","zlsxvvdb","nzzvdb","vg","TY0V01","Dagdelen",null,"N","",null,"",""]
[null,null,null,null,"zlsxvvdb_nzzvdb_vv_TY0V01","='Dagbesteding en vervoer'!$B$14","","Zorg, zonder verblijf, dagbesteding- Vervoer dagbesteding (TOTAAL)- aantal","zlsxvvdb","nzzvdb","vv","TY0V01","Dagen",null,"N","",null,"",""]
[null,null,null,null,"zlsxvvdb_nzzvdb_zgaud_TY0V01","='Dagbesteding en vervoer'!$B$11","","Zorg, zonder verblijf, dagbesteding- ZG auditief (TOTAAL)- aantal","zlsxvvdb","nzzvdb","zgaud","TY0V01","Dagdelen",null,"N","",null,"",""]
[null,null,null,null,"zlsxvvdb_nzzvdb_zgvis_TY0V01","='Dagbesteding en vervoer'!$B$12","","Zorg, zonder verblijf, dagbesteding- ZG visueel (TOTAAL)- aantal","zlsxvvdb","nzzvdb","zgvis","TY0V01","Dagdelen",null,"N","",null,"",""]
[null,null,null,null,"zlsxzp_abgrpedb_wb1bggz_TY0V01","='Zorg via CAK - AK en ZMV'!$E$139","","zorgzwaartepakket GGZ B-Groep, excl. dagbesteding- Voortgezet verblijf met begeleiding- bedrag","zlsxzp","abgrpedb","wb1bggz","TY0V01","Dagen",null,"N","",null,"",""]
[null,null,null,null,"zlsxzp_abgrpedb_wb2bggz_TY0V01","='Zorg via CAK - AK en ZMV'!$E$140","","zorgzwaartepakket GGZ B-Groep, excl. dagbesteding- Voortgezet verblijf met structuur en uitgebreide begeleiding- bedrag","zlsxzp","abgrpedb","wb2bggz","TY0V01","Dagen",null,"N","",null,"",""]
[null,null,null,null,"zlsxzp_abgrpedb_wb3bggz_TY0V01","='Zorg via CAK - AK en ZMV'!$E$141","","zorgzwaartepakket GGZ B-Groep, excl. dagbesteding- Voortgezet verblijf met intensieve begeleiding- bedrag","zlsxzp","abgrpedb","wb3bggz","TY0V01","Dagen",null,"N","",null,"",""]
[null,null,null,null,"zlsxzp_abgrpedb_wb4bggz_TY0V01","='Zorg via CAK - AK en ZMV'!$E$142","","zorgzwaartepakket GGZ B-Groep, excl. dagbesteding- Voortgezet verblijf met intensieve begeleiding en verzorging- bedrag","zlsxzp","abgrpedb","wb4bggz","TY0V01","Dagen",null,"N","",null,"",""]
[null,null,null,null,"zlsxzp_abgrpedb_wb5bggz_TY0V01","='Zorg via CAK - AK en ZMV'!$E$143","","zorgzwaartepakket GGZ B-Groep, excl. dagbesteding- Voortgezet verblijf met intensieve begeleiding en gedragsregulering- bedrag","zlsxzp","abgrpedb","wb5bggz","TY0V01","Dagen",null,"N","",null,"",""]
[null,null,null,null,"zlsxzp_abgrpedb_wb6bggz_TY0V01","='Zorg via CAK - AK en ZMV'!$E$144","","zorgzwaartepakket GGZ B-Groep, excl. dagbesteding- Voortgezet verblijf met intensieve begeleiding en intensieve verpleging en verzorging- bedrag","zlsxzp","abgrpedb","wb6bggz","TY0V01","Dagen",null,"N","",null,"",""]
[null,null,null,null,"zlsxzp_abgrpedb_wb7bggz_TY0V01","='Zorg via CAK - AK en ZMV'!$E$145","","zorgzwaartepakket GGZ B-Groep, excl. dagbesteding- Beveiligd voortgezet verblijf vanwege extreme gedragsproblematiek met zeer intensieve begeleiding- bedrag","zlsxzp","abgrpedb","wb7bggz","TY0V01","Dagen",null,"N","",null,"",""]
[null,null,null,null,"zlsxzp_abgrpidb_wb1bggz_TY0V01","='Zorg via CAK - AK en ZMV'!$E$128","","zorgzwaartepakket GGZ B-Groep, incl. dagbesteding- Voortgezet verblijf met begeleiding- bedrag","zlsxzp","abgrpidb","wb1bggz","TY0V01","Dagen",null,"N","",null,"",""]
[null,null,null,null,"zlsxzp_abgrpidb_wb2bggz_TY0V01","='Zorg via CAK - AK en ZMV'!$E$129","","zorgzwaartepakket GGZ B-Groep, incl. dagbesteding- Voortgezet verblijf met structuur en uitgebreide begeleiding- bedrag","zlsxzp","abgrpidb","wb2bggz","TY0V01","Dagen",null,"N","",null,"",""]
[null,null,null,null,"zlsxzp_abgrpidb_wb3bggz_TY0V01","='Zorg via CAK - AK en ZMV'!$E$130","","zorgzwaartepakket GGZ B-Groep, incl. dagbesteding- Voortgezet verblijf met intensieve begeleiding- bedrag","zlsxzp","abgrpidb","wb3bggz","TY0V01","Dagen",null,"N","",null,"",""]
[null,null,null,null,"zlsxzp_abgrpidb_wb4bggz_TY0V01","='Zorg via CAK - AK en ZMV'!$E$131","","zorgzwaartepakket GGZ B-Groep, incl. dagbesteding- Voortgezet verblijf met intensieve begeleiding en verzorging- bedrag","zlsxzp","abgrpidb","wb4bggz","TY0V01","Dagen",null,"N","",null,"",""]
[null,null,null,null,"zlsxzp_abgrpidb_wb5bggz_TY0V01","='Zorg via CAK - AK en ZMV'!$E$132","","zorgzwaartepakket GGZ B-Groep, incl. dagbesteding- Voortgezet verblijf met intensieve begeleiding en gedragsregulering- bedrag","zlsxzp","abgrpidb","wb5bggz","TY0V01","Dagen",null,"N","",null,"",""]
[null,null,null,null,"zlsxzp_abgrpidb_wb6bggz_TY0V01","='Zorg via CAK - AK en ZMV'!$E$133","","zorgzwaartepakket GGZ B-Groep, incl. dagbesteding- Voortgezet verblijf met intensieve begeleiding en intensieve verpleging en verzorging- bedrag","zlsxzp","abgrpidb","wb6bggz","TY0V01","Dagen",null,"N","",null,"",""]
[null,null,null,null,"zlsxzp_abgrpidb_wb7bggz_TY0V01","='Zorg via CAK - AK en ZMV'!$E$134","","zorgzwaartepakket GGZ B-Groep, incl. dagbesteding- Beveiligd voortgezet verblijf vanwege extreme gedragsproblematiek met zeer intensieve begeleiding- bedrag","zlsxzp","abgrpidb","wb7bggz","TY0V01","Dagen",null,"N","",null,"",""]
[null,null,null,null,"zlsxzp_afgedb_wb1lg_TY0V01","='Zorg via CAK - AK en ZMV'!$E$77","","zorgzwaartepakket Lichamelijk gehandicapten, excl. dagbesteding- Wonen met enige begeleiding en enige verzorging- bedrag","zlsxzp","afgedb","wb1lg","TY0V01","Dagen",null,"N","",null,"",""]
[null,null,null,null,"zlsxzp_afgedb_wb2lg_TY0V01","='Zorg via CAK - AK en ZMV'!$E$78","","zorgzwaartepakket Lichamelijk gehandicapten, excl. dagbesteding- Wonen met begeleiding en enige verzorging- bedrag","zlsxzp","afgedb","wb2lg","TY0V01","Dagen",null,"N","",null,"",""]
[null,null,null,null,"zlsxzp_afgedb_wb3lg_TY0V01","='Zorg via CAK - AK en ZMV'!$E$79","","zorgzwaartepakket Lichamelijk gehandicapten, excl. dagbesteding- Wonen met enige begeleiding en verzorging- bedrag","zlsxzp","afgedb","wb3lg","TY0V01","Dagen",null,"N","",null,"",""]
[null,null,null,null,"zlsxzp_afgedb_wb4lg_TY0V01","='Zorg via CAK - AK en ZMV'!$E$80","","zorgzwaartepakket Lichamelijk gehandicapten, excl. dagbesteding- Wonen met begeleiding en verzorging- bedrag","zlsxzp","afgedb","wb4lg","TY0V01","Dagen",null,"N","",null,"",""]
[null,null,null,null,"zlsxzp_afgedb_wb5lg_TY0V01","='Zorg via CAK - AK en ZMV'!$E$81","","zorgzwaartepakket Lichamelijk gehandicapten, excl. dagbesteding- Wonen met begeleiding en intensieve verzorging- bedrag","zlsxzp","afgedb","wb5lg","TY0V01","Dagen",null,"N","",null,"",""]
[null,null,null,null,"zlsxzp_afgedb_wb6lg_TY0V01","='Zorg via CAK - AK en ZMV'!$E$82","","zorgzwaartepakket Lichamelijk gehandicapten, excl. dagbesteding- Wonen met intensieve begeleiding en intensieve verzorging- bedrag","zlsxzp","afgedb","wb6lg","TY0V01","Dagen",null,"N","",null,"",""]
[null,null,null,null,"zlsxzp_afgedb_wb7lg_TY0V01","='Zorg via CAK - AK en ZMV'!$E$83","","zorgzwaartepakket Lichamelijk gehandicapten, excl. dagbesteding- Wonen met zeer intensieve begeleiding en zeer intensieve verzorging- bedrag","zlsxzp","afgedb","wb7lg","TY0V01","Dagen",null,"N","",null,"",""]
[null,null,null,null,"zlsxzp_afgidb_wb1lg_TY0V01","='Zorg via CAK - AK en ZMV'!$E$66","","zorgzwaartepakket Lichamelijk gehandicapten, incl. dagbesteding- Wonen met enige begeleiding en enige verzorging- bedrag","zlsxzp","afgidb","wb1lg","TY0V01","Dagen",null,"N","",null,"",""]
[null,null,null,null,"zlsxzp_afgidb_wb2lg_TY0V01","='Zorg via CAK - AK en ZMV'!$E$67","","zorgzwaartepakket Lichamelijk gehandicapten, incl. dagbesteding- Wonen met begeleiding en enige verzorging- bedrag","zlsxzp","afgidb","wb2lg","TY0V01","Dagen",null,"N","",null,"",""]
[null,null,null,null,"zlsxzp_afgidb_wb3lg_TY0V01","='Zorg via CAK - AK en ZMV'!$E$68","","zorgzwaartepakket Lichamelijk gehandicapten, incl. dagbesteding- Wonen met enige begeleiding en verzorging- bedrag","zlsxzp","afgidb","wb3lg","TY0V01","Dagen",null,"N","",null,"",""]
[null,null,null,null,"zlsxzp_afgidb_wb4lg_TY0V01","='Zorg via CAK - AK en ZMV'!$E$69","","zorgzwaartepakket Lichamelijk gehandicapten, incl. dagbesteding- Wonen met begeleiding en verzorging- bedrag","zlsxzp","afgidb","wb4lg","TY0V01","Dagen",null,"N","",null,"",""]
[null,null,null,null,"zlsxzp_afgidb_wb5lg_TY0V01","='Zorg via CAK - AK en ZMV'!$E$70","","zorgzwaartepakket Lichamelijk gehandicapten, incl. dagbesteding- Wonen met begeleiding en intensieve verzorging- bedrag","zlsxzp","afgidb","wb5lg","TY0V01","Dagen",null,"N","",null,"",""]
[null,null,null,null,"zlsxzp_afgidb_wb6lg_TY0V01","='Zorg via CAK - AK en ZMV'!$E$71","","zorgzwaartepakket Lichamelijk gehandicapten, incl. dagbesteding- Wonen met intensieve begeleiding en intensieve verzorging- bedrag","zlsxzp","afgidb","wb6lg","TY0V01","Dagen",null,"N","",null,"",""]
[null,null,null,null,"zlsxzp_afgidb_wb7lg_TY0V01","='Zorg via CAK - AK en ZMV'!$E$72","","zorgzwaartepakket Lichamelijk gehandicapten, incl. dagbesteding- Wonen met zeer intensieve begeleiding en zeer intensieve verzorging- bedrag","zlsxzp","afgidb","wb7lg","TY0V01","Dagen",null,"N","",null,"",""]
[null,null,null,null,"zlsxzp_agaudedb_wb1zgaud_TY0V01","='Zorg via CAK - AK en ZMV'!$E$96","","zorgzwaartepakket Auditief en communicatief gehandicapten, excl. dagbesteding- Wonen met enige begeleiding en enige verzorging- bedrag","zlsxzp","agaudedb","wb1zgaud","TY0V01","Dagen",null,"N","",null,"",""]
[null,null,null,null,"zlsxzp_agaudedb_wb2zgaud_TY0V01","='Zorg via CAK - AK en ZMV'!$E$97","","zorgzwaartepakket Auditief en communicatief gehandicapten, excl. dagbesteding- Wonen met intensieve begeleiding en verzorging- bedrag","zlsxzp","agaudedb","wb2zgaud","TY0V01","Dagen",null,"N","",null,"",""]
[null,null,null,null,"zlsxzp_agaudedb_wb3zgaud_TY0V01","='Zorg via CAK - AK en ZMV'!$E$98","","zorgzwaartepakket Auditief en communicatief gehandicapten, excl. dagbesteding- Wonen met intensieve begeleiding en intensieve verzorging- bedrag","zlsxzp","agaudedb","wb3zgaud","TY0V01","Dagen",null,"N","",null,"",""]
[null,null,null,null,"zlsxzp_agaudedb_wb4zgaud_TY0V01","='Zorg via CAK - AK en ZMV'!$E$99","","zorgzwaartepakket Auditief en communicatief gehandicapten, excl. dagbesteding- Wonen met intensieve begeleiding en enige verzorging- bedrag","zlsxzp","agaudedb","wb4zgaud","TY0V01","Dagen",null,"N","",null,"",""]
[null,null,null,null,"zlsxzp_agaudidb_wb1zgaud_TY0V01","='Zorg via CAK - AK en ZMV'!$E$88","","zorgzwaartepakket Auditief en communicatief gehandicapten, incl. dagbesteding- Wonen met enige begeleiding en enige verzorging- bedrag","zlsxzp","agaudidb","wb1zgaud","TY0V01","Dagen",null,"N","",null,"",""]
[null,null,null,null,"zlsxzp_agaudidb_wb2zgaud_TY0V01","='Zorg via CAK - AK en ZMV'!$E$89","","zorgzwaartepakket Auditief en communicatief gehandicapten, incl. dagbesteding- Wonen met intensieve begeleiding en verzorging- bedrag","zlsxzp","agaudidb","wb2zgaud","TY0V01","Dagen",null,"N","",null,"",""]
[null,null,null,null,"zlsxzp_agaudidb_wb3zgaud_TY0V01","='Zorg via CAK - AK en ZMV'!$E$90","","zorgzwaartepakket Auditief en communicatief gehandicapten, incl. dagbesteding- Wonen met intensieve begeleiding en intensieve verzorging- bedrag","zlsxzp","agaudidb","wb3zgaud","TY0V01","Dagen",null,"N","",null,"",""]
[null,null,null,null,"zlsxzp_agaudidb_wb4zgaud_TY0V01","='Zorg via CAK - AK en ZMV'!$E$91","","zorgzwaartepakket Auditief en communicatief gehandicapten, incl. dagbesteding- Wonen met intensieve begeleiding en enige verzorging- bedrag","zlsxzp","agaudidb","wb4zgaud","TY0V01","Dagen",null,"N","",null,"",""]
[null,null,null,null,"zlsxzp_agvisidb_wb1zgvis_TY0V01","='Zorg via CAK - AK en ZMV'!$E$104","","zorgzwaartepakket Visueel gehandicapten, incl. dagbesteding- Wonen met enige begeleiding en enige verzorging- bedrag","zlsxzp","agvisidb","wb1zgvis","TY0V01","Dagen",null,"N","",null,"",""]
[null,null,null,null,"zlsxzp_agvisidb_wb2zgvis_TY0V01","='Zorg via CAK - AK en ZMV'!$E$105","","zorgzwaartepakket Visueel gehandicapten, incl. dagbesteding- Wonen met begeleiding en enige verzorging- bedrag","zlsxzp","agvisidb","wb2zgvis","TY0V01","Dagen",null,"N","",null,"",""]
[null,null,null,null,"zlsxzp_agvisidb_wb3zgvis_TY0V01","='Zorg via CAK - AK en ZMV'!$E$106","","zorgzwaartepakket Visueel gehandicapten, incl. dagbesteding- Wonen met intensieve begeleiding en verzorging- bedrag","zlsxzp","agvisidb","wb3zgvis","TY0V01","Dagen",null,"N","",null,"",""]
[null,null,null,null,"zlsxzp_agvisidb_wb4gvis_TY0V01","='Zorg via CAK - AK en ZMV'!$E$107","","zorgzwaartepakket Visueel gehandicapten, incl. dagbesteding- Wonen met intensieve begeleiding en intensieve verzorging- bedrag","zlsxzp","agvisidb","wb4gvis","TY0V01","Dagen",null,"N","",null,"",""]
[null,null,null,null,"zlsxzp_agvisidb_wb5zgvis_TY0V01","='Zorg via CAK - AK en ZMV'!$E$108","","zorgzwaartepakket Visueel gehandicapten, incl. dagbesteding- Wonen met zeer intensieve begeleiding en zeer intensieve verzorging- bedrag","zlsxzp","agvisidb","wb5zgvis","TY0V01","Dagen",null,"N","",null,"",""]
[null,null,null,null,"zlsxzp_alvgidb_wb1lvg_TY0V01","='Zorg via CAK - AK en ZMV'!$E$47","","zorgzwaartepakket Licht verstandelijk gehandicapten, incl. dagbesteding- Wonen met enige behandeling en begeleiding- bedrag","zlsxzp","alvgidb","wb1lvg","TY0V01","Dagen",null,"N","",null,"",""]
[null,null,null,null,"zlsxzp_alvgidb_wb2lvg_TY0V01","='Zorg via CAK - AK en ZMV'!$E$48","","zorgzwaartepakket Licht verstandelijk gehandicapten, incl. dagbesteding- Wonen met behandeling en begeleiding- bedrag","zlsxzp","alvgidb","wb2lvg","TY0V01","Dagen",null,"N","",null,"",""]
[null,null,null,null,"zlsxzp_alvgidb_wb3lvg_TY0V01","='Zorg via CAK - AK en ZMV'!$E$49","","zorgzwaartepakket Licht verstandelijk gehandicapten, incl. dagbesteding- Wonen met intensieve behandeling en begeleiding, kleine groep- bedrag","zlsxzp","alvgidb","wb3lvg","TY0V01","Dagen",null,"N","",null,"",""]
[null,null,null,null,"zlsxzp_alvgidb_wb4lvg_TY0V01","='Zorg via CAK - AK en ZMV'!$E$50","","zorgzwaartepakket Licht verstandelijk gehandicapten, incl. dagbesteding- Wonen met zeer intensieve behandeling en begeleiding- bedrag","zlsxzp","alvgidb","wb4lvg","TY0V01","Dagen",null,"N","",null,"",""]
[null,null,null,null,"zlsxzp_alvgidb_wb5lvg_TY0V01","='Zorg via CAK - AK en ZMV'!$E$51","","zorgzwaartepakket Licht verstandelijk gehandicapten, incl. dagbesteding- Besloten wonen met zeer intensieve behandeling en begeleiding- bedrag","zlsxzp","alvgidb","wb5lvg","TY0V01","Dagen",null,"N","",null,"",""]
[null,null,null,null,"zlsxzp_asglgidb_wb15glvg_TY0V01","='Zorg via CAK - AK en ZMV'!$E$61","","zorgzwaartepakket Sterk gedragsgestoorde licht verstandelijk gehandicapten incl. dagbesteding- Behandeling in een SGLVG behandelcentrum- bedrag","zlsxzp","asglgidb","wb15glvg","TY0V01","Dagen",null,"N","",null,"",""]
[null,null,null,null,"zlsxzp_avgedb_w1vg_TY0V01","='Zorg via CAK - AK en ZMV'!$E$35","","zorgzwaartepakket Verstandelijk gehandicapten, excl. dagbesteding- Wonen met enige begeleiding- bedrag","zlsxzp","avgedb","w1vg","TY0V01","Dagen",null,"N","",null,"",""]
[null,null,null,null,"zlsxzp_avgedb_w2vg_TY0V01","='Zorg via CAK - AK en ZMV'!$E$36","","zorgzwaartepakket Verstandelijk gehandicapten, excl. dagbesteding- Wonen met begeleiding- bedrag","zlsxzp","avgedb","w2vg","TY0V01","Dagen",null,"N","",null,"",""]
[null,null,null,null,"zlsxzp_avgedb_w3vg_TY0V01","='Zorg via CAK - AK en ZMV'!$E$37","","zorgzwaartepakket Verstandelijk gehandicapten, excl. dagbesteding- Wonen met begeleiding en verzorging- bedrag","zlsxzp","avgedb","w3vg","TY0V01","Dagen",null,"N","",null,"",""]
[null,null,null,null,"zlsxzp_avgedb_w4vg_TY0V01","='Zorg via CAK - AK en ZMV'!$E$38","","zorgzwaartepakket Verstandelijk gehandicapten, excl. dagbesteding- Wonen met begeleiding en intensieve verzorging- bedrag","zlsxzp","avgedb","w4vg","TY0V01","Dagen",null,"N","",null,"",""]
[null,null,null,null,"zlsxzp_avgedb_w5vg_TY0V01","='Zorg via CAK - AK en ZMV'!$E$39","","zorgzwaartepakket Verstandelijk gehandicapten, excl. dagbesteding- Wonen met intensieve begeleiding en intensieve verzorging- bedrag","zlsxzp","avgedb","w5vg","TY0V01","Dagen",null,"N","",null,"",""]
[null,null,null,null,"zlsxzp_avgedb_w6vg_TY0V01","='Zorg via CAK - AK en ZMV'!$E$40","","zorgzwaartepakket Verstandelijk gehandicapten, excl. dagbesteding- Wonen met intensieve begeleiding, verzorging en gedragsregulering- bedrag","zlsxzp","avgedb","w6vg","TY0V01","Dagen",null,"N","",null,"",""]
[null,null,null,null,"zlsxzp_avgedb_w7vg_TY0V01","='Zorg via CAK - AK en ZMV'!$E$41","","zorgzwaartepakket Verstandelijk gehandicapten, excl. dagbesteding- (Besloten) wonen met zeer intensieve begeleiding, verzorging en gedragsregulering- bedrag","zlsxzp","avgedb","w7vg","TY0V01","Dagen",null,"N","",null,"",""]
[null,null,null,null,"zlsxzp_avgedb_w8vg_TY0V01","='Zorg via CAK - AK en ZMV'!$E$42","","zorgzwaartepakket Verstandelijk gehandicapten, excl. dagbesteding- Wonen met begeleiding en volledige verzorging en verpleging- bedrag","zlsxzp","avgedb","w8vg","TY0V01","Dagen",null,"N","",null,"",""]
[null,null,null,null,"zlsxzp_avgidb_w1vg_TY0V01","='Zorg via CAK - AK en ZMV'!$E$23","","zorgzwaartepakket Verstandelijk gehandicapten, incl. dagbesteding- Wonen met enige begeleiding- bedrag","zlsxzp","avgidb","w1vg","TY0V01","Dagen",null,"N","",null,"",""]
[null,null,null,null,"zlsxzp_avgidb_w2vg_TY0V01","='Zorg via CAK - AK en ZMV'!$E$24","","zorgzwaartepakket Verstandelijk gehandicapten, incl. dagbesteding- Wonen met begeleiding- bedrag","zlsxzp","avgidb","w2vg","TY0V01","Dagen",null,"N","",null,"",""]
[null,null,null,null,"zlsxzp_avgidb_w3vg_TY0V01","='Zorg via CAK - AK en ZMV'!$E$25","","zorgzwaartepakket Verstandelijk gehandicapten, incl. dagbesteding- Wonen met begeleiding en verzorging- bedrag","zlsxzp","avgidb","w3vg","TY0V01","Dagen",null,"N","",null,"",""]
[null,null,null,null,"zlsxzp_avgidb_w4vg_TY0V01","='Zorg via CAK - AK en ZMV'!$E$26","","zorgzwaartepakket Verstandelijk gehandicapten, incl. dagbesteding- Wonen met begeleiding en intensieve verzorging- bedrag","zlsxzp","avgidb","w4vg","TY0V01","Dagen",null,"N","",null,"",""]
[null,null,null,null,"zlsxzp_avgidb_w5vg_TY0V01","='Zorg via CAK - AK en ZMV'!$E$27","","zorgzwaartepakket Verstandelijk gehandicapten, incl. dagbesteding- Wonen met intensieve begeleiding en intensieve verzorging- bedrag","zlsxzp","avgidb","w5vg","TY0V01","Dagen",null,"N","",null,"",""]
[null,null,null,null,"zlsxzp_avgidb_w6vg_TY0V01","='Zorg via CAK - AK en ZMV'!$E$28","","zorgzwaartepakket Verstandelijk gehandicapten, incl. dagbesteding- Wonen met intensieve begeleiding, verzorging en gedragsregulering- bedrag","zlsxzp","avgidb","w6vg","TY0V01","Dagen",null,"N","",null,"",""]
[null,null,null,null,"zlsxzp_avgidb_w7vg_TY0V01","='Zorg via CAK - AK en ZMV'!$E$29","","zorgzwaartepakket Verstandelijk gehandicapten, incl. dagbesteding- (Besloten) wonen met zeer intensieve begeleiding, verzorging en gedragsregulering- bedrag","zlsxzp","avgidb","w7vg","TY0V01","Dagen",null,"N","",null,"",""]
[null,null,null,null,"zlsxzp_avgidb_w8vg_TY0V01","='Zorg via CAK - AK en ZMV'!$E$30","","zorgzwaartepakket Verstandelijk gehandicapten, incl. dagbesteding- Wonen met begeleiding en volledige verzorging en verpleging- bedrag","zlsxzp","avgidb","w8vg","TY0V01","Dagen",null,"N","",null,"",""]
[null,null,null,null,"zlsxzp_avzidb_bv10vv_TY0V01","='Zorg via CAK - AK en ZMV'!$E$17","","zorgzwaartepakket verpleging en verzorging, inclusief dagbesteding- Beschermd verblijf met intensieve palliatief-terminale zorg- bedrag","zlsxzp","avzidb","bv10vv","TY0V01","Dagen",null,"N","",null,"",""]
[null,null,null,null,"zlsxzp_avzidb_bw1vv_TY0V01","='Zorg via CAK - AK en ZMV'!$E$8","","zorgzwaartepakket verpleging en verzorging, inclusief dagbesteding- Beschut wonen met enige begeleiding- bedrag","zlsxzp","avzidb","bw1vv","TY0V01","Dagen",null,"N","",null,"",""]
[null,null,null,null,"zlsxzp_avzidb_bw2vv_TY0V01","='Zorg via CAK - AK en ZMV'!$E$9","","zorgzwaartepakket verpleging en verzorging, inclusief dagbesteding- Beschut wonen met begeleiding en verzorging- bedrag","zlsxzp","avzidb","bw2vv","TY0V01","Dagen",null,"N","",null,"",""]
[null,null,null,null,"zlsxzp_avzidb_bw3vv_TY0V01","='Zorg via CAK - AK en ZMV'!$E$10","","zorgzwaartepakket verpleging en verzorging, inclusief dagbesteding- Beschut wonen met begeleiding en intensieve verzorging- bedrag","zlsxzp","avzidb","bw3vv","TY0V01","Dagen",null,"N","",null,"",""]
[null,null,null,null,"zlsxzp_avzidb_bw4vv_TY0V01","='Zorg via CAK - AK en ZMV'!$E$11","","zorgzwaartepakket verpleging en verzorging, inclusief dagbesteding- Beschut wonen met intensieve begeleiding en uitgebreide verzorging- bedrag","zlsxzp","avzidb","bw4vv","TY0V01","Dagen",null,"N","",null,"",""]
[null,null,null,null,"zlsxzp_avzidb_bw5vv_TY0V01","='Zorg via CAK - AK en ZMV'!$E$12","","zorgzwaartepakket verpleging en verzorging, inclusief dagbesteding- Beschermd wonen met intensieve dementiezorg- bedrag","zlsxzp","avzidb","bw5vv","TY0V01","Dagen",null,"N","",null,"",""]
[null,null,null,null,"zlsxzp_avzidb_bw6vv_TY0V01","='Zorg via CAK - AK en ZMV'!$E$13","","zorgzwaartepakket verpleging en verzorging, inclusief dagbesteding- Beschermd wonen met intensieve verzorging en verpleging- bedrag","zlsxzp","avzidb","bw6vv","TY0V01","Dagen",null,"N","",null,"",""]
[null,null,null,null,"zlsxzp_avzidb_bw7vv_TY0V01","='Zorg via CAK - AK en ZMV'!$E$14","","zorgzwaartepakket verpleging en verzorging, inclusief dagbesteding- Beschermd wonen met zeer intensieve zorg, vanwege specifieke aandoeningen, met nadruk op begeleiding- bedrag","zlsxzp","avzidb","bw7vv","TY0V01","Dagen",null,"N","",null,"",""]
[null,null,null,null,"zlsxzp_avzidb_bw8vv_TY0V01","='Zorg via CAK - AK en ZMV'!$E$15","","zorgzwaartepakket verpleging en verzorging, inclusief dagbesteding- Beschermd wonen met zeer intensieve zorg, vanwege specifieke aandoeningen, met nadruk op verzorging/verpleging- bedrag","zlsxzp","avzidb","bw8vv","TY0V01","Dagen",null,"N","",null,"",""]
[null,null,null,null,"zlsxzp_avzidb_hv9vvb_TY0V01","='Zorg via CAK - AK en ZMV'!$E$16","","zorgzwaartepakket verpleging en verzorging, inclusief dagbesteding- Herstelgerichte verpleging en verzorging- bedrag","zlsxzp","avzidb","hv9vvb","TY0V01","Dagen",null,"N","",null,"",""]
[null,null,null,null,"zlsxzp_agvisedb_wb1zgvis_TY0V01","='Zorg via CAK - AK en ZMV'!$E$118","","zorgzwaartepakket Visueel gehandicapten, excl. dagbesteding- Wonen met enige begeleiding en enige verzorging- bedrag","zlsxzp","azvisedb","wb1zgvis","TY0V01","Dagen",null,"N","",null,"",""]
[null,null,null,null,"zlsxzp_agvisedb_wb2zgvis_TY0V01","='Zorg via CAK - AK en ZMV'!$E$119","","zorgzwaartepakket Visueel gehandicapten, excl. dagbesteding- Wonen met begeleiding en enige verzorging- bedrag","zlsxzp","azvisedb","wb2zgvis","TY0V01","Dagen",null,"N","",null,"",""]
[null,null,null,null,"zlsxzp_agvisedb_wb3zgvis_TY0V01","='Zorg via CAK - AK en ZMV'!$E$120","","zorgzwaartepakket Visueel gehandicapten, excl. dagbesteding- Wonen met intensieve begeleiding en verzorging- bedrag","zlsxzp","azvisedb","wb3zgvis","TY0V01","Dagen",null,"N","",null,"",""]
[null,null,null,null,"zlsxzp_agvisedb_wb4zgvis_TY0V01","='Zorg via CAK - AK en ZMV'!$E$121","","zorgzwaartepakket Visueel gehandicapten, excl. dagbesteding- Wonen met intensieve begeleiding en intensieve verzorging- bedrag","zlsxzp","azvisedb","wb4zgvis","TY0V01","Dagen",null,"N","",null,"",""]
[null,null,null,null,"zlsxzp_agvisedb_wb5zgvis_TY0V01","='Zorg via CAK - AK en ZMV'!$E$122","","zorgzwaartepakket Visueel gehandicapten, excl. dagbesteding- Wonen met zeer intensieve begeleiding en zeer intensieve verzorging- bedrag","zlsxzp","azvisedb","wb5zgvis","TY0V01","Dagen",null,"N","",null,"",""]
[null,null,null,null,"zlsxzp_nbgrpedb_wb1bggz_TY0V01","='Zorg via CAK - AK en ZMV'!$D$139","","zorgzwaartepakket GGZ B-Groep, excl. dagbesteding- Voortgezet verblijf met begeleiding- aantal","zlsxzp","nbgrpedb","wb1bggz","TY0V01","Dagen",null,"N","",null,"",""]
[null,null,null,null,"zlsxzp_nbgrpedb_wb2bggz_TY0V01","='Zorg via CAK - AK en ZMV'!$D$140","","zorgzwaartepakket GGZ B-Groep, excl. dagbesteding- Voortgezet verblijf met structuur en uitgebreide begeleiding- aantal","zlsxzp","nbgrpedb","wb2bggz","TY0V01","Dagen",null,"N","",null,"",""]
[null,null,null,null,"zlsxzp_nbgrpedb_wb3bggz_TY0V01","='Zorg via CAK - AK en ZMV'!$D$141","","zorgzwaartepakket GGZ B-Groep, excl. dagbesteding- Voortgezet verblijf met intensieve begeleiding- aantal","zlsxzp","nbgrpedb","wb3bggz","TY0V01","Dagen",null,"N","",null,"",""]
[null,null,null,null,"zlsxzp_nbgrpedb_wb4bggz_TY0V01","='Zorg via CAK - AK en ZMV'!$D$142","","zorgzwaartepakket GGZ B-Groep, excl. dagbesteding- Voortgezet verblijf met intensieve begeleiding en verzorging- aantal","zlsxzp","nbgrpedb","wb4bggz","TY0V01","Dagen",null,"N","",null,"",""]
[null,null,null,null,"zlsxzp_nbgrpedb_wb5bggz_TY0V01","='Zorg via CAK - AK en ZMV'!$D$143","","zorgzwaartepakket GGZ B-Groep, excl. dagbesteding- Voortgezet verblijf met intensieve begeleiding en gedragsregulering- aantal","zlsxzp","nbgrpedb","wb5bggz","TY0V01","Dagen",null,"N","",null,"",""]
[null,null,null,null,"zlsxzp_nbgrpedb_wb6bggz_TY0V01","='Zorg via CAK - AK en ZMV'!$D$144","","zorgzwaartepakket GGZ B-Groep, excl. dagbesteding- Voortgezet verblijf met intensieve begeleiding en intensieve verpleging en verzorging- aantal","zlsxzp","nbgrpedb","wb6bggz","TY0V01","Dagen",null,"N","",null,"",""]
[null,null,null,null,"zlsxzp_nbgrpedb_wb7bggz_TY0V01","='Zorg via CAK - AK en ZMV'!$D$145","","zorgzwaartepakket GGZ B-Groep, excl. dagbesteding- Beveiligd voortgezet verblijf vanwege extreme gedragsproblematiek met zeer intensieve begeleiding- aantal","zlsxzp","nbgrpedb","wb7bggz","TY0V01","Dagen",null,"N","",null,"",""]
[null,null,null,null,"zlsxzp_nbgrpidb_wb1bggz_TY0V01","='Zorg via CAK - AK en ZMV'!$D$128","","zorgzwaartepakket GGZ B-Groep, incl. dagbesteding- Voortgezet verblijf met begeleiding- aantal","zlsxzp","nbgrpidb","wb1bggz","TY0V01","Dagen",null,"N","",null,"",""]
[null,null,null,null,"zlsxzp_nbgrpidb_wb2bggz_TY0V01","='Zorg via CAK - AK en ZMV'!$D$129","","zorgzwaartepakket GGZ B-Groep, incl. dagbesteding- Voortgezet verblijf met structuur en uitgebreide begeleiding- aantal","zlsxzp","nbgrpidb","wb2bggz","TY0V01","Dagen",null,"N","",null,"",""]
[null,null,null,null,"zlsxzp_nbgrpidb_wb3bggz_TY0V01","='Zorg via CAK - AK en ZMV'!$D$130","","zorgzwaartepakket GGZ B-Groep, incl. dagbesteding- Voortgezet verblijf met intensieve begeleiding- aantal","zlsxzp","nbgrpidb","wb3bggz","TY0V01","Dagen",null,"N","",null,"",""]
[null,null,null,null,"zlsxzp_nbgrpidb_wb4bggz_TY0V01","='Zorg via CAK - AK en ZMV'!$D$131","","zorgzwaartepakket GGZ B-Groep, incl. dagbesteding- Voortgezet verblijf met intensieve begeleiding en verzorging- aantal","zlsxzp","nbgrpidb","wb4bggz","TY0V01","Dagen",null,"N","",null,"",""]
[null,null,null,null,"zlsxzp_nbgrpidb_wb5bggz_TY0V01","='Zorg via CAK - AK en ZMV'!$D$132","","zorgzwaartepakket GGZ B-Groep, incl. dagbesteding- Voortgezet verblijf met intensieve begeleiding en gedragsregulering- aantal","zlsxzp","nbgrpidb","wb5bggz","TY0V01","Dagen",null,"N","",null,"",""]
[null,null,null,null,"zlsxzp_nbgrpidb_wb6bggz_TY0V01","='Zorg via CAK - AK en ZMV'!$D$133","","zorgzwaartepakket GGZ B-Groep, incl. dagbesteding- Voortgezet verblijf met intensieve begeleiding en intensieve verpleging en verzorging- aantal","zlsxzp","nbgrpidb","wb6bggz","TY0V01","Dagen",null,"N","",null,"",""]
[null,null,null,null,"zlsxzp_nbgrpidb_wb7bggz_TY0V01","='Zorg via CAK - AK en ZMV'!$D$134","","zorgzwaartepakket GGZ B-Groep, incl. dagbesteding- Beveiligd voortgezet verblijf vanwege extreme gedragsproblematiek met zeer intensieve begeleiding- aantal","zlsxzp","nbgrpidb","wb7bggz","TY0V01","Dagen",null,"N","",null,"",""]
[null,null,null,null,"zlsxzp_nfgedb_wb1lg_TY0V01","='Zorg via CAK - AK en ZMV'!$D$77","","zorgzwaartepakket Lichamelijk gehandicapten, excl. dagbesteding- Wonen met enige begeleiding en enige verzorging- aantal","zlsxzp","nfgedb","wb1lg","TY0V01","Dagen",null,"N","",null,"",""]
[null,null,null,null,"zlsxzp_nfgedb_wb2lg_TY0V01","='Zorg via CAK - AK en ZMV'!$D$78","","zorgzwaartepakket Lichamelijk gehandicapten, excl. dagbesteding- Wonen met begeleiding en enige verzorging- aantal","zlsxzp","nfgedb","wb2lg","TY0V01","Dagen",null,"N","",null,"",""]
[null,null,null,null,"zlsxzp_nfgedb_wb3lg_TY0V01","='Zorg via CAK - AK en ZMV'!$D$79","","zorgzwaartepakket Lichamelijk gehandicapten, excl. dagbesteding- Wonen met enige begeleiding en verzorging- aantal","zlsxzp","nfgedb","wb3lg","TY0V01","Dagen",null,"N","",null,"",""]
[null,null,null,null,"zlsxzp_nfgedb_wb4lg_TY0V01","='Zorg via CAK - AK en ZMV'!$D$80","","zorgzwaartepakket Lichamelijk gehandicapten, excl. dagbesteding- Wonen met begeleiding en verzorging- aantal","zlsxzp","nfgedb","wb4lg","TY0V01","Dagen",null,"N","",null,"",""]
[null,null,null,null,"zlsxzp_nfgedb_wb5lg_TY0V01","='Zorg via CAK - AK en ZMV'!$D$81","","zorgzwaartepakket Lichamelijk gehandicapten, excl. dagbesteding- Wonen met begeleiding en intensieve verzorging- aantal","zlsxzp","nfgedb","wb5lg","TY0V01","Dagen",null,"N","",null,"",""]
[null,null,null,null,"zlsxzp_nfgedb_wb6lg_TY0V01","='Zorg via CAK - AK en ZMV'!$D$82","","zorgzwaartepakket Lichamelijk gehandicapten, excl. dagbesteding- Wonen met intensieve begeleiding en intensieve verzorging- aantal","zlsxzp","nfgedb","wb6lg","TY0V01","Dagen",null,"N","",null,"",""]
[null,null,null,null,"zlsxzp_nfgedb_wb7lg_TY0V01","='Zorg via CAK - AK en ZMV'!$D$83","","zorgzwaartepakket Lichamelijk gehandicapten, excl. dagbesteding- Wonen met zeer intensieve begeleiding en zeer intensieve verzorging- aantal","zlsxzp","nfgedb","wb7lg","TY0V01","Dagen",null,"N","",null,"",""]
[null,null,null,null,"zlsxzp_nfgidb_wb1lg_TY0V01","='Zorg via CAK - AK en ZMV'!$D$66","","zorgzwaartepakket Lichamelijk gehandicapten, incl. dagbesteding- Wonen met enige begeleiding en enige verzorging- aantal","zlsxzp","nfgidb","wb1lg","TY0V01","Dagen",null,"N","",null,"",""]
[null,null,null,null,"zlsxzp_nfgidb_wb2lg_TY0V01","='Zorg via CAK - AK en ZMV'!$D$67","","zorgzwaartepakket Lichamelijk gehandicapten, incl. dagbesteding- Wonen met begeleiding en enige verzorging- aantal","zlsxzp","nfgidb","wb2lg","TY0V01","Dagen",null,"N","",null,"",""]
[null,null,null,null,"zlsxzp_nfgidb_wb3lg_TY0V01","='Zorg via CAK - AK en ZMV'!$D$68","","zorgzwaartepakket Lichamelijk gehandicapten, incl. dagbesteding- Wonen met enige begeleiding en verzorging- aantal","zlsxzp","nfgidb","wb3lg","TY0V01","Dagen",null,"N","",null,"",""]
[null,null,null,null,"zlsxzp_nfgidb_wb4lg_TY0V01","='Zorg via CAK - AK en ZMV'!$D$69","","zorgzwaartepakket Lichamelijk gehandicapten, incl. dagbesteding- Wonen met begeleiding en verzorging- aantal","zlsxzp","nfgidb","wb4lg","TY0V01","Dagen",null,"N","",null,"",""]
[null,null,null,null,"zlsxzp_nfgidb_wb5lg_TY0V01","='Zorg via CAK - AK en ZMV'!$D$70","","zorgzwaartepakket Lichamelijk gehandicapten, incl. dagbesteding- Wonen met begeleiding en intensieve verzorging- aantal","zlsxzp","nfgidb","wb5lg","TY0V01","Dagen",null,"N","",null,"",""]
[null,null,null,null,"zlsxzp_nfgidb_wb6lg_TY0V01","='Zorg via CAK - AK en ZMV'!$D$71","","zorgzwaartepakket Lichamelijk gehandicapten, incl. dagbesteding- Wonen met intensieve begeleiding en intensieve verzorging- aantal","zlsxzp","nfgidb","wb6lg","TY0V01","Dagen",null,"N","",null,"",""]
[null,null,null,null,"zlsxzp_nfgidb_wb7lg_TY0V01","='Zorg via CAK - AK en ZMV'!$D$72","","zorgzwaartepakket Lichamelijk gehandicapten, incl. dagbesteding- Wonen met zeer intensieve begeleiding en zeer intensieve verzorging- aantal","zlsxzp","nfgidb","wb7lg","TY0V01","Dagen",null,"N","",null,"",""]
[null,null,null,null,"zlsxzp_ngaudedb_wb1zgaud_TY0V01","='Zorg via CAK - AK en ZMV'!$D$96","","zorgzwaartepakket Auditief en communicatief gehandicapten, excl. dagbesteding- Wonen met enige begeleiding en enige verzorging- aantal","zlsxzp","ngaudedb","wb1zgaud","TY0V01","Dagen",null,"N","",null,"",""]
[null,null,null,null,"zlsxzp_ngaudedb_wb2zgaud_TY0V01","='Zorg via CAK - AK en ZMV'!$D$97","","zorgzwaartepakket Auditief en communicatief gehandicapten, excl. dagbesteding- Wonen met intensieve begeleiding en verzorging- aantal","zlsxzp","ngaudedb","wb2zgaud","TY0V01","Dagen",null,"N","",null,"",""]
[null,null,null,null,"zlsxzp_ngaudedb_wb3zgaud_TY0V01","='Zorg via CAK - AK en ZMV'!$D$98","","zorgzwaartepakket Auditief en communicatief gehandicapten, excl. dagbesteding- Wonen met intensieve begeleiding en intensieve verzorging- aantal","zlsxzp","ngaudedb","wb3zgaud","TY0V01","Dagen",null,"N","",null,"",""]
[null,null,null,null,"zlsxzp_ngaudedb_wb4zgaud_TY0V01","='Zorg via CAK - AK en ZMV'!$D$99","","zorgzwaartepakket Auditief en communicatief gehandicapten, excl. dagbesteding- Wonen met intensieve begeleiding en enige verzorging- aantal","zlsxzp","ngaudedb","wb4zgaud","TY0V01","Dagen",null,"N","",null,"",""]
[null,null,null,null,"zlsxzp_ngaudidb_wb1zgaud_TY0V01","='Zorg via CAK - AK en ZMV'!$D$88","","zorgzwaartepakket Auditief en communicatief gehandicapten, incl. dagbesteding- Wonen met enige begeleiding en enige verzorging- aantal","zlsxzp","ngaudidb","wb1zgaud","TY0V01","Dagen",null,"N","",null,"",""]
[null,null,null,null,"zlsxzp_ngaudidb_wb2zgaud_TY0V01","='Zorg via CAK - AK en ZMV'!$D$89","","zorgzwaartepakket Auditief en communicatief gehandicapten, incl. dagbesteding- Wonen met intensieve begeleiding en verzorging- aantal","zlsxzp","ngaudidb","wb2zgaud","TY0V01","Dagen",null,"N","",null,"",""]
[null,null,null,null,"zlsxzp_ngaudidb_wb3zgaud_TY0V01","='Zorg via CAK - AK en ZMV'!$D$90","","zorgzwaartepakket Auditief en communicatief gehandicapten, incl. dagbesteding- Wonen met intensieve begeleiding en intensieve verzorging- aantal","zlsxzp","ngaudidb","wb3zgaud","TY0V01","Dagen",null,"N","",null,"",""]
[null,null,null,null,"zlsxzp_ngaudidb_wb4zgaud_TY0V01","='Zorg via CAK - AK en ZMV'!$D$91","","zorgzwaartepakket Auditief en communicatief gehandicapten, incl. dagbesteding- Wonen met intensieve begeleiding en enige verzorging- aantal","zlsxzp","ngaudidb","wb4zgaud","TY0V01","Dagen",null,"N","",null,"",""]
[null,null,null,null,"zlsxzp_ngvisidb_wb1zgvis_TY0V01","='Zorg via CAK - AK en ZMV'!$D$104","","zorgzwaartepakket Visueel gehandicapten, incl. dagbesteding- Wonen met enige begeleiding en enige verzorging- aantal","zlsxzp","ngvisidb","wb1zgvis","TY0V01","Dagen",null,"N","",null,"",""]
[null,null,null,null,"zlsxzp_ngvisidb_wb2zgvis_TY0V01","='Zorg via CAK - AK en ZMV'!$D$105","","zorgzwaartepakket Visueel gehandicapten, incl. dagbesteding- Wonen met begeleiding en enige verzorging- aantal","zlsxzp","ngvisidb","wb2zgvis","TY0V01","Dagen",null,"N","",null,"",""]
[null,null,null,null,"zlsxzp_ngvisidb_wb3zgvis_TY0V01","='Zorg via CAK - AK en ZMV'!$D$106","","zorgzwaartepakket Visueel gehandicapten, incl. dagbesteding- Wonen met intensieve begeleiding en verzorging- aantal","zlsxzp","ngvisidb","wb3zgvis","TY0V01","Dagen",null,"N","",null,"",""]
[null,null,null,null,"zlsxzp_ngvisidb_wb4gvis_TY0V01","='Zorg via CAK - AK en ZMV'!$D$107","","zorgzwaartepakket Visueel gehandicapten, incl. dagbesteding- Wonen met intensieve begeleiding en intensieve verzorging- aantal","zlsxzp","ngvisidb","wb4gvis","TY0V01","Dagen",null,"N","",null,"",""]
[null,null,null,null,"zlsxzp_ngvisidb_wb5zgvis_TY0V01","='Zorg via CAK - AK en ZMV'!$D$108","","zorgzwaartepakket Visueel gehandicapten, incl. dagbesteding- Wonen met zeer intensieve begeleiding en zeer intensieve verzorging- aantal","zlsxzp","ngvisidb","wb5zgvis","TY0V01","Dagen",null,"N","",null,"",""]
[null,null,null,null,"zlsxzp_nlvgidb_wb1lvg_TY0V01","='Zorg via CAK - AK en ZMV'!$D$47","","zorgzwaartepakket Licht verstandelijk gehandicapten, incl. dagbesteding- Wonen met enige behandeling en begeleiding- aantal","zlsxzp","nlvgidb","wb1lvg","TY0V01","Dagen",null,"N","",null,"",""]
[null,null,null,null,"zlsxzp_nlvgidb_wb2lvg_TY0V01","='Zorg via CAK - AK en ZMV'!$D$48","","zorgzwaartepakket Licht verstandelijk gehandicapten, incl. dagbesteding- Wonen met behandeling en begeleiding- aantal","zlsxzp","nlvgidb","wb2lvg","TY0V01","Dagen",null,"N","",null,"",""]
[null,null,null,null,"zlsxzp_nlvgidb_wb3lvg_TY0V01","='Zorg via CAK - AK en ZMV'!$D$49","","zorgzwaartepakket Licht verstandelijk gehandicapten, incl. dagbesteding- Wonen met intensieve behandeling en begeleiding, kleine groep- aantal","zlsxzp","nlvgidb","wb3lvg","TY0V01","Dagen",null,"N","",null,"",""]
[null,null,null,null,"zlsxzp_nlvgidb_wb4lvg_TY0V01","='Zorg via CAK - AK en ZMV'!$D$50","","zorgzwaartepakket Licht verstandelijk gehandicapten, incl. dagbesteding- Wonen met zeer intensieve behandeling en begeleiding- aantal","zlsxzp","nlvgidb","wb4lvg","TY0V01","Dagen",null,"N","",null,"",""]
[null,null,null,null,"zlsxzp_nlvgidb_wb5lvg_TY0V01","='Zorg via CAK - AK en ZMV'!$D$51","","zorgzwaartepakket Licht verstandelijk gehandicapten, incl. dagbesteding- Besloten wonen met zeer intensieve behandeling en begeleiding- aantal","zlsxzp","nlvgidb","wb5lvg","TY0V01","Dagen",null,"N","",null,"",""]
[null,null,null,null,"zlsxzp_nsglgidb_wb15glvg_TY0V01","='Zorg via CAK - AK en ZMV'!$D$61","","zorgzwaartepakket Sterk gedragsgestoorde licht verstandelijk gehandicapten incl. dagbesteding- Behandeling in een SGLVG behandelcentrum- aantal","zlsxzp","nsglgidb","wb15glvg","TY0V01","Dagen",null,"N","",null,"",""]
[null,null,null,null,"zlsxzp_nvgedb_w1vg_TY0V01","='Zorg via CAK - AK en ZMV'!$D$35","","zorgzwaartepakket Verstandelijk gehandicapten, excl. dagbesteding- Wonen met enige begeleiding- aantal","zlsxzp","nvgedb","w1vg","TY0V01","Dagen",null,"N","",null,"",""]
[null,null,null,null,"zlsxzp_nvgedb_w2vg_TY0V01","='Zorg via CAK - AK en ZMV'!$D$36","","zorgzwaartepakket Verstandelijk gehandicapten, excl. dagbesteding- Wonen met begeleiding- aantal","zlsxzp","nvgedb","w2vg","TY0V01","Dagen",null,"N","",null,"",""]
[null,null,null,null,"zlsxzp_nvgedb_w3vg_TY0V01","='Zorg via CAK - AK en ZMV'!$D$37","","zorgzwaartepakket Verstandelijk gehandicapten, excl. dagbesteding- Wonen met begeleiding en verzorging- aantal","zlsxzp","nvgedb","w3vg","TY0V01","Dagen",null,"N","",null,"",""]
[null,null,null,null,"zlsxzp_nvgedb_w4vg_TY0V01","='Zorg via CAK - AK en ZMV'!$D$38","","zorgzwaartepakket Verstandelijk gehandicapten, excl. dagbesteding- Wonen met begeleiding en intensieve verzorging- aantal","zlsxzp","nvgedb","w4vg","TY0V01","Dagen",null,"N","",null,"",""]
[null,null,null,null,"zlsxzp_nvgedb_w5vg_TY0V01","='Zorg via CAK - AK en ZMV'!$D$39","","zorgzwaartepakket Verstandelijk gehandicapten, excl. dagbesteding- Wonen met intensieve begeleiding en intensieve verzorging- aantal","zlsxzp","nvgedb","w5vg","TY0V01","Dagen",null,"N","",null,"",""]
[null,null,null,null,"zlsxzp_nvgedb_w6vg_TY0V01","='Zorg via CAK - AK en ZMV'!$D$40","","zorgzwaartepakket Verstandelijk gehandicapten, excl. dagbesteding- Wonen met intensieve begeleiding, verzorging en gedragsregulering- aantal","zlsxzp","nvgedb","w6vg","TY0V01","Dagen",null,"N","",null,"",""]
[null,null,null,null,"zlsxzp_nvgedb_w7vg_TY0V01","='Zorg via CAK - AK en ZMV'!$D$41","","zorgzwaartepakket Verstandelijk gehandicapten, excl. dagbesteding- (Besloten) wonen met zeer intensieve begeleiding, verzorging en gedragsregulering- aantal","zlsxzp","nvgedb","w7vg","TY0V01","Dagen",null,"N","",null,"",""]
[null,null,null,null,"zlsxzp_nvgedb_w8vg_TY0V01","='Zorg via CAK - AK en ZMV'!$D$42","","zorgzwaartepakket Verstandelijk gehandicapten, excl. dagbesteding- Wonen met begeleiding en volledige verzorging en verpleging- aantal","zlsxzp","nvgedb","w8vg","TY0V01","Dagen",null,"N","",null,"",""]
[null,null,null,null,"zlsxzp_nvgidb_w1vg_TY0V01","='Zorg via CAK - AK en ZMV'!$D$23","","zorgzwaartepakket Verstandelijk gehandicapten, incl. dagbesteding- Wonen met enige begeleiding- aantal","zlsxzp","nvgidb","w1vg","TY0V01","Dagen",null,"N","",null,"",""]
[null,null,null,null,"zlsxzp_nvgidb_w2vg_TY0V01","='Zorg via CAK - AK en ZMV'!$D$24","","zorgzwaartepakket Verstandelijk gehandicapten, incl. dagbesteding- Wonen met begeleiding- aantal","zlsxzp","nvgidb","w2vg","TY0V01","Dagen",null,"N","",null,"",""]
[null,null,null,null,"zlsxzp_nvgidb_w3vg_TY0V01","='Zorg via CAK - AK en ZMV'!$D$25","","zorgzwaartepakket Verstandelijk gehandicapten, incl. dagbesteding- Wonen met begeleiding en verzorging- aantal","zlsxzp","nvgidb","w3vg","TY0V01","Dagen",null,"N","",null,"",""]
[null,null,null,null,"zlsxzp_nvgidb_w4vg_TY0V01","='Zorg via CAK - AK en ZMV'!$D$26","","zorgzwaartepakket Verstandelijk gehandicapten, incl. dagbesteding- Wonen met begeleiding en intensieve verzorging- aantal","zlsxzp","nvgidb","w4vg","TY0V01","Dagen",null,"N","",null,"",""]
[null,null,null,null,"zlsxzp_nvgidb_w5vg_TY0V01","='Zorg via CAK - AK en ZMV'!$D$27","","zorgzwaartepakket Verstandelijk gehandicapten, incl. dagbesteding- Wonen met intensieve begeleiding en intensieve verzorging- aantal","zlsxzp","nvgidb","w5vg","TY0V01","Dagen",null,"N","",null,"",""]
[null,null,null,null,"zlsxzp_nvgidb_w6vg_TY0V01","='Zorg via CAK - AK en ZMV'!$D$28","","zorgzwaartepakket Verstandelijk gehandicapten, incl. dagbesteding- Wonen met intensieve begeleiding, verzorging en gedragsregulering- aantal","zlsxzp","nvgidb","w6vg","TY0V01","Dagen",null,"N","",null,"",""]
[null,null,null,null,"zlsxzp_nvgidb_w7vg_TY0V01","='Zorg via CAK - AK en ZMV'!$D$29","","zorgzwaartepakket Verstandelijk gehandicapten, incl. dagbesteding- (Besloten) wonen met zeer intensieve begeleiding, verzorging en gedragsregulering- aantal","zlsxzp","nvgidb","w7vg","TY0V01","Dagen",null,"N","",null,"",""]
[null,null,null,null,"zlsxzp_nvgidb_w8vg_TY0V01","='Zorg via CAK - AK en ZMV'!$D$30","","zorgzwaartepakket Verstandelijk gehandicapten, incl. dagbesteding- Wonen met begeleiding en volledige verzorging en verpleging- aantal","zlsxzp","nvgidb","w8vg","TY0V01","Dagen",null,"N","",null,"",""]
[null,null,null,null,"zlsxzp_nvzidb_bv10vv_TY0V01","='Zorg via CAK - AK en ZMV'!$D$17","","zorgzwaartepakket verpleging en verzorging, inclusief dagbesteding- Beschermd verblijf met intensieve palliatief-terminale zorg- aantal","zlsxzp","nvzidb","bv10vv","TY0V01","Dagen",null,"N","",null,"",""]
[null,null,null,null,"zlsxzp_nvzidb_bw1vv_TY0V01","='Zorg via CAK - AK en ZMV'!$D$8","","zorgzwaartepakket verpleging en verzorging, inclusief dagbesteding- Beschut wonen met enige begeleiding- aantal","zlsxzp","nvzidb","bw1vv","TY0V01","Dagen",null,"N","",null,"",""]
[null,null,null,null,"zlsxzp_nvzidb_bw2vv_TY0V01","='Zorg via CAK - AK en ZMV'!$D$9","","zorgzwaartepakket verpleging en verzorging, inclusief dagbesteding- Beschut wonen met begeleiding en verzorging- aantal","zlsxzp","nvzidb","bw2vv","TY0V01","Dagen",null,"N","",null,"",""]
[null,null,null,null,"zlsxzp_nvzidb_bw3vv_TY0V01","='Zorg via CAK - AK en ZMV'!$D$10","","zorgzwaartepakket verpleging en verzorging, inclusief dagbesteding- Beschut wonen met begeleiding en intensieve verzorging- aantal","zlsxzp","nvzidb","bw3vv","TY0V01","Dagen",null,"N","",null,"",""]
[null,null,null,null,"zlsxzp_nvzidb_bw4vv_TY0V01","='Zorg via CAK - AK en ZMV'!$D$11","","zorgzwaartepakket verpleging en verzorging, inclusief dagbesteding- Beschut wonen met intensieve begeleiding en uitgebreide verzorging- aantal","zlsxzp","nvzidb","bw4vv","TY0V01","Dagen",null,"N","",null,"",""]
[null,null,null,null,"zlsxzp_nvzidb_bw5vv_TY0V01","='Zorg via CAK - AK en ZMV'!$D$12","","zorgzwaartepakket verpleging en verzorging, inclusief dagbesteding- Beschermd wonen met intensieve dementiezorg- aantal","zlsxzp","nvzidb","bw5vv","TY0V01","Dagen",null,"N","",null,"",""]
[null,null,null,null,"zlsxzp_nvzidb_bw6vv_TY0V01","='Zorg via CAK - AK en ZMV'!$D$13","","zorgzwaartepakket verpleging en verzorging, inclusief dagbesteding- Beschermd wonen met intensieve verzorging en verpleging- aantal","zlsxzp","nvzidb","bw6vv","TY0V01","Dagen",null,"N","",null,"",""]
[null,null,null,null,"zlsxzp_nvzidb_bw7vv_TY0V01","='Zorg via CAK - AK en ZMV'!$D$14","","zorgzwaartepakket verpleging en verzorging, inclusief dagbesteding- Beschermd wonen met zeer intensieve zorg, vanwege specifieke aandoeningen, met nadruk op begeleiding- aantal","zlsxzp","nvzidb","bw7vv","TY0V01","Dagen",null,"N","",null,"",""]
[null,null,null,null,"zlsxzp_nvzidb_bw8vv_TY0V01","='Zorg via CAK - AK en ZMV'!$D$15","","zorgzwaartepakket verpleging en verzorging, inclusief dagbesteding- Beschermd wonen met zeer intensieve zorg, vanwege specifieke aandoeningen, met nadruk op verzorging/verpleging- aantal","zlsxzp","nvzidb","bw8vv","TY0V01","Dagen",null,"N","",null,"",""]
[null,null,null,null,"zlsxzp_nvzidb_hv9vvb_TY0V01","='Zorg via CAK - AK en ZMV'!$D$16","","zorgzwaartepakket verpleging en verzorging, inclusief dagbesteding- Herstelgerichte verpleging en verzorging- aantal","zlsxzp","nvzidb","hv9vvb","TY0V01","Dagen",null,"N","",null,"",""]
[null,null,null,null,"zlsxzp_ngvisedb_wb1zgvis_TY0V01","='Zorg via CAK - AK en ZMV'!$D$118","","zorgzwaartepakket Visueel gehandicapten, excl. dagbesteding- Wonen met enige begeleiding en enige verzorging- aantal","zlsxzp","nzvisedb","wb1zgvis","TY0V01","Dagen",null,"N","",null,"",""]
[null,null,null,null,"zlsxzp_ngvisedb_wb2zgvis_TY0V01","='Zorg via CAK - AK en ZMV'!$D$119","","zorgzwaartepakket Visueel gehandicapten, excl. dagbesteding- Wonen met begeleiding en enige verzorging- aantal","zlsxzp","nzvisedb","wb2zgvis","TY0V01","Dagen",null,"N","",null,"",""]
[null,null,null,null,"zlsxzp_ngvisedb_wb3zgvis_TY0V01","='Zorg via CAK - AK en ZMV'!$D$120","","zorgzwaartepakket Visueel gehandicapten, excl. dagbesteding- Wonen met intensieve begeleiding en verzorging- aantal","zlsxzp","nzvisedb","wb3zgvis","TY0V01","Dagen",null,"N","",null,"",""]
[null,null,null,null,"zlsxzp_ngvisedb_wb4zgvis_TY0V01","='Zorg via CAK - AK en ZMV'!$D$121","","zorgzwaartepakket Visueel gehandicapten, excl. dagbesteding- Wonen met intensieve begeleiding en intensieve verzorging- aantal","zlsxzp","nzvisedb","wb4zgvis","TY0V01","Dagen",null,"N","",null,"",""]
[null,null,null,null,"zlsxzp_ngvisedb_wb5zgvis_TY0V01","='Zorg via CAK - AK en ZMV'!$D$122","","zorgzwaartepakket Visueel gehandicapten, excl. dagbesteding- Wonen met zeer intensieve begeleiding en zeer intensieve verzorging- aantal","zlsxzp","nzvisedb","wb5zgvis","TY0V01","Dagen",null,"N","",null,"",""]
[null,null,null,null,"zlsxzv_abgld_h132_TY0V01","='Zorg via CAK - ZZV'!$E$26","","Zorg zonder verblijf, (V&V/GHZ/GGZ- Nachtverzorging- bedrag","zlsxzv","abgld","h132","TY0V01","Uren",null,"N","",null,"",""]
[null,null,null,null,"zlsxzv_abgld_h150_TY0V01","='Zorg via CAK - ZZV'!$E$19","","Zorg zonder verblijf, (V&V/GHZ/GGZ- Begeleiding extra- bedrag","zlsxzv","abgld","h150","TY0V01","Uren",null,"N","",null,"",""]
[null,null,null,null,"zlsxzv_abgld_h152_TY0V01","='Zorg via CAK - ZZV'!$E$20","","Zorg zonder verblijf, (V&V/GHZ/GGZ- Begeleiding speciaal 1 (nah)- bedrag","zlsxzv","abgld","h152","TY0V01","Uren",null,"N","",null,"",""]
[null,null,null,null,"zlsxzv_abgld_h153_TY0V01","='Zorg via CAK - ZZV'!$E$21","","Zorg zonder verblijf, (V&V/GHZ/GGZ- Begeleiding speciaal 2 (psy)- bedrag","zlsxzv","abgld","h153","TY0V01","Uren",null,"N","",null,"",""]
[null,null,null,null,"zlsxzv_abgld_h180_TY0V01","='Zorg via CAK - ZZV'!$E$27","","Zorg zonder verblijf, (V&V/GHZ/GGZ- Nachtverpleging- bedrag","zlsxzv","abgld","h180","TY0V01","Uren",null,"N","",null,"",""]
[null,null,null,null,"zlsxzv_abgld_h300_TY0V01","='Zorg via CAK - ZZV'!$E$18","","Zorg zonder verblijf, (V&V/GHZ/GGZ- Begeleiding- bedrag","zlsxzv","abgld","h300","TY0V01","Uren",null,"N","",null,"",""]
[null,null,null,null,"zlsxzv_abgld_h301_TY0V01","='Zorg via CAK - ZZV'!$E$22","","Zorg zonder verblijf, (V&V/GHZ/GGZ- Begeleiding zg visueel- bedrag","zlsxzv","abgld","h301","TY0V01","Uren",null,"N","",null,"",""]
[null,null,null,null,"zlsxzv_abgld_h302_TY0V01","='Zorg via CAK - ZZV'!$E$24","","Zorg zonder verblijf, (V&V/GHZ/GGZ- Begeleiding speciaal 2 visueel- bedrag","zlsxzv","abgld","h302","TY0V01","Uren",null,"N","",null,"",""]
[null,null,null,null,"zlsxzv_abgld_h303_TY0V01","='Zorg via CAK - ZZV'!$E$23","","Zorg zonder verblijf, (V&V/GHZ/GGZ- Begeleiding zg auditief- bedrag","zlsxzv","abgld","h303","TY0V01","Uren",null,"N","",null,"",""]
[null,null,null,null,"zlsxzv_abgld_h304_TY0V01","='Zorg via CAK - ZZV'!$E$25","","Zorg zonder verblijf, (V&V/GHZ/GGZ- Begeleiding speciaal 2 auditief- bedrag","zlsxzv","abgld","h304","TY0V01","Uren",null,"N","",null,"",""]
[null,null,null,null,"zlsxzv_abgld_h305_TY0V01","='Zorg via CAK - ZZV'!$E$28","","Zorg zonder verblijf, (V&V/GHZ/GGZ- Begeleiding zorg op afstand aanvullend- bedrag","zlsxzv","abgld","h305","TY0V01","Uren",null,"N","",null,"",""]
[null,null,null,null,"zlsxzv_abhnd_h325_TY0V01","='Zorg via CAK - ZZV'!$E$34","","Zorg zonder verblijf, (V&V/GHZ/GGZ)- Behandeling lvg- bedrag","zlsxzv","abhnd","h325","TY0V01","Uren",null,"N","",null,"",""]
[null,null,null,null,"zlsxzv_abhnd_h326_TY0V01","='Zorg via CAK - ZZV'!$E$35","","Zorg zonder verblijf, (V&V/GHZ/GGZ)- Behandeling basis sglvg-traject- bedrag","zlsxzv","abhnd","h326","TY0V01","Uren",null,"N","",null,"",""]
[null,null,null,null,"zlsxzv_abhnd_h327_TY0V01","='Zorg via CAK - ZZV'!$E$36","","Zorg zonder verblijf, (V&V/GHZ/GGZ)- Behandeling basis sglvg deeltijd- bedrag","zlsxzv","abhnd","h327","TY0V01","Uren",null,"N","",null,"",""]
[null,null,null,null,"zlsxzv_abhnd_h329_TY0V01","='Zorg via CAK - ZZV'!$E$31","","Zorg zonder verblijf, (V&V/GHZ/GGZ)- Behandeling gedragswetenschapper- bedrag","zlsxzv","abhnd","h329","TY0V01","Uren",null,"N","",null,"",""]
[null,null,null,null,"zlsxzv_abhnd_h330_TY0V01","='Zorg via CAK - ZZV'!$E$32","","Zorg zonder verblijf, (V&V/GHZ/GGZ)- Behandeling paramedisch- bedrag","zlsxzv","abhnd","h330","TY0V01","Uren",null,"N","",null,"",""]
[null,null,null,null,"zlsxzv_abhnd_h331_TY0V01","='Zorg via CAK - ZZV'!$E$37","","Zorg zonder verblijf, (V&V/GHZ/GGZ)- Behandeling Families First lvg- bedrag","zlsxzv","abhnd","h331","TY0V01","Uren",null,"N","",null,"",""]
[null,null,null,null,"zlsxzv_abhnd_h332_TY0V01","='Zorg via CAK - ZZV'!$E$38","","Zorg zonder verblijf, (V&V/GHZ/GGZ)- Behandeling visueel- bedrag","zlsxzv","abhnd","h332","TY0V01","Uren",null,"N","",null,"",""]
[null,null,null,null,"zlsxzv_abhnd_h333_TY0V01","='Zorg via CAK - ZZV'!$E$39","","Zorg zonder verblijf, (V&V/GHZ/GGZ)- Behandeling auditief- bedrag","zlsxzv","abhnd","h333","TY0V01","Uren",null,"N","",null,"",""]
[null,null,null,null,"zlsxzv_abhnd_h334_TY0V01","='Zorg via CAK - ZZV'!$E$33","","Zorg zonder verblijf, (V&V/GHZ/GGZ)- Behandeling IOG lvg- bedrag","zlsxzv","abhnd","h334","TY0V01","Uren",null,"N","",null,"",""]
[null,null,null,null,"zlsxzv_abhnd_h335_TY0V01","='Zorg via CAK - ZZV'!$E$29","","Zorg zonder verblijf, (V&V/GHZ/GGZ)- Behandeling som, pg, vg, lg, zg (SO)- bedrag","zlsxzv","abhnd","h335","TY0V01","Uren",null,"N","",null,"",""]
[null,null,null,null,"zlsxzv_abhnd_h336_TY0V01","='Zorg via CAK - ZZV'!$E$30","","Zorg zonder verblijf, (V&V/GHZ/GGZ)- Behandeling som, pg, vg, lg, zg (AVG)- bedrag","zlsxzv","abhnd","h336","TY0V01","Uren",null,"N","",null,"",""]
[null,null,null,null,"zlsxzv_ahh_h117_TY0V01","='Zorg via CAK - ZZV'!$E$8","","Zorg zonder verblijf, Huishoudelijke hulp (V&V/GHZ/GGZ)- Huishoudelijke hulp- bedrag","zlsxzv","ahh","h117","TY0V01","Uren",null,"N","",null,"",""]
[null,null,null,null,"zlsxzv_apv_h120_TY0V01","='Zorg via CAK - ZZV'!$E$11","","Zorg zonder verblijf, (V&V/GHZ/GGZ)- Persoonlijke verzorging speciaal- bedrag","zlsxzv","apv","h120","TY0V01","Uren",null,"N","",null,"",""]
[null,null,null,null,"zlsxzv_apv_h126_TY0V01","='Zorg via CAK - ZZV'!$E$9","","Zorg zonder verblijf, (V&V/GHZ/GGZ)- Persoonlijke verzorging- bedrag","zlsxzv","apv","h126","TY0V01","Uren",null,"N","",null,"",""]
[null,null,null,null,"zlsxzv_apv_h127_TY0V01","='Zorg via CAK - ZZV'!$E$10","","Zorg zonder verblijf, (V&V/GHZ/GGZ)- Persoonlijke verzorging extra- bedrag","zlsxzv","apv","h127","TY0V01","Uren",null,"N","",null,"",""]
[null,null,null,null,"zlsxzv_apv_h136_TY0V01","='Zorg via CAK - ZZV'!$E$13","","Zorg zonder verblijf, (V&V/GHZ/GGZ)- Persoonlijke verzorging zorg op afstand aanvullend- bedrag","zlsxzv","apv","h136","TY0V01","Uren",null,"N","",null,"",""]
[null,null,null,null,"zlsxzv_apv_h137_TY0V01","='Zorg via CAK - ZZV'!$E$12","","Zorg zonder verblijf, (V&V/GHZ/GGZ)- Persoonlijke verzorging farmaceutische telezorg- bedrag","zlsxzv","apv","h137","TY0V01","Uren",null,"N","",null,"",""]
[null,null,null,null,"zlsxzv_areis_h321_TY0V01","='Zorg via CAK - ZZV'!$E$40","","Zorg zonder verblijf, (V&V/GHZ/GGZ)- Reiskosten prestaties behandeling (H325 t/m H331 en H334 t/m H336)- bedrag","zlsxzv","areis","h321","TY0V01","Toeslagen per contact",null,"N","",null,"",""]
[null,null,null,null,"zlsxzv_areis_h337_TY0V01","='Zorg via CAK - ZZV'!$E$41","","Zorg zonder verblijf, (V&V/GHZ/GGZ)- Reiskosten prestaties behandeling (H332 en H333)- bedrag","zlsxzv","areis","h337","TY0V01","Toeslagen per contact",null,"N","",null,"",""]
[null,null,null,null,"zlsxzv_avp_h104_TY0V01","='Zorg via CAK - ZZV'!$E$14","","Zorg zonder verblijf, (V&V/GHZ/GGZ)- Verpleging- bedrag","zlsxzv","avp","h104","TY0V01","Uren",null,"N","",null,"",""]
[null,null,null,null,"zlsxzv_avp_h106_TY0V01","='Zorg via CAK - ZZV'!$E$16","","Zorg zonder verblijf, (V&V/GHZ/GGZ)- Verpleging speciaal- bedrag","zlsxzv","avp","h106","TY0V01","Uren",null,"N","",null,"",""]
[null,null,null,null,"zlsxzv_avp_h107_TY0V01","='Zorg via CAK - ZZV'!$E$17","","Zorg zonder verblijf, (V&V/GHZ/GGZ)- Verpleging zorg op afstand aanvullend- bedrag","zlsxzv","avp","h107","TY0V01","Uren",null,"N","",null,"",""]
[null,null,null,null,"zlsxzv_avp_h128_TY0V01","='Zorg via CAK - ZZV'!$E$15","","Zorg zonder verblijf, (V&V/GHZ/GGZ)- Verpleging extra- bedrag","zlsxzv","avp","h128","TY0V01","Uren",null,"N","",null,"",""]
[null,null,null,null,"zlsxzv_nbgld_h132_TY0V01","='Zorg via CAK - ZZV'!$D$26","","Zorg zonder verblijf, (V&V/GHZ/GGZ- Nachtverzorging- aantal","zlsxzv","nbgld","h132","TY0V01","Uren",null,"N","",null,"",""]
[null,null,null,null,"zlsxzv_nbgld_h150_TY0V01","='Zorg via CAK - ZZV'!$D$19","","Zorg zonder verblijf, (V&V/GHZ/GGZ- Begeleiding extra- aantal","zlsxzv","nbgld","h150","TY0V01","Uren",null,"N","",null,"",""]
[null,null,null,null,"zlsxzv_nbgld_h152_TY0V01","='Zorg via CAK - ZZV'!$D$20","","Zorg zonder verblijf, (V&V/GHZ/GGZ- Begeleiding speciaal 1 (nah)- aantal","zlsxzv","nbgld","h152","TY0V01","Uren",null,"N","",null,"",""]
[null,null,null,null,"zlsxzv_nbgld_h153_TY0V01","='Zorg via CAK - ZZV'!$D$21","","Zorg zonder verblijf, (V&V/GHZ/GGZ- Begeleiding speciaal 2 (psy)- aantal","zlsxzv","nbgld","h153","TY0V01","Uren",null,"N","",null,"",""]
[null,null,null,null,"zlsxzv_nbgld_h180_TY0V01","='Zorg via CAK - ZZV'!$D$27","","Zorg zonder verblijf, (V&V/GHZ/GGZ- Nachtverpleging- aantal","zlsxzv","nbgld","h180","TY0V01","Uren",null,"N","",null,"",""]
[null,null,null,null,"zlsxzv_nbgld_h300_TY0V01","='Zorg via CAK - ZZV'!$D$18","","Zorg zonder verblijf, (V&V/GHZ/GGZ- Begeleiding- aantal","zlsxzv","nbgld","h300","TY0V01","Uren",null,"N","",null,"",""]
[null,null,null,null,"zlsxzv_nbgld_h301_TY0V01","='Zorg via CAK - ZZV'!$D$22","","Zorg zonder verblijf, (V&V/GHZ/GGZ- Begeleiding zg visueel- aantal","zlsxzv","nbgld","h301","TY0V01","Uren",null,"N","",null,"",""]
[null,null,null,null,"zlsxzv_nbgld_h302_TY0V01","='Zorg via CAK - ZZV'!$D$24","","Zorg zonder verblijf, (V&V/GHZ/GGZ- Begeleiding speciaal 2 visueel- aantal","zlsxzv","nbgld","h302","TY0V01","Uren",null,"N","",null,"",""]
[null,null,null,null,"zlsxzv_nbgld_h303_TY0V01","='Zorg via CAK - ZZV'!$D$23","","Zorg zonder verblijf, (V&V/GHZ/GGZ- Begeleiding zg auditief- aantal","zlsxzv","nbgld","h303","TY0V01","Uren",null,"N","",null,"",""]
[null,null,null,null,"zlsxzv_nbgld_h304_TY0V01","='Zorg via CAK - ZZV'!$D$25","","Zorg zonder verblijf, (V&V/GHZ/GGZ- Begeleiding speciaal 2 auditief- aantal","zlsxzv","nbgld","h304","TY0V01","Uren",null,"N","",null,"",""]
[null,null,null,null,"zlsxzv_nbgld_h305_TY0V01","='Zorg via CAK - ZZV'!$D$28","","Zorg zonder verblijf, (V&V/GHZ/GGZ- Begeleiding zorg op afstand aanvullend- aantal","zlsxzv","nbgld","h305","TY0V01","Uren",null,"N","",null,"",""]
[null,null,null,null,"zlsxzv_nbhnd_h325_TY0V01","='Zorg via CAK - ZZV'!$D$34","","Zorg zonder verblijf, (V&V/GHZ/GGZ)- Behandeling lvg- aantal","zlsxzv","nbhnd","h325","TY0V01","Uren",null,"N","",null,"",""]
[null,null,null,null,"zlsxzv_nbhnd_h326_TY0V01","='Zorg via CAK - ZZV'!$D$35","","Zorg zonder verblijf, (V&V/GHZ/GGZ)- Behandeling basis sglvg-traject- aantal","zlsxzv","nbhnd","h326","TY0V01","Uren",null,"N","",null,"",""]
[null,null,null,null,"zlsxzv_nbhnd_h327_TY0V01","='Zorg via CAK - ZZV'!$D$36","","Zorg zonder verblijf, (V&V/GHZ/GGZ)- Behandeling basis sglvg deeltijd- aantal","zlsxzv","nbhnd","h327","TY0V01","Uren",null,"N","",null,"",""]
[null,null,null,null,"zlsxzv_nbhnd_h329_TY0V01","='Zorg via CAK - ZZV'!$D$31","","Zorg zonder verblijf, (V&V/GHZ/GGZ)- Behandeling gedragswetenschapper- aantal","zlsxzv","nbhnd","h329","TY0V01","Uren",null,"N","",null,"",""]
[null,null,null,null,"zlsxzv_nbhnd_h330_TY0V01","='Zorg via CAK - ZZV'!$D$32","","Zorg zonder verblijf, (V&V/GHZ/GGZ)- Behandeling paramedisch- aantal","zlsxzv","nbhnd","h330","TY0V01","Uren",null,"N","",null,"",""]
[null,null,null,null,"zlsxzv_nbhnd_h331_TY0V01","='Zorg via CAK - ZZV'!$D$37","","Zorg zonder verblijf, (V&V/GHZ/GGZ)- Behandeling Families First lvg- aantal","zlsxzv","nbhnd","h331","TY0V01","Uren",null,"N","",null,"",""]
[null,null,null,null,"zlsxzv_nbhnd_h332_TY0V01","='Zorg via CAK - ZZV'!$D$38","","Zorg zonder verblijf, (V&V/GHZ/GGZ)- Behandeling visueel- aantal","zlsxzv","nbhnd","h332","TY0V01","Uren",null,"N","",null,"",""]
[null,null,null,null,"zlsxzv_nbhnd_h333_TY0V01","='Zorg via CAK - ZZV'!$D$39","","Zorg zonder verblijf, (V&V/GHZ/GGZ)- Behandeling auditief- aantal","zlsxzv","nbhnd","h333","TY0V01","Uren",null,"N","",null,"",""]
[null,null,null,null,"zlsxzv_nbhnd_h334_TY0V01","='Zorg via CAK - ZZV'!$D$33","","Zorg zonder verblijf, (V&V/GHZ/GGZ)- Behandeling IOG lvg- aantal","zlsxzv","nbhnd","h334","TY0V01","Uren",null,"N","",null,"",""]
[null,null,null,null,"zlsxzv_nbhnd_h335_TY0V01","='Zorg via CAK - ZZV'!$D$29","","Zorg zonder verblijf, (V&V/GHZ/GGZ)- Behandeling som, pg, vg, lg, zg (SO)- aantal","zlsxzv","nbhnd","h335","TY0V01","Uren",null,"N","",null,"",""]
[null,null,null,null,"zlsxzv_nbhnd_h336_TY0V01","='Zorg via CAK - ZZV'!$D$30","","Zorg zonder verblijf, (V&V/GHZ/GGZ)- Behandeling som, pg, vg, lg, zg (AVG)- aantal","zlsxzv","nbhnd","h336","TY0V01","Uren",null,"N","",null,"",""]
[null,null,null,null,"zlsxzv_nhh_h117_TY0V01","='Zorg via CAK - ZZV'!$D$8","","Zorg zonder verblijf, Huishoudelijke hulp (V&V/GHZ/GGZ)- Huishoudelijke hulp- aantal","zlsxzv","nhh","h117","TY0V01","Uren",null,"N","",null,"",""]
[null,null,null,null,"zlsxzv_npv_h120_TY0V01","='Zorg via CAK - ZZV'!$D$11","","Zorg zonder verblijf, (V&V/GHZ/GGZ)- Persoonlijke verzorging speciaal- aantal","zlsxzv","npv","h120","TY0V01","Uren",null,"N","",null,"",""]
[null,null,null,null,"zlsxzv_npv_h126_TY0V01","='Zorg via CAK - ZZV'!$D$9","","Zorg zonder verblijf, (V&V/GHZ/GGZ)- Persoonlijke verzorging- aantal","zlsxzv","npv","h126","TY0V01","Uren",null,"N","",null,"",""]
[null,null,null,null,"zlsxzv_npv_h127_TY0V01","='Zorg via CAK - ZZV'!$D$10","","Zorg zonder verblijf, (V&V/GHZ/GGZ)- Persoonlijke verzorging extra- aantal","zlsxzv","npv","h127","TY0V01","Uren",null,"N","",null,"",""]
[null,null,null,null,"zlsxzv_npv_h136_TY0V01","='Zorg via CAK - ZZV'!$D$13","","Zorg zonder verblijf, (V&V/GHZ/GGZ)- Persoonlijke verzorging zorg op afstand aanvullend- aantal","zlsxzv","npv","h136","TY0V01","Uren",null,"N","",null,"",""]
[null,null,null,null,"zlsxzv_npv_h137_TY0V01","='Zorg via CAK - ZZV'!$D$12","","Zorg zonder verblijf, (V&V/GHZ/GGZ)- Persoonlijke verzorging farmaceutische telezorg- aantal","zlsxzv","npv","h137","TY0V01","Uren",null,"N","",null,"",""]
[null,null,null,null,"zlsxzv_nreis_h321_TY0V01","='Zorg via CAK - ZZV'!$D$40","","Zorg zonder verblijf, (V&V/GHZ/GGZ)- Reiskosten prestaties behandeling (H325 t/m H331 en H334 t/m H336)- aantal","zlsxzv","nreis","h321","TY0V01","Toeslagen per contact",null,"N","",null,"",""]
[null,null,null,null,"zlsxzv_nreis_h337_TY0V01","='Zorg via CAK - ZZV'!$D$41","","Zorg zonder verblijf, (V&V/GHZ/GGZ)- Reiskosten prestaties behandeling (H332 en H333)- aantal","zlsxzv","nreis","h337","TY0V01","Toeslagen per contact",null,"N","",null,"",""]
[null,null,null,null,"zlsxzv_nvp_h104_TY0V01","='Zorg via CAK - ZZV'!$D$14","","Zorg zonder verblijf, (V&V/GHZ/GGZ)- Verpleging- aantal","zlsxzv","nvp","h104","TY0V01","Uren",null,"N","",null,"",""]
[null,null,null,null,"zlsxzv_nvp_h106_TY0V01","='Zorg via CAK - ZZV'!$D$16","","Zorg zonder verblijf, (V&V/GHZ/GGZ)- Verpleging speciaal- aantal","zlsxzv","nvp","h106","TY0V01","Uren",null,"N","",null,"",""]
[null,null,null,null,"zlsxzv_nvp_h107_TY0V01","='Zorg via CAK - ZZV'!$D$17","","Zorg zonder verblijf, (V&V/GHZ/GGZ)- Verpleging zorg op afstand aanvullend- aantal","zlsxzv","nvp","h107","TY0V01","Uren",null,"N","",null,"",""]
[null,null,null,null,"zlsxzv_nvp_h128_TY0V01","='Zorg via CAK - ZZV'!$D$15","","Zorg zonder verblijf, (V&V/GHZ/GGZ)- Verpleging extra- aantal","zlsxzv","nvp","h128","TY0V01","Uren",null,"N","",null,"",""]
[null,null,null,null,"zlsxpgb_npgbnw_kzbwst_TY0V01","='PGB!$C$7",null,"Totaal aantal nieuwe PGB-aanvragers met bewuste-keuze gesprek(ken)"]